Department Family,Entity,Date,Expense Type,Expense Area,Supplier,Transaction Number,Amount
Home Office,Home Office,26/10/2011,Other Government Department,CPG - Crime & Policing Group,CRIMINAL RECORDS BUREAU,1001172227,"61,727.00"
Home Office,Home Office,26/10/2011,Other Government Department,CPG - Crime & Policing Group,CRIMINAL RECORDS BUREAU,1001172227,"95,440.00"
Home Office,Home Office,26/10/2011,Other Government Department,CPG - Crime & Policing Group,CRIMINAL RECORDS BUREAU,1001172227,"75,000.00"
Home Office,Home Office,26/10/2011,Other Government Department,CPG - Crime & Policing Group,CRIMINAL RECORDS BUREAU,1001172227,"35,270.00"
Home Office,Home Office,26/10/2011,Other Government Department,CPG - Crime & Policing Group,CRIMINAL RECORDS BUREAU,1001172227,"6,045.00"
Home Office,Home Office,26/10/2011,Other Government Department,CPG - Crime & Policing Group,CRIMINAL RECORDS BUREAU,1001172227,"38,305.00"
Home Office,Home Office,26/10/2011,Other Government Department,CPG - Crime & Policing Group,CRIMINAL RECORDS BUREAU,1001172227,"599,615.00"
Home Office,Home Office,26/10/2011,Other Government Department,CPG - Crime & Policing Group,CRIMINAL RECORDS BUREAU,1001172227,"483,726.00"
Home Office,Home Office,26/10/2011,Other Government Department,CPG - Crime & Policing Group,CRIMINAL RECORDS BUREAU,1001172227,"480,922.00"
Home Office,Home Office,26/10/2011,Other Government Department,CPG - Crime & Policing Group,CRIMINAL RECORDS BUREAU,1001172227,"8,562.00"
Home Office,Home Office,26/10/2011,Grant,CPG - Crime & Policing Group,PNB OFFICIAL SIDE SECRETARIAL (G),1001172178,"76,409.00"
Home Office,Home Office,31/10/2011,Grant,CPG - Crime & Policing Group,SUPERINTENDENTS ASSOCIATION (G),1001173646,"165,687.50"
Home Office,Home Office,27/10/2011,Grant,CPG - Crime & Policing Group,HAMPSHIRE POLICE AUTHORITY 1 (G),1001172949,"250,000.00"
Home Office,Home Office,24/10/2011,Grant,CPG - Crime & Policing Group,NATIONAL OFFENDER MANAGEMENT SERVICE (G),3000043649,"50,000.00"
Home Office,Home Office,13/10/2011,Grant,CPG - Crime & Policing Group,AVON & SOMERSET POLICE AUTHORITY 1 (G),1001167040,"159,401.00"
Home Office,Home Office,13/10/2011,Grant,CPG - Crime & Policing Group,HERTFORDSHIRE POLICE AUTHORITY 1 (G),1001167051,"212,742.00"
Home Office,Home Office,13/10/2011,Grant,CPG - Crime & Policing Group,LEICESTERSHIRE POLICE AUTHORITY (G),1001167052,"166,164.00"
Home Office,Home Office,13/10/2011,Grant,CPG - Crime & Policing Group,MERSEYSIDE POLICE AUTHORITY 1 (G),1001167053,"186,980.00"
Home Office,Home Office,13/10/2011,Grant,CPG - Crime & Policing Group,METROPOLITAN POLICE AUTHORITY  (G),1001167055,"35,023.00"
Home Office,Home Office,24/10/2011,Grant,CPG - Crime & Policing Group,SOUTH WALES POLICE AUTHORITY 1 (G),1001171034,"101,971.00"
Home Office,Home Office,13/10/2011,Grant,CPG - Crime & Policing Group,SUSSEX POLICE AUTHORITY 1 (G),1001167059,"234,548.00"
Home Office,Home Office,13/10/2011,Grant,CPG - Crime & Policing Group,WEST MIDLANDS POLICE AUTHORITY 1 (G),1001167064,"222,445.00"
Home Office,Home Office,13/10/2011,Grant,CPG - Crime & Policing Group,WEST YORKSHIRE POLICE (G),1001167065,"226,529.00"
Home Office,Home Office,03/10/2011,Grant,CPG - Crime & Policing Group,AVON & SOMERSET POLICE AUTHORITY 1 (G),1001162578,"10,077,352.00"
Home Office,Home Office,03/10/2011,Grant,CPG - Crime & Policing Group,BEDFORDSHIRE POLICE AUTHORITY 1 (G),1001162579,"3,659,509.00"
Home Office,Home Office,03/10/2011,Grant,CPG - Crime & Policing Group,CAMBRIDGESHIRE POLICE AUTHORITY 1 (G),1001162580,"4,478,210.00"
Home Office,Home Office,03/10/2011,Grant,CPG - Crime & Policing Group,CHAMBERLAIN OF LONDON (G),1001162581,"2,637,391.00"
Home Office,Home Office,03/10/2011,Grant,CPG - Crime & Policing Group,CHESHIRE POLICE AUTHORITY 2 (G),1001162583,"5,792,834.00"
Home Office,Home Office,03/10/2011,Grant,CPG - Crime & Policing Group,CLEVELAND POLICE AUTHORITY 1 (G),1001162584,"4,279,609.00"
Home Office,Home Office,03/10/2011,Grant,CPG - Crime & Policing Group,CUMBRIA POLICE AUTHORITY 1 (G),1001162585,"2,754,604.00"
Home Office,Home Office,07/10/2011,Financial & Insurance Services.Audit Services.Audit,CPG - Crime & Policing Group,CUNNINGHAM LINDSEY UK,1001164589,"30,000.00"
Home Office,Home Office,07/10/2011,Financial & Insurance Services.Audit Services.Audit,CPG - Crime & Policing Group,CUNNINGHAM LINDSEY UK,1001164589,"27,830.40"
Home Office,Home Office,18/10/2011,Financial & Insurance Services.Audit Services.Audit,CPG - Crime & Policing Group,CUNNINGHAM LINDSEY UK,1001168595,"27,396.00"
Home Office,Home Office,03/10/2011,Grant,CPG - Crime & Policing Group,DERBYSHIRE POLICE AUTHORITY 1 (G),1001162586,"5,846,241.00"
Home Office,Home Office,03/10/2011,Grant,CPG - Crime & Policing Group,DEVON & CORNWALL POLICE AUTHORITY 1 (G),1001162587,"9,911,628.00"
Home Office,Home Office,03/10/2011,Grant,CPG - Crime & Policing Group,DORSET POLICE AUTHORITY 1 (G),1001162588,"3,822,155.00"
Home Office,Home Office,03/10/2011,Grant,CPG - Crime & Policing Group,DURHAM POLICE AUTHORITY 1 (G),1001162589,"3,982,069.00"
Home Office,Home Office,03/10/2011,Grant,CPG - Crime & Policing Group,DYFED POWYS POLICE AUTHORITY 1 (G),1001162590,"3,400,650.00"
Home Office,Home Office,03/10/2011,Grant,CPG - Crime & Policing Group,ESSEX POLICE AUTHORITY (G),1001162591,"9,800,828.00"
Home Office,Home Office,03/10/2011,Grant,CPG - Crime & Policing Group,GLOUCESTERSHIRE POLICE AUTHORITY (G),1001162592,"3,254,375.00"
Home Office,Home Office,03/10/2011,Grant,CPG - Crime & Policing Group,GREATER LONDON AUTHORITY (G),1001162593,"93,977,997.00"
Home Office,Home Office,03/10/2011,Grant,CPG - Crime & Policing Group,GREATER MANCHESTER POLICE AUTHORITY (G),1001162594,"20,705,963.00"
Home Office,Home Office,03/10/2011,Grant,CPG - Crime & Policing Group,GWENT POLICE AUTHORITY 1 (G),1001162596,"4,012,840.00"
Home Office,Home Office,03/10/2011,Grant,CPG - Crime & Policing Group,HAMPSHIRE POLICE AUTHORITY 1 (G),1001162597,"11,497,255.00"
Home Office,Home Office,03/10/2011,Grant,CPG - Crime & Policing Group,HERTFORDSHIRE POLICE AUTHORITY 1 (G),1001162598,"6,623,331.00"
Home Office,Home Office,03/10/2011,Grant,CPG - Crime & Policing Group,HUMBERSIDE POLICE AUTHORITY 1 (G),1001162599,"6,232,921.00"
Home Office,Home Office,03/10/2011,Grant,CPG - Crime & Policing Group,KENT POLICE AUTHORITY 1 (G),1001162600,"9,823,144.00"
Home Office,Home Office,03/10/2011,Grant,CPG - Crime & Policing Group,LANCASHIRE POLICE AUTHORITY 1 (G),1001162601,"9,528,222.00"
Home Office,Home Office,03/10/2011,Grant,CPG - Crime & Policing Group,LEICESTERSHIRE POLICE AUTHORITY (G),1001162602,"6,036,080.00"
Home Office,Home Office,03/10/2011,Grant,CPG - Crime & Policing Group,LINCOLNSHIRE POLICE AUTHORITY 1 (G),1001162603,"3,571,904.00"
Home Office,Home Office,03/10/2011,Grant,CPG - Crime & Policing Group,MERSEYSIDE POLICE AUTHORITY 1 (G),1001162604,"11,480,388.00"
Home Office,Home Office,03/10/2011,Grant,CPG - Crime & Policing Group,NEW WEST MERCIA POLICE AUTHORITY (G),1001162607,"6,178,620.00"
Home Office,Home Office,03/10/2011,Grant,CPG - Crime & Policing Group,NORFOLK POLICE AUTHORITY 1 (G),1001162608,"4,805,069.00"
Home Office,Home Office,03/10/2011,Grant,CPG - Crime & Policing Group,NORTH WALES POLICE AUTHORITY (G),1001162609,"4,677,883.00"
Home Office,Home Office,03/10/2011,Grant,CPG - Crime & Policing Group,NORTH YORKSHIRE POLICE AUTHORITY (G),1001162610,"3,937,104.00"
Home Office,Home Office,03/10/2011,Grant,CPG - Crime & Policing Group,NORTHAMPTONSHIRE POLICE 1 (G),1001162611,"4,046,674.00"
Home Office,Home Office,03/10/2011,Grant,CPG - Crime & Policing Group,NORTHUMBRIA POLICE (G),1001162612,"10,357,098.00"
Home Office,Home Office,03/10/2011,Grant,CPG - Crime & Policing Group,NOTTINGHAMSHIRE POLICE AUTHORITY 2 (G),1001162613,"7,237,470.00"
Home Office,Home Office,03/10/2011,Grant,CPG - Crime & Policing Group,SOUTH WALES POLICE AUTHORITY 1 (G),1001162617,"8,387,288.00"
Home Office,Home Office,03/10/2011,Grant,CPG - Crime & Policing Group,SOUTH YORKSHIRE POLICE AUTHORITY 1 (G),1001162618,"9,230,816.00"
Home Office,Home Office,03/10/2011,Grant,CPG - Crime & Policing Group,STAFFORDSHIRE POLICE AUTHORITY (G),1001162619,"6,180,975.00"
Home Office,Home Office,03/10/2011,Grant,CPG - Crime & Policing Group,SUFFOLK POLICE AUTHORITY (G),1001162620,"3,825,493.00"
Home Office,Home Office,03/10/2011,Grant,CPG - Crime & Policing Group,SURREY POLICE AUTHORITY 1 (G),1001162621,"5,835,740.00"
Home Office,Home Office,03/10/2011,Grant,CPG - Crime & Policing Group,SUSSEX POLICE AUTHORITY 1 (G),1001162622,"9,081,460.00"
Home Office,Home Office,03/10/2011,Grant,CPG - Crime & Policing Group,THAMES VALLEY POLICE (G),1001162623,"13,179,571.00"
Home Office,Home Office,03/10/2011,Grant,CPG - Crime & Policing Group,WARWICKSHIRE POLICE AUTHORITY 1 (G),1001162624,"2,932,142.00"
Home Office,Home Office,03/10/2011,Grant,CPG - Crime & Policing Group,WEST MIDLANDS POLICE AUTHORITY 1 (G),1001162626,"22,740,680.00"
Home Office,Home Office,03/10/2011,Grant,CPG - Crime & Policing Group,WEST YORKSHIRE POLICE (G),1001162628,"16,054,480.00"
Home Office,Home Office,03/10/2011,Grant,CPG - Crime & Policing Group,WILTSHIRE CONSTABULARY (G),1001162629,"3,468,252.00"
Home Office,Home Office,20/10/2011,Grant,CPG - Crime & Policing Group,BROKEN RAINBOW (G),1001170218,"30,000.00"
Home Office,Home Office,07/10/2011,Grant,CPG - Crime & Policing Group,RAPE CRISIS ENGLAND AND WALES (G),1001164973,"75,000.00"
Home Office,Home Office,20/10/2011,Grant,CPG - Crime & Policing Group,WOMENS AID (G),1001170252,"62,500.00"
Home Office,Home Office,19/10/2011,Grant,CPG - Crime & Policing Group,KIDS TASKFORCE (G),1001169715,"100,000.00"
Home Office,Home Office,28/10/2011,Grant,CPG - Crime & Policing Group,YOUTH JUSTICE BOARD (G),1001173278,"5,000,000.00"
Home Office,Home Office,28/10/2011,"IT, Broadcasting & Telecomms.IT Running Cost - Maint - PROG",CPG - Crime & Policing Group,SAVVIS UK LTD,1001173255,"168,000.00"
Home Office,Home Office,04/10/2011,"IT, Broadcasting & Telecomms.IT Running Cost - Maint - PROG",CPG - Crime & Policing Group,SAVVIS UK LTD,1001162771,"26,807.56"
Home Office,Home Office,17/10/2011,Grant,CPG - Crime & Policing Group,ACTIVE COMMUNITIES NETWORK (G),1001168311,"280,000.00"
Home Office,Home Office,17/10/2011,Grant,CPG - Crime & Policing Group,CATCH 22 (G),1001168314,"141,172.50"
Home Office,Home Office,05/10/2011,"Science, Technical & Research.Testing",CPG - Crime & Policing Group,CONCATENO UK LTD,1001163698,"239,688.00"
Home Office,Home Office,03/10/2011,Grant,CPG - Crime & Policing Group,DARLINGTON PRIMARY CARE TRUST (G),3000043547,"29,835.50"
Home Office,Home Office,03/10/2011,Grant,CPG - Crime & Policing Group,EALING PRIMARY CARE TRUST PCT (G),3000043551,"174,770.50"
Home Office,Home Office,03/10/2011,Grant,CPG - Crime & Policing Group,EASINGTON PCT (G),3000043552,"85,553.50"
Home Office,Home Office,07/10/2011,Grant,CPG - Crime & Policing Group,HARROW PCT (G),1001164972,"30,511.00"
Home Office,Home Office,26/10/2011,Grant,CPG - Crime & Policing Group,MENTOR FOUNDATION UK (G),1001172164,"446,779.00"
Home Office,Home Office,17/10/2011,Grant,CPG - Crime & Policing Group,PRINCES TRUST (G),1001168323,"195,634.00"
Home Office,Home Office,14/10/2011,Grant,CPG - Crime & Policing Group,WELSH ASSEMBLY GOVERNMENT (G),3000043613,"1,377,364.25"
Home Office,Home Office,14/10/2011,Grant,CPG - Crime & Policing Group,YOUTH JUSTICE BOARD FOR ENGLAND AND WALES (G) (THE),1001167405,"1,125,000.00"
Home Office,Home Office,21/10/2011,"Building, Construction Service.Building, Construction Service - PROG",CPG - Crime & Policing Group,"KELLOGG, BROWN AND ROOT LTD",1001170442,"38,681.16"
Home Office,Home Office,27/10/2011,Defense & Law Enforcement.Police Liaison Officers,CPG - Crime & Policing Group,SERIOUS ORGANISED CRIME AGENCY,1001172745,"34,141.57"
Home Office,Home Office,07/10/2011,Professional & Admin Services.Residential Rental - PROG,CPG - Crime & Policing Group,WORKSPACE MANAGEMENT LTD,1001164653,"36,002.06"
Home Office,Home Office,13/10/2011,Grant,CPG - Crime & Policing Group,METROPOLITAN POLICE AUTHORITY  (G),1001167055,"619,040.00"
Home Office,Home Office,06/10/2011,Grant,CPG - Crime & Policing Group,ACPO (G),1001164506,"198,250.00"
Home Office,Home Office,28/10/2011,Grant,CPG - Crime & Policing Group,INDEPENDENT POLICE COMPLAINTS COMISSION (G),1001173276,"2,000,000.00"
Home Office,Home Office,28/10/2011,Grant,CPG - Crime & Policing Group,NPIA (G),1001173277,"25,000,000.00"
Home Office,Home Office,26/10/2011,"Messenger, Portering and Reception Services",CPG - Crime & Policing Group,COI COMMUNICATIONS,6300000084,"26,275.84"
Home Office,Home Office,31/10/2011,Grant,CPG - Crime & Policing Group,VICTIM SUPPORT (G),1001173647,"212,861.47"
Home Office,Home Office,17/10/2011,Grant,CPG - Crime & Policing Group,FORENSIC SCIENCE SERVICE 2 (G),1001168319,"20,000,000.00"
Home Office,Home Office,27/10/2011,"Professional & Admin Services.Patent, Copyright Law - ADMN",CPG - Crime & Policing Group,NPIA (National Policing Improvement Agency),1001172733,"44,601.96"
Home Office,Home Office,27/10/2011,"Professional & Admin Services.Patent, Copyright Law - ADMN",CPG - Crime & Policing Group,NPIA (National Policing Improvement Agency),1001172733,"14,618.40"
Home Office,Home Office,27/10/2011,"Professional & Admin Services.Patent, Copyright Law - ADMN",CPG - Crime & Policing Group,NPIA (National Policing Improvement Agency),1001172733,"11,818.20"
Home Office,Home Office,27/10/2011,"Professional & Admin Services.Patent, Copyright Law - ADMN",CPG - Crime & Policing Group,NPIA (National Policing Improvement Agency),1001172733,"6,369.00"
Home Office,Home Office,27/10/2011,"Professional & Admin Services.Patent, Copyright Law - ADMN",CPG - Crime & Policing Group,NPIA (National Policing Improvement Agency),1001172733,"9,881.52"
Home Office,Home Office,04/10/2011,Professional & Admin Services.Consultancy - Advice - ADMN,CPG - Crime & Policing Group,PRICE WATERHOUSE COOPERS LLP,1001162760,"184,364.40"
Home Office,Home Office,04/10/2011,Professional & Admin Services.Consultancy - Advice - ADMN,CPG - Crime & Policing Group,PRICE WATERHOUSE COOPERS LLP,1001162760,"2,743.20"
Home Office,Home Office,03/10/2011,Grant,CPG - Crime & Policing Group,METROPOLITAN POLICE AUTHORITY  (G),1001162605,"77,291.48"
Home Office,Home Office,05/10/2011,Grant,CPG - Crime & Policing Group,COMMUNITIES & LOCAL GOVERNMENT (G),3000043569,"4,735,973.00"
Home Office,Home Office,20/10/2011,Management & Admin Serv.Management Support Serv - PROG,CPG - Crime & Policing Group,COMMUNITY DEV FOUNDATION,1001169862,"60,000.00"
Home Office,Home Office,13/10/2011,Grant,CPG - Crime & Policing Group,COMMUNITY DEVELOPMENT FOUNDATION (G),1001167048,"2,000,000.00"
Home Office,Home Office,13/10/2011,Grant,CPG - Crime & Policing Group,NEATH PORT TALBOT C B C (G),1001167056,"29,502.25"
Home Office,Home Office,13/10/2011,Grant,CPG - Crime & Policing Group,NEIGHBOURHOOD AND HOMEWATCH NETWORK (ENGLAND AND WALES) NETWORK (G),1001167057,"40,000.00"
Home Office,Home Office,13/10/2011,Grant,CPG - Crime & Policing Group,VALE OF GLAMORGAN (G),1001167061,"27,903.50"
Home Office,Home Office,27/10/2011,Grant,CPG - Crime & Policing Group,AVON & SOMERSET CONSTABULARY (G),1001172929,"278,965.00"
Home Office,Home Office,27/10/2011,Grant,CPG - Crime & Policing Group,CROWN PROSECUTION SERVICE (G),3000043678,"162,806.00"
Home Office,Home Office,27/10/2011,Grant,CPG - Crime & Policing Group,DERBYSHIRE POLICE AUTHORITY 1 (G),1001172939,"58,117.00"
Home Office,Home Office,27/10/2011,Grant,CPG - Crime & Policing Group,HERTFORDSHIRE POLICE AUTHORITY 1 (G),1001172950,"200,847.00"
Home Office,Home Office,27/10/2011,Grant,CPG - Crime & Policing Group,HM REVENUE & CUSTOMS (G),3000043679,"85,186.00"
Home Office,Home Office,27/10/2011,Grant,CPG - Crime & Policing Group,LANCASHIRE POLICE AUTHORITY 1 (G),1001172953,"267,009.00"
Home Office,Home Office,27/10/2011,Grant,CPG - Crime & Policing Group,LEICESTERSHIRE POLICE AUTHORITY (G),1001172954,"209,897.00"
Home Office,Home Office,27/10/2011,Grant,CPG - Crime & Policing Group,METROPOLITAN POLICE SERVICE (G),1001172959,"277,633.84"
Home Office,Home Office,27/10/2011,Grant,CPG - Crime & Policing Group,NATIONAL POLICING IMPROVEMENT AGENCY (G),1001172960,"121,456.00"
Home Office,Home Office,07/10/2011,Grant,CPG - Crime & Policing Group,SOCA (G),1001164974,"34,000,000.00"
Home Office,Home Office,27/10/2011,Grant,CPG - Crime & Policing Group,SOUTH WALES POLICE AUTHORITY 1 (G),1001172969,"236,074.00"
Home Office,Home Office,27/10/2011,Grant,CPG - Crime & Policing Group,SUSSEX POLICE AUTHORITY 1 (G),1001172974,"147,678.00"
Home Office,Home Office,27/10/2011,Grant,CPG - Crime & Policing Group,WEST MIDLANDS POLICE AUTHORITY 1 (G),1001172977,"236,182.00"
Home Office,Home Office,27/10/2011,Grant,CPG - Crime & Policing Group,WEST YORKSHIRE POLICE (G),1001172978,"302,691.00"
Home Office,Home Office,03/10/2011,Grant,CPG - Crime & Policing Group,CHAMBERLAIN OF LONDON 2 (G),1001162582,"1,600,000.00"
Home Office,Home Office,25/10/2011,Grant,CPG - Crime & Policing Group,HERTFORDSHIRE COUNTY COUNCIL 1 (G),2011102501,"-157,741.64"
Home Office,Home Office,03/10/2011,Grant,CPG - Crime & Policing Group,SERIOUS FRAUD OFFICE (G),3000043557,"4,031,914.64"
Home Office,Home Office,07/10/2011,"Editorial, Design & Graphics.Advertising-non recruit - ADMN",Communications,COI COMMUNICATIONS,3000043582,"254,108.00"
Home Office,Home Office,14/10/2011,"Editorial, Design & Graphics.Advertising-non recruit - ADMN",Communications,COI COMMUNICATIONS,3000043604,"285,184.30"
Home Office,Home Office,14/10/2011,"Editorial, Design & Graphics.Advertising-non recruit - ADMN",Communications,COI COMMUNICATIONS,3000043604,"439,942.00"
Home Office,Home Office,18/10/2011,"Editorial, Design & Graphics.Advertising-non recruit - ADMN",Communications,COI COMMUNICATIONS,3000043621,"23,049.00"
Home Office,Home Office,04/10/2011,"IT, Broadcasting & Telecomms.IT Running Cost - Maint - PROG",Communications,SAVVIS UK LTD,1001162771,"31,906.54"
Home Office,Home Office,19/10/2011,"Science, Technical & Research.Computer services - ADMN",Communications,SPECIALIST COMPUTER CENTRES PLC,1001169426,"102,117.60"
Home Office,Home Office,04/10/2011,Other Government Department,Group Human Resources,"DEPARTMENT FOR BUSINESS, INNOVATION & SKILLS",3000043560,"20,833.68"
Home Office,Home Office,04/10/2011,Other Government Department,Group Human Resources,"DEPARTMENT FOR BUSINESS, INNOVATION & SKILLS",3000043560,"2,121.40"
Home Office,Home Office,04/10/2011,Other Government Department,Group Human Resources,"DEPARTMENT FOR BUSINESS, INNOVATION & SKILLS",3000043560,"4,541.76"
Home Office,Home Office,27/10/2011,Education & Training Services.Training Dev External - ADMN,Group Human Resources,ELIESHA TRAINING LTD,1001172699,"241,316.00"
Home Office,Home Office,27/10/2011,Education & Training Services.Training Dev External - ADMN,Group Human Resources,ELIESHA TRAINING LTD,1001172699,"4,088.00"
Home Office,Home Office,24/10/2011,Professional & Admin Services.Personnel Recruit Serv - ADMN,Group Human Resources,FCO SERVICES,3000043645,"30,422.00"
Home Office,Home Office,25/10/2011,Educational Equip & Materials.Prof teaching aids - ADMN,Group Human Resources,GOOD PRACTICE LTD,1001171590,"70,000.00"
Home Office,Home Office,05/10/2011,Professional & Admin Services.Seconded in Staff costs.ADMN,Group Human Resources,NATIONAL SCHOOL OF GOVERNMENT,3000043573,"45,031.86"
Home Office,Home Office,12/10/2011,Education & Training Services.Training Dev External - ADMN,Group Human Resources,THE MANCHESTER COLLEGE,1001166487,"9,025.00"
Home Office,Home Office,12/10/2011,Education & Training Services.Training Dev External - ADMN,Group Human Resources,THE MANCHESTER COLLEGE,1001166487,"9,025.00"
Home Office,Home Office,12/10/2011,Education & Training Services.Training Dev External - ADMN,Group Human Resources,THE MANCHESTER COLLEGE,1001166487,"9,025.00"
Home Office,Home Office,12/10/2011,Education & Training Services.Training Dev External - ADMN,Group Human Resources,THE MANCHESTER COLLEGE,1001166487,"9,025.00"
Home Office,Home Office,12/10/2011,Education & Training Services.Training Dev External - ADMN,Group Human Resources,THE MANCHESTER COLLEGE,1001166487,"9,025.00"
Home Office,Home Office,06/10/2011,Car Hire,PFD*,ARVAL UK LTD,1001164124,"123,358.80"
Home Office,Home Office,06/10/2011,Travel,PFD*,CARLSON WAGONLIT TRAVEL,1001164129,"139,615.90"
Home Office,Home Office,13/10/2011,Travel,PFD*,CARLSON WAGONLIT TRAVEL,1001166972,"117,182.92"
Home Office,Home Office,19/10/2011,Travel,PFD*,CARLSON WAGONLIT TRAVEL,1001169373,"129,078.68"
Home Office,Home Office,27/10/2011,Travel,PFD*,CARLSON WAGONLIT TRAVEL,1001172691,"131,319.77"
Home Office,Home Office,26/10/2011,Car Hire,PFD*,ENTERPRISE RENT-A-CAR UK LTD,1001172233,"34,964.75"
Home Office,Home Office,06/10/2011,Car Hire,PFD*,LEX AUTOLEASE LTD,1001164154,"118,914.98"
Home Office,Home Office,11/10/2011,Events,PFD*,NYS CORPORATE LTD,1001165831,"27,353.40"
Home Office,Home Office,13/10/2011,Science & Technology,Home Office Science,NOTTINGHAM TRENT UNIVERSITY,1001167011,"67,466.00"
Home Office,Home Office,13/10/2011,Science & Technology,Home Office Science,REACT ENGINEERING LTD,1001167020,"49,200.00"
Home Office,Home Office,14/10/2011,Science & Technology,Home Office Science,EDSL LTD,1001167450,"24,109.02"
Home Office,Home Office,12/10/2011,Science & Technology,Home Office Science,REAL TIME ANALYZERS INC,7000006264,"54,493.50"
Home Office,Home Office,21/10/2011,Other Accommodation,SSD - Shared Services Directorate,DTZ DEBENHAM TIE LEUNG LTD,1001170417,"33,775.06"
Home Office,Home Office,11/10/2011,Science & Technology,Home Office Science,GVA GRIMLEY,1001165802,"29,556.00"
Home Office,Home Office,26/10/2011,Science & Technology,Home Office Science,SHEFFIELD HALLAM UNIVERSITY,6200019133,"13,210.60"
Home Office,Home Office,20/10/2011,Science & Technology,Home Office Science,SHEFFIELD HALLAM UNIVERSITY,1001169911,"26,421.20"
Home Office,Home Office,20/10/2011,Science & Technology,Home Office Science,SHEFFIELD HALLAM UNIVERSITY,1001169912,"26,421.20"
Home Office,Home Office,06/10/2011,Management & Admin Serv.Marketing Services - ADMN,Home Office Science,TNS-BMRB,1001164188,"370,590.00"
Home Office,Home Office,26/10/2011,Law Enforcement & safety Equip.Surveillance & Det Equip- PROG,SSD - Shared Services Directorate,AIRWAVE SOLUTIONS LTD,1001172206,"170,550.05"
Home Office,Home Office,31/10/2011,"Building, Construction Service.Building ConstructionServ-ADMN",SSD - Shared Services Directorate,AMEY COMMUNITY,1001173650,"30,866.41"
Home Office,Home Office,31/10/2011,"Building, Construction Service.Building ConstructionServ-ADMN",SSD - Shared Services Directorate,AMEY COMMUNITY,1001173650,"78,561.26"
Home Office,Home Office,13/10/2011,Professional & Admin Services.Facilities Man Serv - PROG,SSD - Shared Services Directorate,AMEY COMMUNITY,1001166962,"22,932.54"
Home Office,Home Office,13/10/2011,Professional & Admin Services.Facilities Man Serv - PROG,SSD - Shared Services Directorate,AMEY COMMUNITY,1001166962,123.78
Home Office,Home Office,26/10/2011,"Building, Construction Service.Building, Construction Service - PROG",SSD - Shared Services Directorate,AMEY COMMUNITY,1001172208,"79,884.46"
Home Office,Home Office,26/10/2011,"Building, Construction Service.Building, Construction Service - PROG",SSD - Shared Services Directorate,AMEY COMMUNITY,1001172208,"46,875.30"
Home Office,Home Office,27/10/2011,"Building, Construction Service.Building, Construction Service - PROG",SSD - Shared Services Directorate,AMEY COMMUNITY,1001172679,"43,509.90"
Home Office,Home Office,26/10/2011,"Building, Construction Service.Building, Construction Service - PROG",SSD - Shared Services Directorate,AMEY COMMUNITY,1001172208,"27,496.18"
Home Office,Home Office,31/10/2011,"Building, Construction Service.Building ConstructionServ-ADMN",SSD - Shared Services Directorate,AMEY COMMUNITY,1001173650,"328,113.70"
Home Office,Home Office,31/10/2011,"Building, Construction Service.Building ConstructionServ-ADMN",SSD - Shared Services Directorate,AMEY COMMUNITY,1001173650,"36,515.28"
Home Office,Home Office,31/10/2011,"Building, Construction Service.Building ConstructionServ-ADMN",SSD - Shared Services Directorate,AMEY COMMUNITY,1001173650,"825,943.35"
Home Office,Home Office,31/10/2011,"Building, Construction Service.Building ConstructionServ-ADMN",SSD - Shared Services Directorate,AMEY COMMUNITY,1001173650,"340,794.91"
Home Office,Home Office,31/10/2011,"Building, Construction Service.Building ConstructionServ-ADMN",SSD - Shared Services Directorate,AMEY COMMUNITY,1001173650,"568,752.60"
Home Office,Home Office,04/10/2011,"Building, Construction Service.Building, Construction Service - PROG",SSD - Shared Services Directorate,AMEY COMMUNITY,1001162636,"26,694.69"
Home Office,Home Office,24/10/2011,"Building, Construction Service.Building, Construction Service - PROG",SSD - Shared Services Directorate,AMEY COMMUNITY,1001170922,"125,328.99"
Home Office,Home Office,24/10/2011,"Building, Construction Service.Building, Construction Service - PROG",SSD - Shared Services Directorate,AMEY COMMUNITY,1001170924,"209,801.35"
Home Office,Home Office,26/10/2011,"Building, Construction Service.Building, Construction Service - PROG",SSD - Shared Services Directorate,ANNES GATE PROPERTY PLC,1001172210,"3,256,509.08"
Home Office,Home Office,13/10/2011,"Building, Construction Service.Building ConstructionServ-ADMN",SSD - Shared Services Directorate,ATKINS LTD,1001166966,"75,667.49"
Home Office,Home Office,17/10/2011,Professional & Admin Services.Facilities Man Serv - ADMN,SSD - Shared Services Directorate,ATKINS LTD,1001167992,"197,539.64"
Home Office,Home Office,14/10/2011,IT Services.Admin,SSD - Shared Services Directorate,ATOS IT SERVICES UK LTD,1001167417,"33,789.60"
Home Office,Home Office,14/10/2011,IT Services.Admin,SSD - Shared Services Directorate,ATOS IT SERVICES UK LTD,1001167417,"13,417.16"
Home Office,Home Office,31/10/2011,"Building, Construction Service.General building construction.",SSD - Shared Services Directorate,ATOS IT SERVICES UK LTD,1001173655,"78,830.40"
Home Office,Home Office,18/10/2011,"IT,TelecommsMan ServiceHosting.Support - ADMN",SSD - Shared Services Directorate,ATOS IT SERVICES UK LTD,1001168544,"191,667.00"
Home Office,Home Office,20/10/2011,"IT, TelecommsHardware Desktop.Support and Maintenance - ADMN",SSD - Shared Services Directorate,ATOS IT SERVICES UK LTD,1001169849,"54,206.64"
Home Office,Home Office,05/10/2011,"IT, Broadcasting & Telecomms.IT Run Costs Other - ADMN",SSD - Shared Services Directorate,CABLE & WIRELESS,6200019107,"-30,726.00"
Home Office,Home Office,28/10/2011,"IT, TelecommsHardware Desktop.Support and Maintenance - ADMN",SSD - Shared Services Directorate,CABLE & WIRELESS,1001173205,"35,987.25"
Home Office,Home Office,24/10/2011,"IT, Broadcasting & Telecomms.IT Run Costs Other - ADMN",SSD - Shared Services Directorate,CABLE & WIRELESS,1001170938,"30,726.00"
Home Office,Home Office,24/10/2011,"IT, Broadcasting & Telecomms.IT Run Costs Other - ADMN",SSD - Shared Services Directorate,CABLE & WIRELESS,1001170938,"152,555.40"
Home Office,Home Office,13/10/2011,"Transport, Storage & Mail Serv.Mailing Mail Del Serv - ADMN",SSD - Shared Services Directorate,CENTRAL DESPATCH,1001166973,"28,104.05"
Home Office,Home Office,13/10/2011,"Transport, Storage & Mail Serv.Mailing Mail Del Serv - ADMN",SSD - Shared Services Directorate,CENTRAL DESPATCH,1001166973,"28,088.33"
Home Office,Home Office,19/10/2011,"Building, Construction Service.General building construction.",SSD - Shared Services Directorate,COUPE DECOR MAINTENANCE LTD,1001169378,"83,170.73"
Home Office,Home Office,11/10/2011,"Building, Construction Service.General building construction.",SSD - Shared Services Directorate,CRIPPS HARRIES HALL,1001165785,"90,264.83"
Home Office,Home Office,17/10/2011,Professional & Admin Services.Consultant - Imp & Del - PROG,SSD - Shared Services Directorate,DRIVERS JONAS DELOITTE,1001168009,"28,771.52"
Home Office,Home Office,13/10/2011,Professional & Admin Services.Consultant - Imp & Del - PROG,SSD - Shared Services Directorate,DRIVERS JONAS DELOITTE,1001166985,"33,600.00"
Home Office,Home Office,13/10/2011,Professional & Admin Services.Consultant - Imp & Del - PROG,SSD - Shared Services Directorate,DRIVERS JONAS DELOITTE,1001166985,"-1,400.00"
Home Office,Home Office,14/10/2011,"Messenger, Portering and Reception Services",SSD - Shared Services Directorate,DTZ DEBENHAM TIE LEUNG LTD,1001167445,"34,716.41"
Home Office,Home Office,13/10/2011,"Messenger, Portering and Reception Services",SSD - Shared Services Directorate,DTZ DEBENHAM TIE LEUNG LTD,1001166986,"31,370.56"
Home Office,Home Office,19/10/2011,"Messenger, Portering and Reception Services",SSD - Shared Services Directorate,DTZ DEBENHAM TIE LEUNG LTD,1001169383,"41,911.00"
Home Office,Home Office,20/10/2011,RENT & RATES,SSD - Shared Services Directorate,DTZ DEBENHAM TIE LEUNG LTD,1001169871,"1,035,306.06"
Home Office,Home Office,07/10/2011,RENT & RATES,SSD - Shared Services Directorate,DTZ DEBENHAM TIE LEUNG LTD,1001164590,"125,887.27"
Home Office,Home Office,14/10/2011,RENT & RATES,SSD - Shared Services Directorate,DTZ DEBENHAM TIE LEUNG LTD,1001167444,"42,919.86"
Home Office,Home Office,20/10/2011,RENT & RATES,SSD - Shared Services Directorate,DTZ DEBENHAM TIE LEUNG LTD,1001169869,"1,140,856.31"
Home Office,Home Office,04/10/2011,RENT & RATES,SSD - Shared Services Directorate,DTZ DEBENHAM TIE LEUNG LTD,1001162679,"506,200.67"
Home Office,Home Office,07/10/2011,RENT & RATES,SSD - Shared Services Directorate,DTZ DEBENHAM TIE LEUNG LTD,1001164591,"30,617.44"
Home Office,Home Office,17/10/2011,RENT & RATES,SSD - Shared Services Directorate,DTZ DEBENHAM TIE LEUNG LTD,1001168010,"113,328.28"
Home Office,Home Office,20/10/2011,RENT & RATES,SSD - Shared Services Directorate,DTZ DEBENHAM TIE LEUNG LTD,1001169870,"2,107,661.15"
Home Office,Home Office,11/10/2011,Utilities.Electric utilities - ADMN,SSD - Shared Services Directorate,EDF ENERGY,1001165790,"100,289.78"
Home Office,Home Office,05/10/2011,"IT, TelecommsSoftware (COTS).System Software - ADMN",SSD - Shared Services Directorate,FUJITSU SERVICES (ALCEDO) LTD,1001163713,"229,942.56"
Home Office,Home Office,05/10/2011,"IT, TelecommsSoftware (COTS).System Software - ADMN",SSD - Shared Services Directorate,FUJITSU SERVICES (ALCEDO) LTD,1001163713,"45,008.11"
Home Office,Home Office,05/10/2011,"IT, TelecommsSoftware (COTS).System Software - ADMN",SSD - Shared Services Directorate,FUJITSU SERVICES (ALCEDO) LTD,1001163713,"24,056.25"
Home Office,Home Office,05/10/2011,"IT, TelecommsSoftware (COTS).System Software - ADMN",SSD - Shared Services Directorate,FUJITSU SERVICES (ALCEDO) LTD,1001163713,"31,460.05"
Home Office,Home Office,05/10/2011,"IT, TelecommsSoftware (COTS).System Software - ADMN",SSD - Shared Services Directorate,FUJITSU SERVICES (ALCEDO) LTD,1001163713,"19,233.08"
Home Office,Home Office,05/10/2011,"IT, TelecommsSoftware (COTS).System Software - ADMN",SSD - Shared Services Directorate,FUJITSU SERVICES (ALCEDO) LTD,1001163713,"12,411.06"
Home Office,Home Office,05/10/2011,"IT, TelecommsSoftware (COTS).System Software - ADMN",SSD - Shared Services Directorate,FUJITSU SERVICES (ALCEDO) LTD,1001163713,"13,753.56"
Home Office,Home Office,05/10/2011,"IT, TelecommsSoftware (COTS).System Software - ADMN",SSD - Shared Services Directorate,FUJITSU SERVICES (ALCEDO) LTD,1001163713,"24,712.60"
Home Office,Home Office,05/10/2011,"IT, TelecommsSoftware (COTS).System Software - ADMN",SSD - Shared Services Directorate,FUJITSU SERVICES (ALCEDO) LTD,1001163713,"8,274.04"
Home Office,Home Office,05/10/2011,"IT, TelecommsSoftware (COTS).System Software - ADMN",SSD - Shared Services Directorate,FUJITSU SERVICES (ALCEDO) LTD,1001163713,"22,027.60"
Home Office,Home Office,05/10/2011,"IT, TelecommsSoftware (COTS).System Software - ADMN",SSD - Shared Services Directorate,FUJITSU SERVICES (ALCEDO) LTD,1001163713,"13,753.56"
Home Office,Home Office,05/10/2011,"IT, TelecommsSoftware (COTS).System Software - ADMN",SSD - Shared Services Directorate,FUJITSU SERVICES (ALCEDO) LTD,1001163713,"32,585.76"
Home Office,Home Office,26/10/2011,"IT, TelecommsHardware Desktop.Support and Maintenance - ADMN",SSD - Shared Services Directorate,FUJITSU SERVICES (ALCEDO) LTD,1001172237,"644,226.67"
Home Office,Home Office,26/10/2011,"IT, TelecommsHardware Desktop.Support and Maintenance - ADMN",SSD - Shared Services Directorate,FUJITSU SERVICES (ALCEDO) LTD,1001172237,"409,044.34"
Home Office,Home Office,26/10/2011,"IT, TelecommsHardware Desktop.Support and Maintenance - ADMN",SSD - Shared Services Directorate,FUJITSU SERVICES (ALCEDO) LTD,1001172237,"690,163.11"
Home Office,Home Office,26/10/2011,"IT, TelecommsHardware Desktop.Support and Maintenance - ADMN",SSD - Shared Services Directorate,FUJITSU SERVICES (ALCEDO) LTD,1001172237,"41,338.85"
Home Office,Home Office,26/10/2011,"IT, TelecommsHardware Desktop.Support and Maintenance - ADMN",SSD - Shared Services Directorate,FUJITSU SERVICES (ALCEDO) LTD,1001172237,"141,314.04"
Home Office,Home Office,26/10/2011,"IT, TelecommsHardware Desktop.Support and Maintenance - ADMN",SSD - Shared Services Directorate,FUJITSU SERVICES (ALCEDO) LTD,1001172237,"85,766.15"
Home Office,Home Office,26/10/2011,"IT, TelecommsHardware Desktop.Support and Maintenance - ADMN",SSD - Shared Services Directorate,FUJITSU SERVICES (ALCEDO) LTD,1001172237,"433,237.59"
Home Office,Home Office,26/10/2011,"IT, TelecommsHardware Desktop.Support and Maintenance - ADMN",SSD - Shared Services Directorate,FUJITSU SERVICES (ALCEDO) LTD,1001172237,"407,697.00"
Home Office,Home Office,26/10/2011,"IT, TelecommsHardware Desktop.Support and Maintenance - ADMN",SSD - Shared Services Directorate,FUJITSU SERVICES (ALCEDO) LTD,1001172237,"311,874.15"
Home Office,Home Office,26/10/2011,"IT, TelecommsHardware Desktop.Support and Maintenance - ADMN",SSD - Shared Services Directorate,FUJITSU SERVICES (ALCEDO) LTD,1001172237,"307,594.06"
Home Office,Home Office,26/10/2011,"IT, TelecommsHardware Desktop.Support and Maintenance - ADMN",SSD - Shared Services Directorate,FUJITSU SERVICES (ALCEDO) LTD,1001172237,"-105,580.51"
Home Office,Home Office,26/10/2011,"IT, TelecommsHardware Desktop.Support and Maintenance - ADMN",SSD - Shared Services Directorate,FUJITSU SERVICES (ALCEDO) LTD,1001172237,"-68,653.29"
Home Office,Home Office,27/10/2011,"IT, Broadcasting & Telecomms.IT Maintenance - ADMN",SSD - Shared Services Directorate,FUJITSU SERVICES (ALCEDO) LTD,1001172703,"468,648.00"
Home Office,Home Office,24/10/2011,"IT, TelecommsManaged Service.Support (General) - ADMN",SSD - Shared Services Directorate,FUJITSU SERVICES LIMITED,1001170957,"611,406.71"
Home Office,Home Office,31/10/2011,"IT, TelecommsManaged Service.Support (General) - ADMN",SSD - Shared Services Directorate,FUJITSU SERVICES LIMITED,1001173676,"575,192.65"
Home Office,Home Office,26/10/2011,"Building, Construction Service.General building construction.",SSD - Shared Services Directorate,GEORGE DOWNING CONSTRUCTION LTD,1001172238,"258,666.00"
Home Office,Home Office,11/10/2011,"Building, Construction Service.General building construction.",SSD - Shared Services Directorate,GEORGE DOWNING CONSTRUCTION LTD,1001165799,"209,460.76"
Home Office,Home Office,27/10/2011,"Building, Construction Service.General building construction.",SSD - Shared Services Directorate,HERMAN MILLER LTD,1001172706,"2,688.44"
Home Office,Home Office,27/10/2011,"Building, Construction Service.General building construction.",SSD - Shared Services Directorate,HERMAN MILLER LTD,1001172706,281.18
Home Office,Home Office,27/10/2011,"Building, Construction Service.General building construction.",SSD - Shared Services Directorate,HERMAN MILLER LTD,1001172706,"1,037.04"
Home Office,Home Office,27/10/2011,"Building, Construction Service.General building construction.",SSD - Shared Services Directorate,HERMAN MILLER LTD,1001172706,"7,493.51"
Home Office,Home Office,27/10/2011,"Building, Construction Service.General building construction.",SSD - Shared Services Directorate,HERMAN MILLER LTD,1001172706,"31,732.43"
Home Office,Home Office,27/10/2011,"Building, Construction Service.General building construction.",SSD - Shared Services Directorate,HERMAN MILLER LTD,1001172706,"3,059.90"
Home Office,Home Office,27/10/2011,"Building, Construction Service.General building construction.",SSD - Shared Services Directorate,HERMAN MILLER LTD,1001172706,"1,720.80"
Home Office,Home Office,27/10/2011,"Building, Construction Service.General building construction.",SSD - Shared Services Directorate,HERMAN MILLER LTD,1001172706,"8,870.40"
Home Office,Home Office,27/10/2011,"Building, Construction Service.General building construction.",SSD - Shared Services Directorate,HERMAN MILLER LTD,1001172706,"6,831.14"
Home Office,Home Office,27/10/2011,"Building, Construction Service.General building construction.",SSD - Shared Services Directorate,HERMAN MILLER LTD,1001172706,"2,667.60"
Home Office,Home Office,27/10/2011,"Building, Construction Service.General building construction.",SSD - Shared Services Directorate,HERMAN MILLER LTD,1001172706,659.88
Home Office,Home Office,27/10/2011,"Building, Construction Service.General building construction.",SSD - Shared Services Directorate,HERMAN MILLER LTD,1001172706,"3,391.20"
Home Office,Home Office,27/10/2011,"Building, Construction Service.General building construction.",SSD - Shared Services Directorate,HERMAN MILLER LTD,1001172706,"4,861.58"
Home Office,Home Office,27/10/2011,"Building, Construction Service.General building construction.",SSD - Shared Services Directorate,HERMAN MILLER LTD,1001172706,566.82
Home Office,Home Office,27/10/2011,"Building, Construction Service.General building construction.",SSD - Shared Services Directorate,HERMAN MILLER LTD,1001172706,522.14
Home Office,Home Office,27/10/2011,"Building, Construction Service.General building construction.",SSD - Shared Services Directorate,HERMAN MILLER LTD,1001172706,696.19
Home Office,Home Office,27/10/2011,"Building, Construction Service.General building construction.",SSD - Shared Services Directorate,HERMAN MILLER LTD,1001172706,"9,773.68"
Home Office,Home Office,27/10/2011,"Building, Construction Service.General building construction.",SSD - Shared Services Directorate,HERMAN MILLER LTD,1001172706,202.51
Home Office,Home Office,27/10/2011,"Building, Construction Service.General building construction.",SSD - Shared Services Directorate,HERMAN MILLER LTD,1001172706,852.98
Home Office,Home Office,27/10/2011,"Building, Construction Service.General building construction.",SSD - Shared Services Directorate,HERMAN MILLER LTD,1001172706,"2,964.06"
Home Office,Home Office,27/10/2011,"Building, Construction Service.General building construction.",SSD - Shared Services Directorate,HERMAN MILLER LTD,1001172706,168
Home Office,Home Office,27/10/2011,"Building, Construction Service.General building construction.",SSD - Shared Services Directorate,HERMAN MILLER LTD,1001172706,"35,449.92"
Home Office,Home Office,27/10/2011,"Building, Construction Service.General building construction.",SSD - Shared Services Directorate,HERMAN MILLER LTD,1001172706,359.6
Home Office,Home Office,27/10/2011,"Building, Construction Service.General building construction.",SSD - Shared Services Directorate,HERMAN MILLER LTD,1001172706,726.62
Home Office,Home Office,27/10/2011,"Building, Construction Service.General building construction.",SSD - Shared Services Directorate,HERMAN MILLER LTD,1001172706,443.81
Home Office,Home Office,27/10/2011,"Building, Construction Service.General building construction.",SSD - Shared Services Directorate,HERMAN MILLER LTD,1001172706,"1,088.64"
Home Office,Home Office,27/10/2011,"Building, Construction Service.General building construction.",SSD - Shared Services Directorate,HERMAN MILLER LTD,1001172706,"1,306.01"
Home Office,Home Office,27/10/2011,"Building, Construction Service.General building construction.",SSD - Shared Services Directorate,HERMAN MILLER LTD,1001172706,"1,969.20"
Home Office,Home Office,21/10/2011,"IT, Broadcasting & Telecomms.IT Maintenance - ADMN",SSD - Shared Services Directorate,HEWLETT PACKARD,1001170432,"72,005.06"
Home Office,Home Office,21/10/2011,"IT, Broadcasting & Telecomms.IT Maintenance - ADMN",SSD - Shared Services Directorate,HEWLETT PACKARD,1001170432,"44,788.14"
Home Office,Home Office,21/10/2011,"IT, Broadcasting & Telecomms.IT Maintenance - ADMN",SSD - Shared Services Directorate,HEWLETT PACKARD,1001170432,"19,706.00"
Home Office,Home Office,21/10/2011,"IT, Broadcasting & Telecomms.IT Maintenance - ADMN",SSD - Shared Services Directorate,HEWLETT PACKARD,1001170432,"17,034.36"
Home Office,Home Office,21/10/2011,"IT, Broadcasting & Telecomms.IT Maintenance - ADMN",SSD - Shared Services Directorate,HEWLETT PACKARD,1001170432,"5,195.51"
Home Office,Home Office,21/10/2011,"IT, Broadcasting & Telecomms.IT Maintenance - ADMN",SSD - Shared Services Directorate,HEWLETT PACKARD,1001170432,"2,513.06"
Home Office,Home Office,21/10/2011,"IT, Broadcasting & Telecomms.IT Maintenance - ADMN",SSD - Shared Services Directorate,HEWLETT PACKARD,1001170432,"27,046.72"
Home Office,Home Office,18/10/2011,"IT, TelecommsManaged Service.Support (General) - ADMN",SSD - Shared Services Directorate,HM PRISON SERVICE,3000043624,"544,415.00"
Home Office,Home Office,04/10/2011,Other Government Department,SSD - Shared Services Directorate,IDENTITY & PASSPORTS SERVICE,1001162708,"62,500.00"
Home Office,Home Office,04/10/2011,Other Government Department,SSD - Shared Services Directorate,IDENTITY & PASSPORTS SERVICE,1001162708,"78,125.00"
Home Office,Home Office,04/10/2011,Other Government Department,SSD - Shared Services Directorate,IDENTITY & PASSPORTS SERVICE,1001162708,"486,152.00"
Home Office,Home Office,04/10/2011,Other Government Department,SSD - Shared Services Directorate,IDENTITY & PASSPORTS SERVICE,1001162708,"48,925.00"
Home Office,Home Office,04/10/2011,Other Government Department,SSD - Shared Services Directorate,IDENTITY & PASSPORTS SERVICE,1001162708,"192,728.00"
Home Office,Home Office,04/10/2011,Other Government Department,SSD - Shared Services Directorate,IDENTITY & PASSPORTS SERVICE,1001162708,"195,557.40"
Home Office,Home Office,04/10/2011,Other Government Department,SSD - Shared Services Directorate,IDENTITY & PASSPORTS SERVICE,1001162709,"97,230.00"
Home Office,Home Office,04/10/2011,Other Government Department,SSD - Shared Services Directorate,IDENTITY & PASSPORTS SERVICE,1001162709,"76,456.00"
Home Office,Home Office,24/10/2011,Other Government Department,SSD - Shared Services Directorate,IDENTITY & PASSPORTS SERVICE,1001170966,"97,230.00"
Home Office,Home Office,24/10/2011,Other Government Department,SSD - Shared Services Directorate,IDENTITY & PASSPORTS SERVICE,1001170966,"76,456.00"
Home Office,Home Office,27/10/2011,"Building, Construction Service.General building construction.",SSD - Shared Services Directorate,INTERSERVE CONSTRUCTION LTD,1001172710,"11,395.26"
Home Office,Home Office,27/10/2011,"Building, Construction Service.General building construction.",SSD - Shared Services Directorate,INTERSERVE CONSTRUCTION LTD,1001172710,"116,528.40"
Home Office,Home Office,14/10/2011,"Building, Construction Service.Building, Construction Service - PROG",SSD - Shared Services Directorate,INTERSERVE FACILITIES MANAGEMENT,1001167471,"77,395.62"
Home Office,Home Office,14/10/2011,"Building, Construction Service.Building, Construction Service - PROG",SSD - Shared Services Directorate,INTERSERVE FACILITIES MANAGEMENT,1001167471,"108,278.97"
Home Office,Home Office,06/10/2011,Professional & Admin Services.Facilities Man Serv - ADMN,SSD - Shared Services Directorate,INTERSERVE FACILITIES MANAGEMENT,1001164150,"234,146.17"
Home Office,Home Office,07/10/2011,Professional & Admin Services.Facilities Man Serv - ADMN,SSD - Shared Services Directorate,INTERSERVE FACILITIES MANAGEMENT,1001164605,"95,652.99"
Home Office,Home Office,14/10/2011,"Building, Construction Service.Building, Construction Service - PROG",SSD - Shared Services Directorate,INTERSERVE FACILITIES MANAGEMENT,1001167471,"84,887.50"
Home Office,Home Office,04/10/2011,"Building, Construction Service.Building ConstructionServ-ADMN",SSD - Shared Services Directorate,INTERSERVE FACILITIES MANAGEMENT,1001162714,"21,608.54"
Home Office,Home Office,26/10/2011,"Building, Construction Service.Building, Construction Service - PROG",SSD - Shared Services Directorate,INTERSERVE FACILITIES MANAGEMENT,1001172245,"43,072.61"
Home Office,Home Office,18/10/2011,"Building, Construction Service.Building, Construction Service - PROG",SSD - Shared Services Directorate,INTERSERVE FACILITIES MANAGEMENT,1001168640,"116,631.23"
Home Office,Home Office,18/10/2011,"Building, Construction Service.Building, Construction Service - PROG",SSD - Shared Services Directorate,INTERSERVE FACILITIES MANAGEMENT,1001168640,"63,757.50"
Home Office,Home Office,04/10/2011,"Building, Construction Service.Building ConstructionServ-ADMN",SSD - Shared Services Directorate,INTERSERVE FACILITIES MANAGEMENT,1001162714,"99,237.25"
Home Office,Home Office,04/10/2011,"Building, Construction Service.Building ConstructionServ-ADMN",SSD - Shared Services Directorate,INTERSERVE FACILITIES MANAGEMENT,1001162714,"41,046.38"
Home Office,Home Office,04/10/2011,"Building, Construction Service.Building ConstructionServ-ADMN",SSD - Shared Services Directorate,INTERSERVE FACILITIES MANAGEMENT,1001162714,"126,915.78"
Home Office,Home Office,04/10/2011,"Building, Construction Service.Building ConstructionServ-ADMN",SSD - Shared Services Directorate,INTERSERVE FACILITIES MANAGEMENT,1001162714,"40,696.05"
Home Office,Home Office,31/10/2011,"Building, Construction Service.Building, Construction Service - PROG",SSD - Shared Services Directorate,INTERSERVE FACILITIES MANAGEMENT,1001173685,"46,529.84"
Home Office,Home Office,31/10/2011,"Building, Construction Service.Building, Construction Service - PROG",SSD - Shared Services Directorate,INTERSERVE FACILITIES MANAGEMENT,1001173685,"27,451.39"
Home Office,Home Office,31/10/2011,"Building, Construction Service.Building, Construction Service - PROG",SSD - Shared Services Directorate,INTERSERVE FACILITIES MANAGEMENT,1001173685,"66,371.81"
Home Office,Home Office,31/10/2011,"Building, Construction Service.Building, Construction Service - PROG",SSD - Shared Services Directorate,INTERSERVE FACILITIES MANAGEMENT,1001173685,"64,612.37"
Home Office,Home Office,31/10/2011,"Building, Construction Service.Building, Construction Service - PROG",SSD - Shared Services Directorate,INTERSERVE FACILITIES MANAGEMENT,1001173685,"39,355.22"
Home Office,Home Office,10/10/2011,"Building, Construction Service.Building ConstructionServ-ADMN",SSD - Shared Services Directorate,INTERSERVE FACILITIES MANAGEMENT,1001165198,"39,707.49"
Home Office,Home Office,24/10/2011,"Building, Construction Service.Building ConstructionServ-ADMN",SSD - Shared Services Directorate,INTERSERVE FACILITIES MANAGEMENT,1001170968,"51,947.27"
Home Office,Home Office,19/10/2011,"Building, Construction Service.Building ConstructionServ-ADMN",SSD - Shared Services Directorate,INTERSERVE FACILITIES MANAGEMENT,1001169393,"53,188.57"
Home Office,Home Office,07/10/2011,"Building, Construction Service.General building construction.",SSD - Shared Services Directorate,LIFTEC LIFTS LTD,1001164616,"64,423.20"
Home Office,Home Office,18/10/2011,"Building, Construction Service.Building, Construction Service - PROG",SSD - Shared Services Directorate,MIDDLETON MAINTENANCE SERVICES LTD,1001168677,"55,207.68"
Home Office,Home Office,10/10/2011,"Building, Construction Service.General building construction.",SSD - Shared Services Directorate,OFFICE PROJECTS LIMITED,1001165219,"72,479.21"
Home Office,Home Office,04/10/2011,"IT, Broadcasting & Telecomms.IT Running Cost - Maint - PROG",SSD - Shared Services Directorate,SAVVIS UK LTD,1001162771,"16,671.67"
Home Office,Home Office,04/10/2011,"IT, Broadcasting & Telecomms.IT Running Cost - Maint - PROG",SSD - Shared Services Directorate,SAVVIS UK LTD,1001162771,"2,969.20"
Home Office,Home Office,04/10/2011,"IT, Broadcasting & Telecomms.IT Running Cost - Maint - PROG",SSD - Shared Services Directorate,SAVVIS UK LTD,1001162771,"1,982.70"
Home Office,Home Office,04/10/2011,"IT, Broadcasting & Telecomms.IT Running Cost - Maint - PROG",SSD - Shared Services Directorate,SAVVIS UK LTD,1001162771,"35,038.99"
Home Office,Home Office,04/10/2011,"IT, Broadcasting & Telecomms.IT Running Cost - Maint - PROG",SSD - Shared Services Directorate,SAVVIS UK LTD,1001162771,"1,869.00"
Home Office,Home Office,04/10/2011,"IT, Broadcasting & Telecomms.IT Running Cost - Maint - PROG",SSD - Shared Services Directorate,SAVVIS UK LTD,1001162771,"36,939.43"
Home Office,Home Office,04/10/2011,"IT, Broadcasting & Telecomms.IT Running Cost - Maint - PROG",SSD - Shared Services Directorate,SAVVIS UK LTD,1001162771,"4,980.41"
Home Office,Home Office,04/10/2011,"IT, Broadcasting & Telecomms.IT Running Cost - Maint - PROG",SSD - Shared Services Directorate,SAVVIS UK LTD,1001162771,"6,600.00"
Home Office,Home Office,04/10/2011,"IT, Broadcasting & Telecomms.IT Running Cost - Maint - PROG",SSD - Shared Services Directorate,SAVVIS UK LTD,1001162771,"19,436.54"
Home Office,Home Office,04/10/2011,"IT, Broadcasting & Telecomms.IT Running Cost - Maint - PROG",SSD - Shared Services Directorate,SAVVIS UK LTD,1001162771,"56,711.18"
Home Office,Home Office,04/10/2011,"IT, Broadcasting & Telecomms.IT Running Cost - Maint - PROG",SSD - Shared Services Directorate,SAVVIS UK LTD,1001162771,"14,776.51"
Home Office,Home Office,04/10/2011,"IT, Broadcasting & Telecomms.IT Running Cost - Maint - PROG",SSD - Shared Services Directorate,SAVVIS UK LTD,1001162771,"12,014.30"
Home Office,Home Office,04/10/2011,"IT, Broadcasting & Telecomms.IT Running Cost - Maint - PROG",SSD - Shared Services Directorate,SAVVIS UK LTD,1001162771,"13,110.00"
Home Office,Home Office,04/10/2011,"IT, Broadcasting & Telecomms.IT Running Cost - Maint - PROG",SSD - Shared Services Directorate,SAVVIS UK LTD,1001162771,"16,667.33"
Home Office,Home Office,04/10/2011,"IT, Broadcasting & Telecomms.IT Running Cost - Maint - PROG",SSD - Shared Services Directorate,SAVVIS UK LTD,1001162771,"2,636.03"
Home Office,Home Office,04/10/2011,"IT, Broadcasting & Telecomms.IT Running Cost - Maint - PROG",SSD - Shared Services Directorate,SAVVIS UK LTD,1001162771,"-4,980.41"
Home Office,Home Office,04/10/2011,"IT, Broadcasting & Telecomms.IT Running Cost - Maint - PROG",SSD - Shared Services Directorate,SAVVIS UK LTD,1001162771,"-6,600.00"
Home Office,Home Office,04/10/2011,"IT, Broadcasting & Telecomms.IT Running Cost - Maint - PROG",SSD - Shared Services Directorate,SAVVIS UK LTD,1001162771,"-19,436.54"
Home Office,Home Office,04/10/2011,"IT, Broadcasting & Telecomms.IT Running Cost - Maint - PROG",SSD - Shared Services Directorate,SAVVIS UK LTD,1001162771,"-56,711.18"
Home Office,Home Office,04/10/2011,"IT, Broadcasting & Telecomms.IT Running Cost - Maint - PROG",SSD - Shared Services Directorate,SAVVIS UK LTD,1001162771,"-14,776.51"
Home Office,Home Office,04/10/2011,"IT, Broadcasting & Telecomms.IT Running Cost - Maint - PROG",SSD - Shared Services Directorate,SAVVIS UK LTD,1001162771,"-12,014.30"
Home Office,Home Office,04/10/2011,"IT, Broadcasting & Telecomms.IT Running Cost - Maint - PROG",SSD - Shared Services Directorate,SAVVIS UK LTD,1001162771,"-13,110.00"
Home Office,Home Office,04/10/2011,"IT, Broadcasting & Telecomms.IT Running Cost - Maint - PROG",SSD - Shared Services Directorate,SAVVIS UK LTD,1001162771,"-16,667.33"
Home Office,Home Office,04/10/2011,"IT, Broadcasting & Telecomms.IT Running Cost - Maint - PROG",SSD - Shared Services Directorate,SAVVIS UK LTD,1001162771,"-2,636.03"
Home Office,Home Office,04/10/2011,"IT, Broadcasting & Telecomms.IT Running Cost - Maint - PROG",SSD - Shared Services Directorate,SAVVIS UK LTD,1001162771,"4,980.41"
Home Office,Home Office,04/10/2011,"IT, Broadcasting & Telecomms.IT Running Cost - Maint - PROG",SSD - Shared Services Directorate,SAVVIS UK LTD,1001162771,"6,600.00"
Home Office,Home Office,04/10/2011,"IT, Broadcasting & Telecomms.IT Running Cost - Maint - PROG",SSD - Shared Services Directorate,SAVVIS UK LTD,1001162771,"19,436.54"
Home Office,Home Office,04/10/2011,"IT, Broadcasting & Telecomms.IT Running Cost - Maint - PROG",SSD - Shared Services Directorate,SAVVIS UK LTD,1001162771,"55,268.40"
Home Office,Home Office,04/10/2011,"IT, Broadcasting & Telecomms.IT Running Cost - Maint - PROG",SSD - Shared Services Directorate,SAVVIS UK LTD,1001162771,"14,776.51"
Home Office,Home Office,04/10/2011,"IT, Broadcasting & Telecomms.IT Running Cost - Maint - PROG",SSD - Shared Services Directorate,SAVVIS UK LTD,1001162771,"12,014.30"
Home Office,Home Office,04/10/2011,"IT, Broadcasting & Telecomms.IT Running Cost - Maint - PROG",SSD - Shared Services Directorate,SAVVIS UK LTD,1001162771,"13,110.00"
Home Office,Home Office,04/10/2011,"IT, Broadcasting & Telecomms.IT Running Cost - Maint - PROG",SSD - Shared Services Directorate,SAVVIS UK LTD,1001162771,"16,667.33"
Home Office,Home Office,04/10/2011,"IT, Broadcasting & Telecomms.IT Running Cost - Maint - PROG",SSD - Shared Services Directorate,SAVVIS UK LTD,1001162771,"2,636.03"
Home Office,Home Office,12/10/2011,"IT, Broadcasting & Telecomms. IT Run Cost Info Support-PROG",SSD - Shared Services Directorate,SERCO  LTD,1001166480,"5,058.00"
Home Office,Home Office,12/10/2011,"IT, Broadcasting & Telecomms. IT Run Cost Info Support-PROG",SSD - Shared Services Directorate,SERCO  LTD,1001166480,"1,377.25"
Home Office,Home Office,12/10/2011,"IT, Broadcasting & Telecomms. IT Run Cost Info Support-PROG",SSD - Shared Services Directorate,SERCO  LTD,1001166480,"67,646.33"
Home Office,Home Office,12/10/2011,"IT, Broadcasting & Telecomms. IT Run Cost Info Support-PROG",SSD - Shared Services Directorate,SERCO  LTD,1001166480,"26,783.17"
Home Office,Home Office,12/10/2011,"IT, Broadcasting & Telecomms. IT Run Cost Info Support-PROG",SSD - Shared Services Directorate,SERCO  LTD,1001166480,"221,581.00"
Home Office,Home Office,12/10/2011,"IT, Broadcasting & Telecomms. IT Run Cost Info Support-PROG",SSD - Shared Services Directorate,SERCO  LTD,1001166480,"142,710.75"
Home Office,Home Office,12/10/2011,"IT, Broadcasting & Telecomms. IT Run Cost Info Support-PROG",SSD - Shared Services Directorate,SERCO  LTD,1001166480,"58,305.50"
Home Office,Home Office,24/10/2011,Mobile Phone,PFD*,VODAFONE CORPORATE,1001171016,"224,495.73"
Home Office,Home Office,27/10/2011,Mobile Phone,PFD*,VODAFONE CORPORATE,1001172760,"238,420.01"
Home Office,Home Office,05/10/2011,GPC Card,PFD*,BARCLAYS BANK,1001163683,"298,619.06"
Home Office,Home Office,26/10/2011,Grant - Olympic Security,OSCT - Office of Security and Counter-Terrorism,ACPO (G),1001172125,"80,199.00"
Home Office,Home Office,21/10/2011,Healthcare Services.Healthcare Services - PROG,OSCT - Office of Security and Counter-Terrorism,ATOMIC WEAPONS ESTABLISHMENT (AWE) PLC,1001170399,"82,800.00"
Home Office,Home Office,31/10/2011,Grant - Prevent,OSCT - Office of Security and Counter-Terrorism,BIRMINGHAM CITY COUNCIL (G),1001173642,"29,510.52"
Home Office,Home Office,27/10/2011,Grant - Olympic Security,OSCT - Office of Security and Counter-Terrorism,CABINET OFFICE (G),1001172932,"147,971.00"
Home Office,Home Office,27/10/2011,Grant - Olympic Security,OSCT - Office of Security and Counter-Terrorism,CABINET OFFICE (G),1001172932,"577,672.00"
Home Office,Home Office,19/10/2011,Education & Training Services.Training Dev External - PROG,OSCT - Office of Security and Counter-Terrorism,COI COMMUNICATIONS,3000043627,"83,934.36"
Home Office,Home Office,17/10/2011,Professional & Admin Services.Consultancy - Advice - PROG,OSCT - Office of Security and Counter-Terrorism,CT CENTRE (MOD) T/A DSTL,1001168007,"101,225.79"
Home Office,Home Office,28/10/2011,Social Research,OSCT - Office of Security and Counter-Terrorism,CT CENTRE (MOD) T/A DSTL,1001173212,"72,000.00"
Home Office,Home Office,04/10/2011,"Messenger, Portering and Reception Services",OSCT - Office of Security and Counter-Terrorism,CT CENTRE (MOD) T/A DSTL,1001162671,"415,359.04"
Home Office,Home Office,17/10/2011,Professional & Admin Services.Consultancy - Advice - PROG,OSCT - Office of Security and Counter-Terrorism,CT CENTRE (MOD) T/A DSTL,1001168007,"165,050.42"
Home Office,Home Office,17/10/2011,Professional & Admin Services.Consultancy - Advice - PROG,OSCT - Office of Security and Counter-Terrorism,CT CENTRE (MOD) T/A DSTL,1001168007,"11,403.49"
Home Office,Home Office,24/10/2011,MoU - Prevent,OSCT - Office of Security and Counter-Terrorism,DEPARTMENT OF HEALTH (G),3000043644,"172,509.94"
Home Office,Home Office,20/10/2011,Professional & Admin Services.Seconded in Staff costs.ADMN,OSCT - Office of Security and Counter-Terrorism,FOREIGN AND COMMONWEALTH OFFICE,1001169877,"55,431.28"
Home Office,Home Office,18/10/2011,Professional & Admin Services.Consultant - Imp & Del - ADMN,OSCT - Office of Security and Counter-Terrorism,KPMG LLP,1001168647,"50,587.20"
Home Office,Home Office,18/10/2011,Professional & Admin Services.Consultant - Imp & Del - ADMN,OSCT - Office of Security and Counter-Terrorism,KPMG LLP,1001168647,"96,736.80"
Home Office,Home Office,18/10/2011,Professional & Admin Services.Consultant - Imp & Del - ADMN,OSCT - Office of Security and Counter-Terrorism,KPMG LLP,1001168647,"60,705.60"
Home Office,Home Office,18/10/2011,Professional & Admin Services.Consultant - Imp & Del - ADMN,OSCT - Office of Security and Counter-Terrorism,KPMG LLP,1001168647,"145,659.60"
Home Office,Home Office,27/10/2011,Professional & Admin Services.Consultant - Imp & Del - ADMN,OSCT - Office of Security and Counter-Terrorism,KPMG LLP,1001172717,"113,952.00"
Home Office,Home Office,10/10/2011,Grant - Olympic Security,OSCT - Office of Security and Counter-Terrorism,LONDON ORGANISING COMMITTEE OF THE OLYMPIC GAMES AND PARALYMPIC GAMES (G),1001165615,"8,678,056.96"
Home Office,Home Office,25/10/2011,Professional & Admin Services.Seconded in Staff costs.ADMN,OSCT - Office of Security and Counter-Terrorism,METROPOLITAN POLICE AUTHORITY,1001171605,"86,880.58"
Home Office,Home Office,27/10/2011,Grant - Olympic Security,OSCT - Office of Security and Counter-Terrorism,METROPOLITAN POLICE AUTHORITY  (G),1001172958,"1,131,354.00"
Home Office,Home Office,27/10/2011,Grant - Olympic Security,OSCT - Office of Security and Counter-Terrorism,METROPOLITAN POLICE AUTHORITY  (G),1001172958,"954,302.00"
Home Office,Home Office,27/10/2011,Grant - Olympic Security,OSCT - Office of Security and Counter-Terrorism,METROPOLITAN POLICE AUTHORITY  (G),1001172958,"102,417.00"
Home Office,Home Office,26/10/2011,Grant - Olympic Security,OSCT - Office of Security and Counter-Terrorism,METROPOLITAN POLICE AUTHORITY  (G),1001172165,"27,398.00"
Home Office,Home Office,26/10/2011,Grant - Olympic Security,OSCT - Office of Security and Counter-Terrorism,METROPOLITAN POLICE AUTHORITY  (G),1001172165,"35,042.00"
Home Office,Home Office,13/10/2011,Healthcare Services.Healthcare Services - PROG,OSCT - Office of Security and Counter-Terrorism,THE FOOD AND ENVIRONMENT RESEARCH AGENCY,1001167030,"78,825.95"
Home Office,Home Office,26/09/2011,Grant,CPG - Crime & Policing Group,INDEPENDENT CUSTODY VISITING ASSN (G),1001159789,"41,349.00"
Home Office,Home Office,06/09/2011,Grant,CPG - Crime & Policing Group,PRICE WATERHOUSE COOPERS LLP,1001152686,"233,709.60"
Home Office,Home Office,06/09/2011,Grant,CPG - Crime & Policing Group,PRICE WATERHOUSE COOPERS LLP,1001152686,532.8
Home Office,Home Office,05/09/2011,Grant,CPG - Crime & Policing Group,COMMUNITIES & LOCAL GOVERNMENT (G),3000043389,"4,735,973.00"
Home Office,Home Office,26/09/2011,Grant,CPG - Crime & Policing Group,BRIDGEND COUNTY BOROUGH COUNCIL 1 (G),1001159763,"27,732.25"
Home Office,Home Office,26/09/2011,Grant,CPG - Crime & Policing Group,CAERPHILLY COUNTY BOROUGH COUNCIL (G),1001159764,"35,471.75"
Home Office,Home Office,26/09/2011,Grant,CPG - Crime & Policing Group,CARDIFF COUNTY COUNCIL 1 (G),1001159766,"73,623.25"
Home Office,Home Office,30/09/2011,Grant,CPG - Crime & Policing Group,COMMUNITY DEV FOUNDATION,1001162079,"36,000.00"
Home Office,Home Office,26/09/2011,Grant,CPG - Crime & Policing Group,NEWPORT COUNTY BOROUGH COUNCIL 1 (G),1001159798,"34,623.25"
Home Office,Home Office,26/09/2011,Grant,CPG - Crime & Policing Group,RHONDDA CYNON TAFF (G),1001159809,"40,694.00"
Home Office,Home Office,26/09/2011,Grant,CPG - Crime & Policing Group,WREXHAM COUNTY BOROUGH COUNCIL (G),1001159823,"27,354.75"
Home Office,Home Office,02/09/2011,Grant,CPG - Crime & Policing Group,PRICE WATERHOUSE COOPERS LLP,1001151703,"36,000.00"
Home Office,Home Office,22/09/2011,Grant,CPG - Crime & Policing Group,PNB STAFF SIDE (G),1001159119,"31,363.00"
Home Office,Home Office,22/09/2011,Grant,CPG - Crime & Policing Group,POLICE FEDERATION OF ENGLAND & WALES (G),1001159120,"49,655.75"
Home Office,Home Office,22/09/2011,Grant,CPG - Crime & Policing Group,SUPERINTENDENTS ASSOCIATION (G),1001159128,"165,687.50"
Home Office,Home Office,13/09/2011,Grant,CPG - Crime & Policing Group,SOCA (G),1001155527,"29,000,000.00"
Home Office,Home Office,27/09/2011,Grant,CPG - Crime & Policing Group,AVON & SOMERSET CONSTABULARY (G),1001160850,"54,481.70"
Home Office,Home Office,27/09/2011,Grant,CPG - Crime & Policing Group,BEDFORDSHIRE POLICE AUTHORITY 1 (G),1001160851,"40,992.73"
Home Office,Home Office,27/09/2011,Grant,CPG - Crime & Policing Group,BIRMINGHAM CITY COUNCIL (G),1001160852,"108,888.86"
Home Office,Home Office,27/09/2011,Grant,CPG - Crime & Policing Group,BRENT AND HARROW TRADING STANDARDS SERVICE (G),1001160854,"78,065.25"
Home Office,Home Office,27/09/2011,Grant,CPG - Crime & Policing Group,BRITISH TRANSPORT POLICE AUTHORITY (G),1001160856,"30,214.86"
Home Office,Home Office,27/09/2011,Grant,CPG - Crime & Policing Group,CENTRAL BEDFORDSHIRE COUNCIL (G),1001160860,"77,485.21"
Home Office,Home Office,27/09/2011,Grant,CPG - Crime & Policing Group,CHESHIRE POLICE AUTHORITY 2 (G),1001160863,"113,795.67"
Home Office,Home Office,27/09/2011,Grant,CPG - Crime & Policing Group,CLEVELAND POLICE AUTHORITY 1 (G),1001160865,"29,994.52"
Home Office,Home Office,29/09/2011,Grant,CPG - Crime & Policing Group,CROWN PROSECUTION SERVICE (G),3000043530,"3,806,047.79"
Home Office,Home Office,29/09/2011,Grant,CPG - Crime & Policing Group,DEPARTMENT FOR ENVIRONMENT FOOD AND RURAL AFFAIRS (G),3000043532,"82,160.46"
Home Office,Home Office,29/09/2011,Grant,CPG - Crime & Policing Group,DEPARTMENT OF WORK & PENSIONS (G),3000043533,"273,023.91"
Home Office,Home Office,27/09/2011,Grant,CPG - Crime & Policing Group,DERBYSHIRE POLICE AUTHORITY 1 (G),1001160868,"63,661.36"
Home Office,Home Office,27/09/2011,Grant,CPG - Crime & Policing Group,DEVON & CORNWALL CONSTABULARY 4 (G),1001160869,"88,737.57"
Home Office,Home Office,27/09/2011,Grant,CPG - Crime & Policing Group,DORSET POLICE AUTHORITY 1 (G),1001160871,"40,176.98"
Home Office,Home Office,27/09/2011,Grant,CPG - Crime & Policing Group,DYFED POWYS POLICE AUTHORITY 1 (G),1001160873,"54,349.24"
Home Office,Home Office,27/09/2011,Grant,CPG - Crime & Policing Group,ENVIRONMENT AGENCY (G),1001160874,"59,518.21"
Home Office,Home Office,27/09/2011,Grant,CPG - Crime & Policing Group,ESSEX POLICE AUTHORITY (G),1001160875,"58,554.63"
Home Office,Home Office,27/09/2011,Grant,CPG - Crime & Policing Group,GLOUCESTERSHIRE POLICE AUTHORITY (G),1001160877,"27,316.02"
Home Office,Home Office,27/09/2011,Grant,CPG - Crime & Policing Group,GREATER MANCHESTER POLICE AUTHORITY (G),1001160878,"204,713.95"
Home Office,Home Office,27/09/2011,Grant,CPG - Crime & Policing Group,GWENT POLICE AUTHORITY 1 (G),1001160879,"39,078.83"
Home Office,Home Office,27/09/2011,Grant,CPG - Crime & Policing Group,HAMPSHIRE POLICE AUTHORITY 1 (G),1001160881,"75,923.33"
Home Office,Home Office,27/09/2011,Grant,CPG - Crime & Policing Group,HERTFORDSHIRE COUNTY COUNCIL 1 (G),1001160883,"157,741.64"
Home Office,Home Office,27/09/2011,Grant,CPG - Crime & Policing Group,HERTFORDSHIRE POLICE AUTHORITY 1 (G),1001160884,"108,368.34"
Home Office,Home Office,29/09/2011,Grant,CPG - Crime & Policing Group,HM REVENUE & CUSTOMS (G),3000043536,"1,867,106.35"
Home Office,Home Office,27/09/2011,Grant,CPG - Crime & Policing Group,HUMBERSIDE POLICE AUTHORITY 1 (G),1001160885,"166,606.77"
Home Office,Home Office,27/09/2011,Grant,CPG - Crime & Policing Group,KENT POLICE AUTHORITY 1 (G),1001160886,"187,090.00"
Home Office,Home Office,27/09/2011,Grant,CPG - Crime & Policing Group,LANCASHIRE POLICE AUTHORITY 1 (G),1001160888,"178,145.52"
Home Office,Home Office,27/09/2011,Grant,CPG - Crime & Policing Group,LEICESTERSHIRE POLICE AUTHORITY (G),1001160890,"56,894.86"
Home Office,Home Office,27/09/2011,Grant,CPG - Crime & Policing Group,MERSEYSIDE POLICE AUTHORITY 1 (G),1001160903,"327,285.18"
Home Office,Home Office,27/09/2011,Grant,CPG - Crime & Policing Group,METROPOLITAN POLICE SERVICE (G),1001160904,"3,230,135.08"
Home Office,Home Office,29/09/2011,Grant,CPG - Crime & Policing Group,MINISTRY OF JUSTICE,3000043540,"2,778,244.92"
Home Office,Home Office,27/09/2011,Grant,CPG - Crime & Policing Group,NEW WEST MERCIA POLICE AUTHORITY (G),1001160907,"47,042.23"
Home Office,Home Office,27/09/2011,Grant,CPG - Crime & Policing Group,NORFOLK POLICE AUTHORITY 1 (G),1001160909,"50,933.52"
Home Office,Home Office,27/09/2011,Grant,CPG - Crime & Policing Group,NORTH WALES POLICE AUTHORITY (G),1001160910,"29,981.27"
Home Office,Home Office,27/09/2011,Grant,CPG - Crime & Policing Group,NORTH YORKSHIRE POLICE AUTHORITY (G),1001160912,"43,130.39"
Home Office,Home Office,27/09/2011,Grant,CPG - Crime & Policing Group,NORTHUMBRIA POLICE (G),1001160914,"131,230.57"
Home Office,Home Office,27/09/2011,Grant,CPG - Crime & Policing Group,POLICE SERVICE OF NORTHERN IRELAND (G),1001160918,"40,453.45"
Home Office,Home Office,29/09/2011,Grant,CPG - Crime & Policing Group,SERIOUS FRAUD OFFICE (G),3000043543,"81,533.39"
Home Office,Home Office,27/09/2011,Grant,CPG - Crime & Policing Group,SOCA (G),1001160925,"1,301,005.18"
Home Office,Home Office,27/09/2011,Grant,CPG - Crime & Policing Group,SOUTH WALES POLICE AUTHORITY 1 (G),1001160926,"74,998.12"
Home Office,Home Office,27/09/2011,Grant,CPG - Crime & Policing Group,SOUTH YORKSHIRE POLICE AUTHORITY 1 (G),1001160927,"45,388.23"
Home Office,Home Office,27/09/2011,Grant,CPG - Crime & Policing Group,STAFFORDSHIRE POLICE AUTHORITY (G),1001160929,"27,791.86"
Home Office,Home Office,27/09/2011,Grant,CPG - Crime & Policing Group,STOCKPORT METRO BOROUGH COUNCIL (G),1001160930,"73,856.25"
Home Office,Home Office,27/09/2011,Grant,CPG - Crime & Policing Group,SURREY POLICE AUTHORITY 1 (G),1001160933,"54,319.12"
Home Office,Home Office,27/09/2011,Grant,CPG - Crime & Policing Group,SUSSEX POLICE AUTHORITY 1 (G),1001160934,"128,188.57"
Home Office,Home Office,27/09/2011,Grant,CPG - Crime & Policing Group,THAMES VALLEY POLICE (G),1001160935,"101,918.52"
Home Office,Home Office,27/09/2011,Grant,CPG - Crime & Policing Group,TRAFFORD METROPOLITAN BOROUGH COUNCIL (G),1001160936,"32,180.49"
Home Office,Home Office,27/09/2011,Grant,CPG - Crime & Policing Group,WARWICKSHIRE POLICE AUTHORITY 1 (G),1001160938,"69,377.64"
Home Office,Home Office,27/09/2011,Grant,CPG - Crime & Policing Group,WEST MIDLANDS POLICE AUTHORITY 1 (G),1001160939,"463,432.85"
Home Office,Home Office,27/09/2011,Grant,CPG - Crime & Policing Group,WEST YORKSHIRE POLICE (G),1001160940,"212,742.66"
Home Office,Home Office,27/09/2011,Grant,CPG - Crime & Policing Group,WILTSHIRE CONSTABULARY (G),1001160941,"48,115.87"
Home Office,Home Office,26/09/2011,Grant,CPG - Crime & Policing Group,AVON & SOMERSET POLICE AUTHORITY 1 (G),1001159760,"1,838,997.00"
Home Office,Home Office,26/09/2011,Grant,CPG - Crime & Policing Group,BEDFORDSHIRE POLICE AUTHORITY 1 (G),1001159761,"690,798.00"
Home Office,Home Office,26/09/2011,Grant,CPG - Crime & Policing Group,CAMBRIDGESHIRE POLICE AUTHORITY 1 (G),1001159765,"913,984.00"
Home Office,Home Office,26/09/2011,Grant,CPG - Crime & Policing Group,CHAMBERLAIN OF LONDON (G),1001159769,"317,178.00"
Home Office,Home Office,26/09/2011,Grant,CPG - Crime & Policing Group,CHESHIRE POLICE AUTHORITY 2 (G),1001159770,"1,212,159.00"
Home Office,Home Office,26/09/2011,Grant,CPG - Crime & Policing Group,CLEVELAND POLICE AUTHORITY 1 (G),1001159771,"741,320.00"
Home Office,Home Office,26/09/2011,Grant,CPG - Crime & Policing Group,CUMBRIA POLICE AUTHORITY 1 (G),1001159773,"587,213.00"
Home Office,Home Office,26/09/2011,Grant,CPG - Crime & Policing Group,DERBYSHIRE POLICE AUTHORITY 1 (G),1001159774,"920,030.00"
Home Office,Home Office,26/09/2011,Grant,CPG - Crime & Policing Group,DEVON & CORNWALL POLICE AUTHORITY 1 (G),1001159775,"1,882,377.00"
Home Office,Home Office,26/09/2011,Grant,CPG - Crime & Policing Group,DORSET POLICE AUTHORITY 1 (G),1001159776,"816,222.00"
Home Office,Home Office,26/09/2011,Grant,CPG - Crime & Policing Group,DURHAM POLICE AUTHORITY 1 (G),1001159778,"833,951.00"
Home Office,Home Office,26/09/2011,Grant,CPG - Crime & Policing Group,DYFED POWYS POLICE AUTHORITY 1 (G),1001159779,"411,585.00"
Home Office,Home Office,26/09/2011,Grant,CPG - Crime & Policing Group,ESSEX POLICE AUTHORITY (G),1001159780,"1,803,448.00"
Home Office,Home Office,26/09/2011,Grant,CPG - Crime & Policing Group,GLOUCESTERSHIRE POLICE AUTHORITY (G),1001159781,"800,579.00"
Home Office,Home Office,26/09/2011,Grant,CPG - Crime & Policing Group,GREATER LONDON AUTHORITY (G),1001159782,"23,855,322.00"
Home Office,Home Office,26/09/2011,Grant,CPG - Crime & Policing Group,GREATER MANCHESTER POLICE AUTHORITY (G),1001159783,"4,349,094.00"
Home Office,Home Office,26/09/2011,Grant,CPG - Crime & Policing Group,GWENT POLICE AUTHORITY 1 (G),1001159784,"740,674.00"
Home Office,Home Office,26/09/2011,Grant,CPG - Crime & Policing Group,HAMPSHIRE POLICE AUTHORITY 1 (G),1001159786,"1,902,306.00"
Home Office,Home Office,26/09/2011,Grant,CPG - Crime & Policing Group,HERTFORDSHIRE POLICE AUTHORITY 1 (G),1001159787,"1,333,658.00"
Home Office,Home Office,26/09/2011,Grant,CPG - Crime & Policing Group,HUMBERSIDE POLICE AUTHORITY 1 (G),1001159788,"1,190,299.00"
Home Office,Home Office,26/09/2011,Grant,CPG - Crime & Policing Group,KENT POLICE AUTHORITY 1 (G),1001159791,"2,013,205.00"
Home Office,Home Office,26/09/2011,Grant,CPG - Crime & Policing Group,LANCASHIRE POLICE AUTHORITY 1 (G),1001159792,"2,052,860.00"
Home Office,Home Office,26/09/2011,Grant,CPG - Crime & Policing Group,LEICESTERSHIRE POLICE AUTHORITY (G),1001159793,"1,180,692.00"
Home Office,Home Office,26/09/2011,Grant,CPG - Crime & Policing Group,LINCOLNSHIRE POLICE AUTHORITY 1 (G),1001159794,"716,868.00"
Home Office,Home Office,26/09/2011,Grant,CPG - Crime & Policing Group,MERSEYSIDE POLICE AUTHORITY 1 (G),1001159795,"2,470,952.00"
Home Office,Home Office,26/09/2011,Grant,CPG - Crime & Policing Group,NEW WEST MERCIA POLICE AUTHORITY (G),1001159797,"1,338,980.00"
Home Office,Home Office,26/09/2011,Grant,CPG - Crime & Policing Group,NORFOLK POLICE AUTHORITY 1 (G),1001159799,"989,091.00"
Home Office,Home Office,26/09/2011,Grant,CPG - Crime & Policing Group,NORTH WALES POLICE AUTHORITY (G),1001159801,"834,452.00"
Home Office,Home Office,26/09/2011,Grant,CPG - Crime & Policing Group,NORTH YORKSHIRE POLICE AUTHORITY (G),1001159802,"855,427.00"
Home Office,Home Office,26/09/2011,Grant,CPG - Crime & Policing Group,NORTHAMPTONSHIRE POLICE 1 (G),1001159803,"762,420.00"
Home Office,Home Office,26/09/2011,Grant,CPG - Crime & Policing Group,NORTHUMBRIA POLICE (G),1001159804,"2,244,073.00"
Home Office,Home Office,26/09/2011,Grant,CPG - Crime & Policing Group,NOTTINGHAMSHIRE POLICE AUTHORITY 2 (G),1001159805,"1,371,800.00"
Home Office,Home Office,26/09/2011,Grant,CPG - Crime & Policing Group,SOUTH WALES POLICE AUTHORITY 1 (G),1001159810,"1,682,153.00"
Home Office,Home Office,26/09/2011,Grant,CPG - Crime & Policing Group,SOUTH YORKSHIRE POLICE AUTHORITY 1 (G),1001159811,"1,649,541.00"
Home Office,Home Office,26/09/2011,Grant,CPG - Crime & Policing Group,STAFFORDSHIRE POLICE AUTHORITY (G),1001159812,"1,119,460.00"
Home Office,Home Office,26/09/2011,Grant,CPG - Crime & Policing Group,SUFFOLK POLICE AUTHORITY (G),1001159813,"767,982.00"
Home Office,Home Office,26/09/2011,Grant,CPG - Crime & Policing Group,SURREY POLICE AUTHORITY 1 (G),1001159814,"1,111,372.00"
Home Office,Home Office,26/09/2011,Grant,CPG - Crime & Policing Group,SUSSEX POLICE AUTHORITY 1 (G),1001159815,"1,807,832.00"
Home Office,Home Office,26/09/2011,Grant,CPG - Crime & Policing Group,THAMES VALLEY POLICE (G),1001159816,"2,294,570.00"
Home Office,Home Office,26/09/2011,Grant,CPG - Crime & Policing Group,WARWICKSHIRE POLICE AUTHORITY 1 (G),1001159819,"693,099.00"
Home Office,Home Office,26/09/2011,Grant,CPG - Crime & Policing Group,WEST MIDLANDS POLICE AUTHORITY 1 (G),1001159820,"3,999,603.00"
Home Office,Home Office,26/09/2011,Grant,CPG - Crime & Policing Group,WEST YORKSHIRE POLICE (G),1001159821,"3,585,121.00"
Home Office,Home Office,26/09/2011,Grant,CPG - Crime & Policing Group,WILTSHIRE CONSTABULARY (G),1001159822,"705,302.00"
Home Office,Home Office,22/09/2011,Grant,CPG - Crime & Policing Group,BROKEN RAINBOW (G),1001159098,"60,000.00"
Home Office,Home Office,26/09/2011,Grant,CPG - Crime & Policing Group,RESPECT (G),1001159808,"60,000.00"
Home Office,Home Office,09/09/2011,Grant,CPG - Crime & Policing Group,DEPARTMENT FOR EDUCATION (G),3000043418,"10,000,000.00"
Home Office,Home Office,02/09/2011,Guns Gangs & Knives Fund,CPG - Crime & Policing Group,TRIBAL EDUCATION LTD,1001151731,"97,342.80"
Home Office,Home Office,20/09/2011,Hillsborough Disclosure,CPG - Crime & Policing Group,SHEFFIELD CITY COUNCIL,1001158353,"44,378.14"
Home Office,Home Office,14/09/2011,Police costs per check,CPG - Crime & Policing Group,SOUTH YORKSHIRE POLICE,1001155660,"21,337.27"
Home Office,Home Office,14/09/2011,Police costs per check,CPG - Crime & Policing Group,SOUTH YORKSHIRE POLICE,1001155660,"32,964.62"
Home Office,Home Office,02/09/2011,IT Charges,CPG - Crime & Policing Group,STERIA UK,1001151719,"35,000.00"
Home Office,Home Office,27/09/2011,Other Government Department,CPG - Crime & Policing Group,COI COMMUNICATIONS,3000043512,"26,275.84"
Home Office,Home Office,26/09/2011,Grant,CPG - Crime & Policing Group,VICTIM SUPPORT (G),1001159818,"38,460.57"
Home Office,Home Office,15/09/2011,Grant,CPG - Crime & Policing Group,MERSEYSIDE POLICE AUTHORITY 1 (G),1001156201,"400,000.00"
Home Office,Home Office,02/09/2011,OBIU-MIS Project,CPG - Crime & Policing Group,SAVVIS UK LTD,1001151712,"26,807.56"
Home Office,Home Office,27/09/2011,Support,CPG - Crime & Policing Group,CATCH22,1001160393,"206,100.00"
Home Office,Home Office,27/09/2011,Support,CPG - Crime & Policing Group,CATCH22,1001160393,"49,862.50"
Home Office,Home Office,19/09/2011,Drug Testing,CPG - Crime & Policing Group,CONCATENO UK LTD,1001156987,"48,969.36"
Home Office,Home Office,19/09/2011,Drug Testing,CPG - Crime & Policing Group,CONCATENO UK LTD,1001156987,"48,359.52"
Home Office,Home Office,30/09/2011,Grant,CPG - Crime & Policing Group,ESSEX COUNTY COUNCIL 1 (G),1001162402,"146,129.00"
Home Office,Home Office,30/09/2011,Grant,CPG - Crime & Policing Group,HARTLEPOOL COUNCIL (G),1001162403,"89,106.00"
Home Office,Home Office,05/09/2011,Grant,CPG - Crime & Policing Group,HEART OF BIRMINGHAM TEACHING PCT (G),3000043392,"467,266.50"
Home Office,Home Office,30/09/2011,Grant,CPG - Crime & Policing Group,LONDON BOROUGH OF BROMLEY 1 (G),1001162404,"45,149.00"
Home Office,Home Office,30/09/2011,Grant,CPG - Crime & Policing Group,LONDON BOROUGH OF KENSINGTON & CHELSEA (G),1001162405,"140,627.00"
Home Office,Home Office,30/09/2011,Grant,CPG - Crime & Policing Group,LONDON BOROUGH OF MERTON 2 (G),1001162406,"30,323.00"
Home Office,Home Office,29/09/2011,Grant,CPG - Crime & Policing Group,NHS BEDFORDSHIRE (G),3000043542,"185,415.50"
Home Office,Home Office,29/09/2011,Grant,CPG - Crime & Policing Group,SHEFFIELD PRIMARY CARE TRUST (G),3000043544,"376,347.00"
Home Office,Home Office,30/09/2011,Grant,CPG - Crime & Policing Group,SOUTHAMPTON CITY COUNCIL 1 (G),1001162409,"53,845.00"
Home Office,Home Office,29/09/2011,Grant,CPG - Crime & Policing Group,SUNDERLAND PCT (G),3000043545,"126,141.50"
Home Office,Home Office,30/09/2011,Grant,CPG - Crime & Policing Group,TELFORD & WREKIN COUNCIL (G),1001162410,"30,043.50"
Home Office,Home Office,30/09/2011,Grant,CPG - Crime & Policing Group,WORCESTER CITY COUNCIL (G),1001162411,"58,856.50"
Home Office,Home Office,20/09/2011,Legal,CPG - Crime & Policing Group,"KELLOGG, BROWN AND ROOT LTD",1001158327,"38,681.16"
Home Office,Home Office,26/09/2011,Legal,CPG - Crime & Policing Group,"KELLOGG, BROWN AND ROOT LTD",1001159863,"49,132.80"
Home Office,Home Office,20/09/2011,Grant,CPG - Crime & Policing Group,NACRO,1001157680,"50,000.00"
Home Office,Home Office,05/09/2011,Grant,CPG - Crime & Policing Group,AVON & SOMERSET POLICE AUTHORITY 1 (G),1001152157,"10,077,352.00"
Home Office,Home Office,05/09/2011,Grant,CPG - Crime & Policing Group,BEDFORDSHIRE POLICE AUTHORITY 1 (G),1001152158,"3,659,509.00"
Home Office,Home Office,05/09/2011,Grant,CPG - Crime & Policing Group,CAMBRIDGESHIRE POLICE AUTHORITY 1 (G),1001152163,"4,478,210.00"
Home Office,Home Office,05/09/2011,Grant,CPG - Crime & Policing Group,CHAMBERLAIN OF LONDON (G),1001152164,"2,637,391.00"
Home Office,Home Office,05/09/2011,Grant,CPG - Crime & Policing Group,CHESHIRE POLICE AUTHORITY 2 (G),1001152165,"5,792,834.00"
Home Office,Home Office,05/09/2011,Grant,CPG - Crime & Policing Group,CLEVELAND POLICE AUTHORITY 1 (G),1001152166,"4,279,609.00"
Home Office,Home Office,19/09/2011,Grant,CPG - Crime & Policing Group,COMMUNITIES & LOCAL GOVERNMENT (G),3000043454,"13,410,488.00"
Home Office,Home Office,05/09/2011,Grant,CPG - Crime & Policing Group,CUMBRIA POLICE AUTHORITY 1 (G),1001152167,"2,754,604.00"
Home Office,Home Office,05/09/2011,Grant,CPG - Crime & Policing Group,DERBYSHIRE POLICE AUTHORITY 1 (G),1001152168,"5,846,241.00"
Home Office,Home Office,05/09/2011,Grant,CPG - Crime & Policing Group,DEVON & CORNWALL POLICE AUTHORITY 1 (G),1001152169,"9,911,628.00"
Home Office,Home Office,05/09/2011,Grant,CPG - Crime & Policing Group,DORSET POLICE AUTHORITY 1 (G),1001152170,"3,822,155.00"
Home Office,Home Office,05/09/2011,Grant,CPG - Crime & Policing Group,DURHAM POLICE AUTHORITY 1 (G),1001152171,"3,982,069.00"
Home Office,Home Office,05/09/2011,Grant,CPG - Crime & Policing Group,DYFED POWYS POLICE AUTHORITY 1 (G),1001152172,"3,400,650.00"
Home Office,Home Office,05/09/2011,Grant,CPG - Crime & Policing Group,ESSEX POLICE AUTHORITY (G),1001152173,"9,800,828.00"
Home Office,Home Office,05/09/2011,Grant,CPG - Crime & Policing Group,GLOUCESTERSHIRE POLICE AUTHORITY (G),1001152174,"3,254,375.00"
Home Office,Home Office,05/09/2011,Grant,CPG - Crime & Policing Group,GREATER LONDON AUTHORITY (G),1001152175,"93,977,997.00"
Home Office,Home Office,05/09/2011,Grant,CPG - Crime & Policing Group,GREATER MANCHESTER POLICE AUTHORITY (G),1001152176,"20,705,963.00"
Home Office,Home Office,05/09/2011,Grant,CPG - Crime & Policing Group,GWENT POLICE AUTHORITY 1 (G),1001152177,"4,012,840.00"
Home Office,Home Office,05/09/2011,Grant,CPG - Crime & Policing Group,HAMPSHIRE POLICE AUTHORITY 1 (G),1001152178,"11,497,255.00"
Home Office,Home Office,05/09/2011,Grant,CPG - Crime & Policing Group,HERTFORDSHIRE POLICE AUTHORITY 1 (G),1001152179,"6,623,331.00"
Home Office,Home Office,05/09/2011,Grant,CPG - Crime & Policing Group,HUMBERSIDE POLICE AUTHORITY 1 (G),1001152180,"6,232,921.00"
Home Office,Home Office,05/09/2011,Grant,CPG - Crime & Policing Group,KENT POLICE AUTHORITY 1 (G),1001152182,"9,823,144.00"
Home Office,Home Office,05/09/2011,Grant,CPG - Crime & Policing Group,LANCASHIRE POLICE AUTHORITY 1 (G),1001152183,"9,528,222.00"
Home Office,Home Office,05/09/2011,Grant,CPG - Crime & Policing Group,LEICESTERSHIRE POLICE AUTHORITY (G),1001152184,"6,036,080.00"
Home Office,Home Office,05/09/2011,Grant,CPG - Crime & Policing Group,LINCOLNSHIRE POLICE AUTHORITY 1 (G),1001152185,"3,571,904.00"
Home Office,Home Office,05/09/2011,Grant,CPG - Crime & Policing Group,MERSEYSIDE POLICE AUTHORITY 1 (G),1001152186,"11,480,388.00"
Home Office,Home Office,05/09/2011,Grant,CPG - Crime & Policing Group,NEW WEST MERCIA POLICE AUTHORITY (G),1001152187,"6,178,620.00"
Home Office,Home Office,05/09/2011,Grant,CPG - Crime & Policing Group,NORFOLK POLICE AUTHORITY 1 (G),1001152188,"4,805,069.00"
Home Office,Home Office,05/09/2011,Grant,CPG - Crime & Policing Group,NORTH WALES POLICE AUTHORITY (G),1001152189,"4,677,883.00"
Home Office,Home Office,05/09/2011,Grant,CPG - Crime & Policing Group,NORTH YORKSHIRE POLICE AUTHORITY (G),1001152190,"3,937,104.00"
Home Office,Home Office,05/09/2011,Grant,CPG - Crime & Policing Group,NORTHAMPTONSHIRE POLICE 1 (G),1001152191,"4,046,674.00"
Home Office,Home Office,05/09/2011,Grant,CPG - Crime & Policing Group,NORTHUMBRIA POLICE (G),1001152192,"10,357,098.00"
Home Office,Home Office,05/09/2011,Grant,CPG - Crime & Policing Group,NOTTINGHAMSHIRE POLICE AUTHORITY 2 (G),1001152193,"7,237,470.00"
Home Office,Home Office,05/09/2011,Grant,CPG - Crime & Policing Group,SOUTH WALES POLICE AUTHORITY 1 (G),1001152198,"8,387,288.00"
Home Office,Home Office,05/09/2011,Grant,CPG - Crime & Policing Group,SOUTH YORKSHIRE POLICE AUTHORITY 1 (G),1001152199,"9,230,816.00"
Home Office,Home Office,05/09/2011,Grant,CPG - Crime & Policing Group,STAFFORDSHIRE POLICE AUTHORITY (G),1001152200,"6,180,975.00"
Home Office,Home Office,05/09/2011,Grant,CPG - Crime & Policing Group,SUFFOLK POLICE AUTHORITY (G),1001152201,"3,825,493.00"
Home Office,Home Office,05/09/2011,Grant,CPG - Crime & Policing Group,SURREY POLICE AUTHORITY 1 (G),1001152202,"5,835,740.00"
Home Office,Home Office,05/09/2011,Grant,CPG - Crime & Policing Group,SUSSEX POLICE AUTHORITY 1 (G),1001152203,"9,081,460.00"
Home Office,Home Office,05/09/2011,Grant,CPG - Crime & Policing Group,THAMES VALLEY POLICE (G),1001152204,"13,179,571.00"
Home Office,Home Office,05/09/2011,Grant,CPG - Crime & Policing Group,WARWICKSHIRE POLICE AUTHORITY 1 (G),1001152206,"2,932,142.00"
Home Office,Home Office,05/09/2011,Grant,CPG - Crime & Policing Group,WEST MIDLANDS POLICE AUTHORITY 1 (G),1001152207,"22,740,680.00"
Home Office,Home Office,05/09/2011,Grant,CPG - Crime & Policing Group,WEST YORKSHIRE POLICE (G),1001152208,"16,054,480.00"
Home Office,Home Office,05/09/2011,Grant,CPG - Crime & Policing Group,WILTSHIRE CONSTABULARY (G),1001152209,"3,468,252.00"
Home Office,CRB - Criminal Records Bureau,21/10/2011,Police costs per check,CRB - Criminal Records Bureau,Cheshire Police Authority,16585  2,"43,101.35"
Home Office,CRB - Criminal Records Bureau,21/10/2011,Police costs per check,CRB - Criminal Records Bureau,Derbyshire Police Authority,16585  4,"50,051.74"
Home Office,CRB - Criminal Records Bureau,21/10/2011,Police costs per check,CRB - Criminal Records Bureau,Hertfordshire Police Authority,16585  11,"94,905.22"
Home Office,CRB - Criminal Records Bureau,21/10/2011,Police costs per check,CRB - Criminal Records Bureau,KENT CONSTABULARY,16585  12,"118,290.78"
Home Office,CRB - Criminal Records Bureau,21/10/2011,Police costs per check,CRB - Criminal Records Bureau,Merseyside Police Authority,16585  13,"51,530.62"
Home Office,CRB - Criminal Records Bureau,21/10/2011,Police costs per check,CRB - Criminal Records Bureau,North Yorkshire Police Authori,16585  18,"26,865.61"
Home Office,CRB - Criminal Records Bureau,21/10/2011,Police costs per check,CRB - Criminal Records Bureau,Disclosure Scotland,16585  21,"25,787.89"
Home Office,CRB - Criminal Records Bureau,21/10/2011,Police costs per check,CRB - Criminal Records Bureau,Serious Organised Crime Agency,16585  22,"28,648.00"
Home Office,CRB - Criminal Records Bureau,21/10/2011,Police costs per check,CRB - Criminal Records Bureau,Avon & Somerset Police,16585  23,"55,947.34"
Home Office,CRB - Criminal Records Bureau,21/10/2011,Police costs per check,CRB - Criminal Records Bureau,South Wales Police,16585  24,"52,792.27"
Home Office,CRB - Criminal Records Bureau,21/10/2011,Police costs per check,CRB - Criminal Records Bureau,Staffordshire Police Authority,16585  25,"39,870.53"
Home Office,CRB - Criminal Records Bureau,21/10/2011,Police costs per check,CRB - Criminal Records Bureau,Suffolk Police Authority,16585  27,"42,112.57"
Home Office,CRB - Criminal Records Bureau,21/10/2011,Police costs per check,CRB - Criminal Records Bureau,Surrey Police Authority,16585  28,"33,333.33"
Home Office,CRB - Criminal Records Bureau,21/10/2011,Police costs per check,CRB - Criminal Records Bureau,Thames Valley Police Authority,16585  29,"74,456.98"
Home Office,CRB - Criminal Records Bureau,21/10/2011,Police costs per check,CRB - Criminal Records Bureau,West Midlands Police,16585  32,"230,245.16"
Home Office,CRB - Criminal Records Bureau,07/10/2011,Public Private Partnership contract / agreement,CRB - Criminal Records Bureau,Capita Business Services Ltd,16541  1,"861,694.06"
Home Office,CRB - Criminal Records Bureau,14/10/2011,Public Private Partnership contract / agreement,CRB - Criminal Records Bureau,Capita Business Services Ltd,16555  10,"323,140.64"
Home Office,CRB - Criminal Records Bureau,26/10/2011,Payroll,CRB - Criminal Records Bureau,MoJ,16590  1,"1,321,206.87"
Home Office,CRB - Criminal Records Bureau,30/09/2011,Professional Services,CRB - Criminal Records Bureau,SOCA,16583  19,"28,648.00"
Home Office,NPIA - National Policing Improvement Agency,18/10/2011,IT software,CEO Directorate,Specialist Computer Centres PLC,5100058549,"25,666.00"
Home Office,NPIA - National Policing Improvement Agency,26/10/2011,Photocopier charges,CEO Directorate,Xerox (UK) Ltd,1900063390,"26,428.43"
Home Office,NPIA - National Policing Improvement Agency,11/10/2011,IT Managed Services,Information & Communications Technology & Science Directorate,Cogent Inc,5100057949,"325,264.00"
Home Office,NPIA - National Policing Improvement Agency,11/10/2011,IT Managed Services,Information & Communications Technology & Science Directorate,Cogent Inc,5100057950,"325,264.00"
Home Office,NPIA - National Policing Improvement Agency,03/10/2011,Telephone charges,Information & Communications Technology & Science Directorate,BT Plc,1900062900,"108,106.28"
Home Office,NPIA - National Policing Improvement Agency,18/10/2011,IT Managed Services,Information & Communications Technology & Science Directorate,Cable & Wireless Communications,5100057961,"44,331.48"
Home Office,NPIA - National Policing Improvement Agency,07/10/2011,Telephone charges,Information & Communications Technology & Science Directorate,Cable & Wireless Communications,5100057982,"52,725.00"
Home Office,NPIA - National Policing Improvement Agency,18/10/2011,IT Managed Services,Information & Communications Technology & Science Directorate,Logica CMG UK Ltd,5100058148,"492,021.00"
Home Office,NPIA - National Policing Improvement Agency,18/10/2011,IT Managed Services,Information & Communications Technology & Science Directorate,Logica CMG UK Ltd,5100058148,"3,836.00"
Home Office,NPIA - National Policing Improvement Agency,12/10/2011,Rent of telephone exchange,Information & Communications Technology & Science Directorate,BT Global Services,1900062998,"72,485.45"
Home Office,NPIA - National Policing Improvement Agency,26/10/2011,Telephone charges,Information & Communications Technology & Science Directorate,BT Plc,1900063264,"31,145.60"
Home Office,NPIA - National Policing Improvement Agency,24/10/2011,IT Managed Services,Information & Communications Technology & Science Directorate,Airwave Solutions Ltd,5100058569,"2,500,000.00"
Home Office,NPIA - National Policing Improvement Agency,18/10/2011,IT software,Information & Communications Technology & Science Directorate,Specialist Computer Centres PLC,5100058598,"147,000.00"
Home Office,NPIA - National Policing Improvement Agency,21/10/2011,IT Managed Services,Information & Communications Technology & Science Directorate,Cable & Wireless Communications,5100058601,"23,587.50"
Home Office,NPIA - National Policing Improvement Agency,24/10/2011,IT Managed Services,Information & Communications Technology & Science Directorate,Airwave Solutions Ltd,5100058610,"980,000.00"
Home Office,NPIA - National Policing Improvement Agency,24/10/2011,IT Managed Services,Information & Communications Technology & Science Directorate,Airwave Solutions Ltd,5100058610,"-5,000.00"
Home Office,NPIA - National Policing Improvement Agency,26/10/2011,IT Managed Services,Information & Communications Technology & Science Directorate,Airwave Solutions Ltd,5100058611,"635,000.00"
Home Office,NPIA - National Policing Improvement Agency,24/10/2011,IT Managed Services,Information & Communications Technology & Science Directorate,Airwave Solutions Ltd,5100058650,"422,000.00"
Home Office,NPIA - National Policing Improvement Agency,26/10/2011,IT Information Support,Information & Communications Technology & Science Directorate,Siemens Enterprise Comm Ltd,5100058810,"16,660.00"
Home Office,NPIA - National Policing Improvement Agency,26/10/2011,IT Information Support,Information & Communications Technology & Science Directorate,Siemens Enterprise Comm Ltd,5100058810,"21,420.00"
Home Office,NPIA - National Policing Improvement Agency,26/10/2011,IT Information Support,Information & Communications Technology & Science Directorate,Siemens Enterprise Comm Ltd,5100058810,"26,180.00"
Home Office,NPIA - National Policing Improvement Agency,26/10/2011,Telephone charges,Information & Communications Technology & Science Directorate,BT Billing Enquiries,5100057918,"19,554.73"
Home Office,NPIA - National Policing Improvement Agency,26/10/2011,Telephone charges,Information & Communications Technology & Science Directorate,BT Billing Enquiries,5100057918,402.02
Home Office,NPIA - National Policing Improvement Agency,26/10/2011,Telephone charges,Information & Communications Technology & Science Directorate,BT Billing Enquiries,5100057918,7
Home Office,NPIA - National Policing Improvement Agency,26/10/2011,Telephone charges,Information & Communications Technology & Science Directorate,BT Billing Enquiries,5100057918,0.14
Home Office,NPIA - National Policing Improvement Agency,27/10/2011,IT Hardware,Information & Communications Technology & Science Directorate,Logica CMG UK Ltd,5100058846,"357,131.00"
Home Office,NPIA - National Policing Improvement Agency,27/10/2011,IT Hardware,Information & Communications Technology & Science Directorate,Logica CMG UK Ltd,5100058846,"194,124.00"
Home Office,NPIA - National Policing Improvement Agency,27/10/2011,IT software,Information & Communications Technology & Science Directorate,Specialist Computer Centres PLC,5100058895,"5,015.37"
Home Office,NPIA - National Policing Improvement Agency,27/10/2011,IT software,Information & Communications Technology & Science Directorate,Specialist Computer Centres PLC,5100058895,100.31
Home Office,NPIA - National Policing Improvement Agency,27/10/2011,IT software,Information & Communications Technology & Science Directorate,Specialist Computer Centres PLC,5100058895,942
Home Office,NPIA - National Policing Improvement Agency,27/10/2011,IT software,Information & Communications Technology & Science Directorate,Specialist Computer Centres PLC,5100058895,18.84
Home Office,NPIA - National Policing Improvement Agency,27/10/2011,IT software,Information & Communications Technology & Science Directorate,Specialist Computer Centres PLC,5100058895,564
Home Office,NPIA - National Policing Improvement Agency,27/10/2011,IT software,Information & Communications Technology & Science Directorate,Specialist Computer Centres PLC,5100058895,11.28
Home Office,NPIA - National Policing Improvement Agency,27/10/2011,IT software,Information & Communications Technology & Science Directorate,Specialist Computer Centres PLC,5100058895,939.68
Home Office,NPIA - National Policing Improvement Agency,27/10/2011,IT software,Information & Communications Technology & Science Directorate,Specialist Computer Centres PLC,5100058895,18.79
Home Office,NPIA - National Policing Improvement Agency,27/10/2011,IT software,Information & Communications Technology & Science Directorate,Specialist Computer Centres PLC,5100058895,731.09
Home Office,NPIA - National Policing Improvement Agency,27/10/2011,IT software,Information & Communications Technology & Science Directorate,Specialist Computer Centres PLC,5100058895,14.62
Home Office,NPIA - National Policing Improvement Agency,27/10/2011,IT software,Information & Communications Technology & Science Directorate,Specialist Computer Centres PLC,5100058895,"2,256.00"
Home Office,NPIA - National Policing Improvement Agency,27/10/2011,IT software,Information & Communications Technology & Science Directorate,Specialist Computer Centres PLC,5100058895,45.12
Home Office,NPIA - National Policing Improvement Agency,27/10/2011,IT software,Information & Communications Technology & Science Directorate,Specialist Computer Centres PLC,5100058895,"1,776.08"
Home Office,NPIA - National Policing Improvement Agency,27/10/2011,IT software,Information & Communications Technology & Science Directorate,Specialist Computer Centres PLC,5100058895,35.52
Home Office,NPIA - National Policing Improvement Agency,27/10/2011,IT software,Information & Communications Technology & Science Directorate,Specialist Computer Centres PLC,5100058895,"3,760.00"
Home Office,NPIA - National Policing Improvement Agency,27/10/2011,IT software,Information & Communications Technology & Science Directorate,Specialist Computer Centres PLC,5100058895,75.2
Home Office,NPIA - National Policing Improvement Agency,27/10/2011,IT software,Information & Communications Technology & Science Directorate,Specialist Computer Centres PLC,5100058895,"1,285.12"
Home Office,NPIA - National Policing Improvement Agency,27/10/2011,IT software,Information & Communications Technology & Science Directorate,Specialist Computer Centres PLC,5100058895,25.7
Home Office,NPIA - National Policing Improvement Agency,27/10/2011,IT software,Information & Communications Technology & Science Directorate,Specialist Computer Centres PLC,5100058895,"3,760.00"
Home Office,NPIA - National Policing Improvement Agency,27/10/2011,IT software,Information & Communications Technology & Science Directorate,Specialist Computer Centres PLC,5100058895,75.2
Home Office,NPIA - National Policing Improvement Agency,27/10/2011,IT software,Information & Communications Technology & Science Directorate,Specialist Computer Centres PLC,5100058895,940
Home Office,NPIA - National Policing Improvement Agency,27/10/2011,IT software,Information & Communications Technology & Science Directorate,Specialist Computer Centres PLC,5100058895,18.8
Home Office,NPIA - National Policing Improvement Agency,27/10/2011,IT software,Information & Communications Technology & Science Directorate,Specialist Computer Centres PLC,5100058895,"2,510.00"
Home Office,NPIA - National Policing Improvement Agency,27/10/2011,IT software,Information & Communications Technology & Science Directorate,Specialist Computer Centres PLC,5100058895,50.2
Home Office,NPIA - National Policing Improvement Agency,27/10/2011,IT software,Information & Communications Technology & Science Directorate,Specialist Computer Centres PLC,5100058895,"3,227.01"
Home Office,NPIA - National Policing Improvement Agency,27/10/2011,IT software,Information & Communications Technology & Science Directorate,Specialist Computer Centres PLC,5100058895,64.54
Home Office,NPIA - National Policing Improvement Agency,27/10/2011,IT software,Information & Communications Technology & Science Directorate,Specialist Computer Centres PLC,5100058895,"2,749.50"
Home Office,NPIA - National Policing Improvement Agency,27/10/2011,IT software,Information & Communications Technology & Science Directorate,Specialist Computer Centres PLC,5100058895,54.99
Home Office,NPIA - National Policing Improvement Agency,27/10/2011,IT software,Information & Communications Technology & Science Directorate,Specialist Computer Centres PLC,5100058895,"2,820.00"
Home Office,NPIA - National Policing Improvement Agency,27/10/2011,IT software,Information & Communications Technology & Science Directorate,Specialist Computer Centres PLC,5100058895,56.41
Home Office,NPIA - National Policing Improvement Agency,11/10/2011,Airwave Core Service Charge,Operations Directorate,Airwave Solutions Ltd,5100057716,"14,844,329.73"
Home Office,NPIA - National Policing Improvement Agency,11/10/2011,Airwave Core Service Charge,Operations Directorate,Airwave Solutions Ltd,5100057717,"226,057.27"
Home Office,NPIA - National Policing Improvement Agency,11/10/2011,Airwave Core Service Charge,Operations Directorate,Airwave Solutions Ltd,5100057717,-0.05
Home Office,NPIA - National Policing Improvement Agency,07/10/2011,Contractors,Operations Directorate,Red-M Wireless Ltd,5100057903,"31,599.60"
Home Office,NPIA - National Policing Improvement Agency,10/10/2011,IT Managed Services,Operations Directorate,Cable & Wireless Communications,5100057964,"187,500.40"
Home Office,NPIA - National Policing Improvement Agency,03/10/2011,IT Managed Services,Operations Directorate,Cable & Wireless Communications,5100057967,"63,600.00"
Home Office,NPIA - National Policing Improvement Agency,03/10/2011,IT Managed Services,Operations Directorate,Cable & Wireless Communications,5100057967,"84,800.00"
Home Office,NPIA - National Policing Improvement Agency,03/10/2011,IT Managed Services,Operations Directorate,Cable & Wireless Communications,5100057967,"3,000.00"
Home Office,NPIA - National Policing Improvement Agency,03/10/2011,IT software,Operations Directorate,Cable & Wireless Communications,5100057967,"3,844.00"
Home Office,NPIA - National Policing Improvement Agency,03/10/2011,IT software,Operations Directorate,Cable & Wireless Communications,5100057967,500
Home Office,NPIA - National Policing Improvement Agency,03/10/2011,IT software,Operations Directorate,Cable & Wireless Communications,5100057967,"4,200.00"
Home Office,NPIA - National Policing Improvement Agency,03/10/2011,IT software,Operations Directorate,Cable & Wireless Communications,5100057967,400
Home Office,NPIA - National Policing Improvement Agency,03/10/2011,IT Information Support,Operations Directorate,Cable & Wireless Communications,5100057967,187.5
Home Office,NPIA - National Policing Improvement Agency,03/10/2011,IT Information Support,Operations Directorate,Cable & Wireless Communications,5100057967,"1,900.00"
Home Office,NPIA - National Policing Improvement Agency,03/10/2011,IT Information Support,Operations Directorate,Cable & Wireless Communications,5100057967,"6,989.00"
Home Office,NPIA - National Policing Improvement Agency,03/10/2011,IT Information Support,Operations Directorate,Cable & Wireless Communications,5100057967,"2,250.00"
Home Office,NPIA - National Policing Improvement Agency,03/10/2011,IT Information Support,Operations Directorate,Cable & Wireless Communications,5100057967,"4,000.00"
Home Office,NPIA - National Policing Improvement Agency,03/10/2011,IT Information Support,Operations Directorate,Cable & Wireless Communications,5100057967,"3,515.00"
Home Office,NPIA - National Policing Improvement Agency,03/10/2011,IT Information Support,Operations Directorate,Cable & Wireless Communications,5100057967,"3,840.00"
Home Office,NPIA - National Policing Improvement Agency,03/10/2011,IT Information Support,Operations Directorate,Cable & Wireless Communications,5100057967,"3,600.00"
Home Office,NPIA - National Policing Improvement Agency,03/10/2011,IT Information Support,Operations Directorate,Cable & Wireless Communications,5100057967,"2,000.00"
Home Office,NPIA - National Policing Improvement Agency,03/10/2011,IT Information Support,Operations Directorate,Cable & Wireless Communications,5100057967,"1,733.00"
Home Office,NPIA - National Policing Improvement Agency,03/10/2011,IT Information Support,Operations Directorate,Cable & Wireless Communications,5100057967,-0.09
Home Office,NPIA - National Policing Improvement Agency,26/10/2011,IT Managed Services,Operations Directorate,Cable & Wireless Communications,5100057980,"6,102.00"
Home Office,NPIA - National Policing Improvement Agency,26/10/2011,IT Managed Services,Operations Directorate,Cable & Wireless Communications,5100057980,"3,738.00"
Home Office,NPIA - National Policing Improvement Agency,26/10/2011,IT Managed Services,Operations Directorate,Cable & Wireless Communications,5100057980,"75,302.95"
Home Office,NPIA - National Policing Improvement Agency,26/10/2011,IT software,Operations Directorate,Cable & Wireless Communications,5100057980,"27,422.00"
Home Office,NPIA - National Policing Improvement Agency,26/10/2011,IT software,Operations Directorate,Cable & Wireless Communications,5100057980,"56,745.00"
Home Office,NPIA - National Policing Improvement Agency,26/10/2011,IT software,Operations Directorate,Cable & Wireless Communications,5100057980,0.05
Home Office,NPIA - National Policing Improvement Agency,05/10/2011,IT Hardware,Operations Directorate,Fujitsu (FTS) Limited,5100057746,"752,927.60"
Home Office,NPIA - National Policing Improvement Agency,05/10/2011,IT Hardware,Operations Directorate,Fujitsu (FTS) Limited,5100057746,"150,585.52"
Home Office,NPIA - National Policing Improvement Agency,07/10/2011,IT Hardware,Operations Directorate,Fujitsu (FTS) Limited,5100058125,"120,757.50"
Home Office,NPIA - National Policing Improvement Agency,07/10/2011,IT Hardware,Operations Directorate,Fujitsu (FTS) Limited,5100058125,"24,151.50"
Home Office,NPIA - National Policing Improvement Agency,07/10/2011,IT software,Operations Directorate,Northgate Information Solutions UK,5100058153,"28,920.00"
Home Office,NPIA - National Policing Improvement Agency,07/10/2011,Photocopier charges,Operations Directorate,Specialist Computer Centres PLC,5100057184,"64,550.64"
Home Office,NPIA - National Policing Improvement Agency,07/10/2011,Photocopier charges,Operations Directorate,Specialist Computer Centres PLC,5100057184,"12,910.07"
Home Office,NPIA - National Policing Improvement Agency,26/10/2011,IT software,Operations Directorate,Capita Secure Information Systems,5100058192,"39,752.00"
Home Office,NPIA - National Policing Improvement Agency,26/10/2011,IT software,Operations Directorate,Capita Secure Information Systems,5100058192,"16,994.00"
Home Office,NPIA - National Policing Improvement Agency,26/10/2011,IT software,Operations Directorate,Capita Secure Information Systems,5100058192,"20,285.00"
Home Office,NPIA - National Policing Improvement Agency,26/10/2011,IT software,Operations Directorate,Capita Secure Information Systems,5100058192,"20,964.00"
Home Office,NPIA - National Policing Improvement Agency,26/10/2011,IT software,Operations Directorate,Capita Secure Information Systems,5100058192,"10,004.00"
Home Office,NPIA - National Policing Improvement Agency,26/10/2011,Stationery,Operations Directorate,Capita Secure Information Systems,5100058192,"16,189.00"
Home Office,NPIA - National Policing Improvement Agency,26/10/2011,IT software,Operations Directorate,Capita Secure Information Systems,5100058192,"35,242.00"
Home Office,NPIA - National Policing Improvement Agency,26/10/2011,IT software,Operations Directorate,Capita Secure Information Systems,5100058192,"10,061.00"
Home Office,NPIA - National Policing Improvement Agency,26/10/2011,IT software,Operations Directorate,Capita Secure Information Systems,5100058192,"20,948.00"
Home Office,NPIA - National Policing Improvement Agency,26/10/2011,IT software,Operations Directorate,Capita Secure Information Systems,5100058192,"28,867.00"
Home Office,NPIA - National Policing Improvement Agency,26/10/2011,IT software,Operations Directorate,Capita Secure Information Systems,5100058192,"18,253.00"
Home Office,NPIA - National Policing Improvement Agency,26/10/2011,IT software,Operations Directorate,Capita Secure Information Systems,5100058192,"12,519.00"
Home Office,NPIA - National Policing Improvement Agency,26/10/2011,IT software,Operations Directorate,Capita Secure Information Systems,5100058192,"23,819.00"
Home Office,NPIA - National Policing Improvement Agency,26/10/2011,IT software,Operations Directorate,Capita Secure Information Systems,5100058192,"26,369.00"
Home Office,NPIA - National Policing Improvement Agency,26/10/2011,IT software,Operations Directorate,Capita Secure Information Systems,5100058192,"20,621.00"
Home Office,NPIA - National Policing Improvement Agency,26/10/2011,IT software,Operations Directorate,Capita Secure Information Systems,5100058192,"20,834.00"
Home Office,NPIA - National Policing Improvement Agency,26/10/2011,IT software,Operations Directorate,Capita Secure Information Systems,5100058192,"34,092.00"
Home Office,NPIA - National Policing Improvement Agency,26/10/2011,IT software,Operations Directorate,Capita Secure Information Systems,5100058192,"19,092.00"
Home Office,NPIA - National Policing Improvement Agency,26/10/2011,IT software,Operations Directorate,Capita Secure Information Systems,5100058192,"26,080.00"
Home Office,NPIA - National Policing Improvement Agency,26/10/2011,IT software,Operations Directorate,Capita Secure Information Systems,5100058192,"18,736.00"
Home Office,NPIA - National Policing Improvement Agency,26/10/2011,IT software,Operations Directorate,Capita Secure Information Systems,5100058192,"12,021.00"
Home Office,NPIA - National Policing Improvement Agency,26/10/2011,IT software,Operations Directorate,Capita Secure Information Systems,5100058192,"35,889.00"
Home Office,NPIA - National Policing Improvement Agency,26/10/2011,IT software,Operations Directorate,Capita Secure Information Systems,5100058192,"51,309.00"
Home Office,NPIA - National Policing Improvement Agency,26/10/2011,IT software,Operations Directorate,Capita Secure Information Systems,5100058192,"14,881.00"
Home Office,NPIA - National Policing Improvement Agency,26/10/2011,IT software,Operations Directorate,Capita Secure Information Systems,5100058192,"29,432.00"
Home Office,NPIA - National Policing Improvement Agency,26/10/2011,IT software,Operations Directorate,Capita Secure Information Systems,5100058192,"24,835.00"
Home Office,NPIA - National Policing Improvement Agency,26/10/2011,IT software,Operations Directorate,Capita Secure Information Systems,5100058193,"39,752.00"
Home Office,NPIA - National Policing Improvement Agency,26/10/2011,IT software,Operations Directorate,Capita Secure Information Systems,5100058193,"16,994.00"
Home Office,NPIA - National Policing Improvement Agency,26/10/2011,IT software,Operations Directorate,Capita Secure Information Systems,5100058193,"20,285.00"
Home Office,NPIA - National Policing Improvement Agency,26/10/2011,IT software,Operations Directorate,Capita Secure Information Systems,5100058193,"20,964.00"
Home Office,NPIA - National Policing Improvement Agency,26/10/2011,IT software,Operations Directorate,Capita Secure Information Systems,5100058193,"10,004.00"
Home Office,NPIA - National Policing Improvement Agency,26/10/2011,Stationery,Operations Directorate,Capita Secure Information Systems,5100058193,"16,189.00"
Home Office,NPIA - National Policing Improvement Agency,26/10/2011,IT software,Operations Directorate,Capita Secure Information Systems,5100058193,"35,242.00"
Home Office,NPIA - National Policing Improvement Agency,26/10/2011,IT software,Operations Directorate,Capita Secure Information Systems,5100058193,"10,061.00"
Home Office,NPIA - National Policing Improvement Agency,26/10/2011,IT software,Operations Directorate,Capita Secure Information Systems,5100058193,"20,948.00"
Home Office,NPIA - National Policing Improvement Agency,26/10/2011,IT software,Operations Directorate,Capita Secure Information Systems,5100058193,"28,867.00"
Home Office,NPIA - National Policing Improvement Agency,26/10/2011,IT software,Operations Directorate,Capita Secure Information Systems,5100058193,"18,253.00"
Home Office,NPIA - National Policing Improvement Agency,26/10/2011,IT software,Operations Directorate,Capita Secure Information Systems,5100058193,"12,519.00"
Home Office,NPIA - National Policing Improvement Agency,26/10/2011,IT software,Operations Directorate,Capita Secure Information Systems,5100058193,"23,819.00"
Home Office,NPIA - National Policing Improvement Agency,26/10/2011,IT software,Operations Directorate,Capita Secure Information Systems,5100058193,"26,369.00"
Home Office,NPIA - National Policing Improvement Agency,26/10/2011,IT software,Operations Directorate,Capita Secure Information Systems,5100058193,"20,621.00"
Home Office,NPIA - National Policing Improvement Agency,26/10/2011,IT software,Operations Directorate,Capita Secure Information Systems,5100058193,"20,834.00"
Home Office,NPIA - National Policing Improvement Agency,26/10/2011,IT software,Operations Directorate,Capita Secure Information Systems,5100058193,"34,092.00"
Home Office,NPIA - National Policing Improvement Agency,26/10/2011,IT software,Operations Directorate,Capita Secure Information Systems,5100058193,"19,092.00"
Home Office,NPIA - National Policing Improvement Agency,26/10/2011,IT software,Operations Directorate,Capita Secure Information Systems,5100058193,"26,080.00"
Home Office,NPIA - National Policing Improvement Agency,26/10/2011,IT software,Operations Directorate,Capita Secure Information Systems,5100058193,"18,736.00"
Home Office,NPIA - National Policing Improvement Agency,26/10/2011,IT software,Operations Directorate,Capita Secure Information Systems,5100058193,"12,021.00"
Home Office,NPIA - National Policing Improvement Agency,26/10/2011,IT software,Operations Directorate,Capita Secure Information Systems,5100058193,"35,889.00"
Home Office,NPIA - National Policing Improvement Agency,26/10/2011,IT software,Operations Directorate,Capita Secure Information Systems,5100058193,"51,309.00"
Home Office,NPIA - National Policing Improvement Agency,26/10/2011,IT software,Operations Directorate,Capita Secure Information Systems,5100058193,"14,881.00"
Home Office,NPIA - National Policing Improvement Agency,26/10/2011,IT software,Operations Directorate,Capita Secure Information Systems,5100058193,"29,432.00"
Home Office,NPIA - National Policing Improvement Agency,26/10/2011,IT software,Operations Directorate,Capita Secure Information Systems,5100058193,"24,835.00"
Home Office,NPIA - National Policing Improvement Agency,26/10/2011,IT software,Operations Directorate,Capita Secure Information Systems,5100058194,"39,752.00"
Home Office,NPIA - National Policing Improvement Agency,26/10/2011,IT software,Operations Directorate,Capita Secure Information Systems,5100058194,"16,994.00"
Home Office,NPIA - National Policing Improvement Agency,26/10/2011,IT software,Operations Directorate,Capita Secure Information Systems,5100058194,"20,285.00"
Home Office,NPIA - National Policing Improvement Agency,26/10/2011,IT software,Operations Directorate,Capita Secure Information Systems,5100058194,"20,964.00"
Home Office,NPIA - National Policing Improvement Agency,26/10/2011,IT software,Operations Directorate,Capita Secure Information Systems,5100058194,"10,004.00"
Home Office,NPIA - National Policing Improvement Agency,26/10/2011,Stationery,Operations Directorate,Capita Secure Information Systems,5100058194,"16,189.00"
Home Office,NPIA - National Policing Improvement Agency,26/10/2011,IT software,Operations Directorate,Capita Secure Information Systems,5100058194,"35,242.00"
Home Office,NPIA - National Policing Improvement Agency,26/10/2011,IT software,Operations Directorate,Capita Secure Information Systems,5100058194,"10,061.00"
Home Office,NPIA - National Policing Improvement Agency,26/10/2011,IT software,Operations Directorate,Capita Secure Information Systems,5100058194,"20,948.00"
Home Office,NPIA - National Policing Improvement Agency,26/10/2011,IT software,Operations Directorate,Capita Secure Information Systems,5100058194,"28,867.00"
Home Office,NPIA - National Policing Improvement Agency,26/10/2011,IT software,Operations Directorate,Capita Secure Information Systems,5100058194,"18,253.00"
Home Office,NPIA - National Policing Improvement Agency,26/10/2011,IT software,Operations Directorate,Capita Secure Information Systems,5100058194,"12,519.00"
Home Office,NPIA - National Policing Improvement Agency,26/10/2011,IT software,Operations Directorate,Capita Secure Information Systems,5100058194,"23,819.00"
Home Office,NPIA - National Policing Improvement Agency,26/10/2011,IT software,Operations Directorate,Capita Secure Information Systems,5100058194,"26,369.00"
Home Office,NPIA - National Policing Improvement Agency,26/10/2011,IT software,Operations Directorate,Capita Secure Information Systems,5100058194,"20,621.00"
Home Office,NPIA - National Policing Improvement Agency,26/10/2011,IT software,Operations Directorate,Capita Secure Information Systems,5100058194,"20,834.00"
Home Office,NPIA - National Policing Improvement Agency,26/10/2011,IT software,Operations Directorate,Capita Secure Information Systems,5100058194,"34,092.00"
Home Office,NPIA - National Policing Improvement Agency,26/10/2011,IT software,Operations Directorate,Capita Secure Information Systems,5100058194,"19,092.00"
Home Office,NPIA - National Policing Improvement Agency,26/10/2011,IT software,Operations Directorate,Capita Secure Information Systems,5100058194,"26,080.00"
Home Office,NPIA - National Policing Improvement Agency,26/10/2011,IT software,Operations Directorate,Capita Secure Information Systems,5100058194,"18,736.00"
Home Office,NPIA - National Policing Improvement Agency,26/10/2011,IT software,Operations Directorate,Capita Secure Information Systems,5100058194,"12,021.00"
Home Office,NPIA - National Policing Improvement Agency,26/10/2011,IT software,Operations Directorate,Capita Secure Information Systems,5100058194,"35,889.00"
Home Office,NPIA - National Policing Improvement Agency,26/10/2011,IT software,Operations Directorate,Capita Secure Information Systems,5100058194,"51,309.00"
Home Office,NPIA - National Policing Improvement Agency,26/10/2011,IT software,Operations Directorate,Capita Secure Information Systems,5100058194,"14,881.00"
Home Office,NPIA - National Policing Improvement Agency,26/10/2011,IT software,Operations Directorate,Capita Secure Information Systems,5100058194,"29,432.00"
Home Office,NPIA - National Policing Improvement Agency,26/10/2011,IT software,Operations Directorate,Capita Secure Information Systems,5100058194,"24,835.00"
Home Office,NPIA - National Policing Improvement Agency,26/10/2011,IT software,Operations Directorate,Capita Secure Information Systems,5100058195,"39,752.00"
Home Office,NPIA - National Policing Improvement Agency,26/10/2011,IT software,Operations Directorate,Capita Secure Information Systems,5100058195,"16,994.00"
Home Office,NPIA - National Policing Improvement Agency,26/10/2011,IT software,Operations Directorate,Capita Secure Information Systems,5100058195,"20,285.00"
Home Office,NPIA - National Policing Improvement Agency,26/10/2011,IT software,Operations Directorate,Capita Secure Information Systems,5100058195,"20,964.00"
Home Office,NPIA - National Policing Improvement Agency,26/10/2011,IT software,Operations Directorate,Capita Secure Information Systems,5100058195,"10,004.00"
Home Office,NPIA - National Policing Improvement Agency,26/10/2011,Stationery,Operations Directorate,Capita Secure Information Systems,5100058195,"16,189.00"
Home Office,NPIA - National Policing Improvement Agency,26/10/2011,IT software,Operations Directorate,Capita Secure Information Systems,5100058195,"35,242.00"
Home Office,NPIA - National Policing Improvement Agency,26/10/2011,IT software,Operations Directorate,Capita Secure Information Systems,5100058195,"10,061.00"
Home Office,NPIA - National Policing Improvement Agency,26/10/2011,IT software,Operations Directorate,Capita Secure Information Systems,5100058195,"20,948.00"
Home Office,NPIA - National Policing Improvement Agency,26/10/2011,IT software,Operations Directorate,Capita Secure Information Systems,5100058195,"28,867.00"
Home Office,NPIA - National Policing Improvement Agency,26/10/2011,IT software,Operations Directorate,Capita Secure Information Systems,5100058195,"18,253.00"
Home Office,NPIA - National Policing Improvement Agency,26/10/2011,IT software,Operations Directorate,Capita Secure Information Systems,5100058195,"12,519.00"
Home Office,NPIA - National Policing Improvement Agency,26/10/2011,IT software,Operations Directorate,Capita Secure Information Systems,5100058195,"23,819.00"
Home Office,NPIA - National Policing Improvement Agency,26/10/2011,IT software,Operations Directorate,Capita Secure Information Systems,5100058195,"26,369.00"
Home Office,NPIA - National Policing Improvement Agency,26/10/2011,IT software,Operations Directorate,Capita Secure Information Systems,5100058195,"20,621.00"
Home Office,NPIA - National Policing Improvement Agency,26/10/2011,IT software,Operations Directorate,Capita Secure Information Systems,5100058195,"20,834.00"
Home Office,NPIA - National Policing Improvement Agency,26/10/2011,IT software,Operations Directorate,Capita Secure Information Systems,5100058195,"34,092.00"
Home Office,NPIA - National Policing Improvement Agency,26/10/2011,IT software,Operations Directorate,Capita Secure Information Systems,5100058195,"19,092.00"
Home Office,NPIA - National Policing Improvement Agency,26/10/2011,IT software,Operations Directorate,Capita Secure Information Systems,5100058195,"26,080.00"
Home Office,NPIA - National Policing Improvement Agency,26/10/2011,IT software,Operations Directorate,Capita Secure Information Systems,5100058195,"18,736.00"
Home Office,NPIA - National Policing Improvement Agency,26/10/2011,IT software,Operations Directorate,Capita Secure Information Systems,5100058195,"12,021.00"
Home Office,NPIA - National Policing Improvement Agency,26/10/2011,IT software,Operations Directorate,Capita Secure Information Systems,5100058195,"35,889.00"
Home Office,NPIA - National Policing Improvement Agency,26/10/2011,IT software,Operations Directorate,Capita Secure Information Systems,5100058195,"51,309.00"
Home Office,NPIA - National Policing Improvement Agency,26/10/2011,IT software,Operations Directorate,Capita Secure Information Systems,5100058195,"14,881.00"
Home Office,NPIA - National Policing Improvement Agency,26/10/2011,IT software,Operations Directorate,Capita Secure Information Systems,5100058195,"29,432.00"
Home Office,NPIA - National Policing Improvement Agency,26/10/2011,IT software,Operations Directorate,Capita Secure Information Systems,5100058195,"24,835.00"
Home Office,NPIA - National Policing Improvement Agency,12/10/2011,Management consultancy,Operations Directorate,Analysys Mason Limited,5100058307,"42,842.00"
Home Office,NPIA - National Policing Improvement Agency,24/10/2011,Stationery,Operations Directorate,Airwave Solutions Ltd,5100058354,"24,457.59"
Home Office,NPIA - National Policing Improvement Agency,27/10/2011,Airwave Core Service Charge,Operations Directorate,Airwave Solutions Ltd,5100058356,"226,057.22"
Home Office,NPIA - National Policing Improvement Agency,27/10/2011,Airwave Core Service Charge,Operations Directorate,Airwave Solutions Ltd,5100058357,"14,844,329.73"
Home Office,NPIA - National Policing Improvement Agency,24/10/2011,Airwave in London Underground Service Charge,Operations Directorate,Airwave Solutions Ltd,5100058358,"368,459.38"
Home Office,NPIA - National Policing Improvement Agency,24/10/2011,Airwave Cluster Hot Standby Service Charge,Operations Directorate,Airwave Solutions Ltd,5100058359,"640,091.29"
Home Office,NPIA - National Policing Improvement Agency,24/10/2011,Airwave Ground Based Network Resilience Serv. Chg,Operations Directorate,Airwave Solutions Ltd,5100058360,"588,667.38"
Home Office,NPIA - National Policing Improvement Agency,24/10/2011,Airwave Core Service Charge,Operations Directorate,Airwave Solutions Ltd,5100058361,"60,699.00"
Home Office,NPIA - National Policing Improvement Agency,24/10/2011,Firewall Service Charge,Operations Directorate,Airwave Solutions Ltd,5100058361,"25,191.07"
Home Office,NPIA - National Policing Improvement Agency,24/10/2011,Airwave Core Service Charge,Operations Directorate,Airwave Solutions Ltd,5100058361,"8,297.08"
Home Office,NPIA - National Policing Improvement Agency,24/10/2011,Stamford Service Charge,Operations Directorate,Airwave Solutions Ltd,5100058361,"77,888.97"
Home Office,NPIA - National Policing Improvement Agency,24/10/2011,Airwave Core Service Charge,Operations Directorate,Airwave Solutions Ltd,5100058362,"88,775.00"
Home Office,NPIA - National Policing Improvement Agency,21/10/2011,IT Hardware,Operations Directorate,Fujitsu (FTS) Limited,5100058667,"3,856.86"
Home Office,NPIA - National Policing Improvement Agency,21/10/2011,IT Hardware,Operations Directorate,Fujitsu (FTS) Limited,5100058667,771.37
Home Office,NPIA - National Policing Improvement Agency,21/10/2011,IT Hardware,Operations Directorate,Fujitsu (FTS) Limited,5100058667,"1,144.12"
Home Office,NPIA - National Policing Improvement Agency,21/10/2011,IT Hardware,Operations Directorate,Fujitsu (FTS) Limited,5100058667,228.82
Home Office,NPIA - National Policing Improvement Agency,21/10/2011,IT Hardware,Operations Directorate,Fujitsu (FTS) Limited,5100058667,"6,010.90"
Home Office,NPIA - National Policing Improvement Agency,21/10/2011,IT Hardware,Operations Directorate,Fujitsu (FTS) Limited,5100058667,"1,202.18"
Home Office,NPIA - National Policing Improvement Agency,21/10/2011,IT Hardware,Operations Directorate,Fujitsu (FTS) Limited,5100058667,93.16
Home Office,NPIA - National Policing Improvement Agency,21/10/2011,IT Hardware,Operations Directorate,Fujitsu (FTS) Limited,5100058667,18.63
Home Office,NPIA - National Policing Improvement Agency,21/10/2011,IT Hardware,Operations Directorate,Fujitsu (FTS) Limited,5100058667,"7,637.94"
Home Office,NPIA - National Policing Improvement Agency,21/10/2011,IT Hardware,Operations Directorate,Fujitsu (FTS) Limited,5100058667,"1,527.59"
Home Office,NPIA - National Policing Improvement Agency,21/10/2011,IT Hardware,Operations Directorate,Fujitsu (FTS) Limited,5100058667,"22,418.88"
Home Office,NPIA - National Policing Improvement Agency,21/10/2011,IT Hardware,Operations Directorate,Fujitsu (FTS) Limited,5100058667,"4,483.78"
Home Office,NPIA - National Policing Improvement Agency,21/10/2011,IT Hardware,Operations Directorate,Fujitsu (FTS) Limited,5100058667,372.64
Home Office,NPIA - National Policing Improvement Agency,21/10/2011,IT Hardware,Operations Directorate,Fujitsu (FTS) Limited,5100058667,74.53
Home Office,NPIA - National Policing Improvement Agency,21/10/2011,IT Hardware,Operations Directorate,Fujitsu (FTS) Limited,5100058667,"44,683.14"
Home Office,NPIA - National Policing Improvement Agency,21/10/2011,IT Hardware,Operations Directorate,Fujitsu (FTS) Limited,5100058667,"8,936.63"
Home Office,NPIA - National Policing Improvement Agency,21/10/2011,IT Hardware,Operations Directorate,Fujitsu (FTS) Limited,5100058667,372.64
Home Office,NPIA - National Policing Improvement Agency,21/10/2011,IT Hardware,Operations Directorate,Fujitsu (FTS) Limited,5100058667,74.53
Home Office,NPIA - National Policing Improvement Agency,21/10/2011,IT Hardware,Operations Directorate,Fujitsu (FTS) Limited,5100058667,"33,393.04"
Home Office,NPIA - National Policing Improvement Agency,21/10/2011,IT Hardware,Operations Directorate,Fujitsu (FTS) Limited,5100058667,"6,678.60"
Home Office,NPIA - National Policing Improvement Agency,26/10/2011,IT Managed Services,Operations Directorate,Cable & Wireless Communications,5100058800,"6,102.00"
Home Office,NPIA - National Policing Improvement Agency,26/10/2011,IT Managed Services,Operations Directorate,Cable & Wireless Communications,5100058800,"3,738.00"
Home Office,NPIA - National Policing Improvement Agency,26/10/2011,IT Managed Services,Operations Directorate,Cable & Wireless Communications,5100058800,"75,302.95"
Home Office,NPIA - National Policing Improvement Agency,26/10/2011,IT Managed Services,Operations Directorate,Cable & Wireless Communications,5100058800,0.05
Home Office,NPIA - National Policing Improvement Agency,26/10/2011,IT maintenance,Operations Directorate,Specialist Computer Centres PLC,5100058805,"113,334.00"
Home Office,NPIA - National Policing Improvement Agency,26/10/2011,IT maintenance,Operations Directorate,Specialist Computer Centres PLC,5100058805,"22,666.80"
Home Office,NPIA - National Policing Improvement Agency,26/10/2011,Telephone charges,Operations Directorate,Specialist Computer Centres PLC,5100058805,"2,550.00"
Home Office,NPIA - National Policing Improvement Agency,26/10/2011,Telephone charges,Operations Directorate,Specialist Computer Centres PLC,5100058805,510
Home Office,NPIA - National Policing Improvement Agency,26/10/2011,IT Managed Services,Operations Directorate,Airwave Solutions Ltd,5100058814,"-191,999.60"
Home Office,NPIA - National Policing Improvement Agency,27/10/2011,Contractors,Operations Directorate,LA International Consultants,5100057856,"-26,919.29"
Home Office,NPIA - National Policing Improvement Agency,27/10/2011,Contractors,Operations Directorate,LA International Consultants,5100057856,-1.81
Home Office,NPIA - National Policing Improvement Agency,27/10/2011,Contractors,Operations Directorate,LA International Consultants,5100057857,"27,043.47"
Home Office,NPIA - National Policing Improvement Agency,27/10/2011,Contractors,Operations Directorate,LA International Consultants,5100057857,1.32
Home Office,NPIA - National Policing Improvement Agency,26/10/2011,IT maintenance,Operations Directorate,BT Billing Enquiries,5100057918,"5,555.55"
Home Office,NPIA - National Policing Improvement Agency,26/10/2011,IT maintenance,Operations Directorate,BT Billing Enquiries,5100057918,"1,111.11"
Home Office,NPIA - National Policing Improvement Agency,26/10/2011,IT maintenance,Operations Directorate,BT Billing Enquiries,5100057918,"5,533.33"
Home Office,NPIA - National Policing Improvement Agency,26/10/2011,IT maintenance,Operations Directorate,BT Billing Enquiries,5100057918,"1,093.31"
Home Office,NPIA - National Policing Improvement Agency,27/10/2011,Airwave Core Service Charge,Operations Directorate,Airwave Solutions Ltd,5100058897,"-14,844,329.73"
Home Office,NPIA - National Policing Improvement Agency,27/10/2011,Airwave Core Service Charge,Operations Directorate,Airwave Solutions Ltd,5100058900,"-226,057.22"
Home Office,NPIA - National Policing Improvement Agency,18/10/2011,IT software,People & Development,Specialist Computer Centres PLC,5100057872,"25,398.96"
Home Office,NPIA - National Policing Improvement Agency,18/10/2011,IT software,People & Development,Specialist Computer Centres PLC,5100057872,"16,932.60"
Home Office,NPIA - National Policing Improvement Agency,03/10/2011,Training materials - customer,Policing Policy and Practice Directorate ,REMPLOY LIMITED,5100056739,"31,663.02"
Home Office,NPIA - National Policing Improvement Agency,18/10/2011,FM Costs,Resources Directorate,Wyboston Lakes Ltd,5100058141,"31,614.02"
Home Office,NPIA - National Policing Improvement Agency,18/10/2011,FM Costs,Resources Directorate,Wyboston Lakes Ltd,5100058141,8.53
Home Office,NPIA - National Policing Improvement Agency,18/10/2011,FM Costs,Resources Directorate,Wyboston Lakes Ltd,5100058142,"56,968.53"
Home Office,NPIA - National Policing Improvement Agency,12/10/2011,Land and Buildings maintenance,Resources Directorate,Home Office,5100057849,"58,548.10"
Home Office,NPIA - National Policing Improvement Agency,12/10/2011,Land and Buildings maintenance,Resources Directorate,Home Office,5100057849,"11,709.61"
Home Office,NPIA - National Policing Improvement Agency,12/10/2011,Land and Buildings maintenance,Resources Directorate,Home Office,5100057849,"7,236.91"
Home Office,NPIA - National Policing Improvement Agency,12/10/2011,Land and Buildings maintenance,Resources Directorate,Home Office,5100057849,"1,447.38"
Home Office,NPIA - National Policing Improvement Agency,12/10/2011,FM Costs,Resources Directorate,Home Office,5100057849,"12,970.69"
Home Office,NPIA - National Policing Improvement Agency,12/10/2011,FM Costs,Resources Directorate,Home Office,5100057849,259.42
Home Office,NPIA - National Policing Improvement Agency,12/10/2011,FM Costs,Resources Directorate,Home Office,5100057849,"3,319.66"
Home Office,NPIA - National Policing Improvement Agency,12/10/2011,FM Costs,Resources Directorate,Home Office,5100057849,66.39
Home Office,NPIA - National Policing Improvement Agency,12/10/2011,Land and Buildings maintenance,Resources Directorate,Home Office,5100057849,"2,011.32"
Home Office,NPIA - National Policing Improvement Agency,12/10/2011,Land and Buildings maintenance,Resources Directorate,Home Office,5100057849,40.23
Home Office,NPIA - National Policing Improvement Agency,12/10/2011,FM Costs,Resources Directorate,Home Office,5100057849,"3,607.78"
Home Office,NPIA - National Policing Improvement Agency,12/10/2011,FM Costs,Resources Directorate,Home Office,5100057849,72.16
Home Office,NPIA - National Policing Improvement Agency,12/10/2011,FM Costs,Resources Directorate,Home Office,5100057849,"10,073.86"
Home Office,NPIA - National Policing Improvement Agency,12/10/2011,FM Costs,Resources Directorate,Home Office,5100057849,201.47
Home Office,NPIA - National Policing Improvement Agency,18/10/2011,FM Costs,Resources Directorate,Azcom Business Solutions Ltd,5100058310,"30,559.20"
Home Office,NPIA - National Policing Improvement Agency,18/10/2011,FM Costs,Resources Directorate,Home Office,5100058363,"87,212.63"
Home Office,NPIA - National Policing Improvement Agency,18/10/2011,FM Costs,Resources Directorate,Home Office,5100058363,"1,744.25"
Home Office,NPIA - National Policing Improvement Agency,18/10/2011,FM Costs,Resources Directorate,Home Office,5100058363,728.86
Home Office,NPIA - National Policing Improvement Agency,18/10/2011,FM Costs,Resources Directorate,Home Office,5100058363,14.58
Home Office,NPIA - National Policing Improvement Agency,18/10/2011,FM Costs,Resources Directorate,Home Office,5100058363,"1,926.00"
Home Office,NPIA - National Policing Improvement Agency,18/10/2011,FM Costs,Resources Directorate,Home Office,5100058363,38.52
Home Office,NPIA - National Policing Improvement Agency,18/10/2011,FM Costs,Resources Directorate,Home Office,5100058363,"82,144.00"
Home Office,NPIA - National Policing Improvement Agency,18/10/2011,FM Costs,Resources Directorate,Home Office,5100058363,"1,642.88"
Home Office,NPIA - National Policing Improvement Agency,18/10/2011,FM Costs,Resources Directorate,Home Office,5100058363,"2,744.00"
Home Office,NPIA - National Policing Improvement Agency,18/10/2011,FM Costs,Resources Directorate,Home Office,5100058363,54.88
Home Office,NPIA - National Policing Improvement Agency,18/10/2011,FM Costs,Resources Directorate,Home Office,5100058363,"226,556.52"
Home Office,NPIA - National Policing Improvement Agency,18/10/2011,FM Costs,Resources Directorate,Home Office,5100058363,"4,531.13"
Home Office,NPIA - National Policing Improvement Agency,18/10/2011,FM Costs,Resources Directorate,Home Office,5100058363,"7,590.00"
Home Office,NPIA - National Policing Improvement Agency,18/10/2011,FM Costs,Resources Directorate,Home Office,5100058363,151.8
Home Office,NPIA - National Policing Improvement Agency,18/10/2011,FM Costs,Resources Directorate,Home Office,5100058363,"92,562.00"
Home Office,NPIA - National Policing Improvement Agency,18/10/2011,FM Costs,Resources Directorate,Home Office,5100058363,"1,851.24"
Home Office,NPIA - National Policing Improvement Agency,18/10/2011,FM Costs,Resources Directorate,Home Office,5100058363,"3,092.00"
Home Office,NPIA - National Policing Improvement Agency,18/10/2011,FM Costs,Resources Directorate,Home Office,5100058363,61.84
Home Office,NPIA - National Policing Improvement Agency,18/10/2011,FM Costs,Resources Directorate,Home Office,5100058363,"321,428.00"
Home Office,NPIA - National Policing Improvement Agency,18/10/2011,FM Costs,Resources Directorate,Home Office,5100058363,"6,428.56"
Home Office,NPIA - National Policing Improvement Agency,18/10/2011,FM Costs,Resources Directorate,Home Office,5100058363,"6,686.00"
Home Office,NPIA - National Policing Improvement Agency,18/10/2011,FM Costs,Resources Directorate,Home Office,5100058363,133.72
Home Office,NPIA - National Policing Improvement Agency,18/10/2011,FM Costs,Resources Directorate,Home Office,5100058363,"18,786.94"
Home Office,NPIA - National Policing Improvement Agency,18/10/2011,FM Costs,Resources Directorate,Home Office,5100058363,381.54
Home Office,NPIA - National Policing Improvement Agency,18/10/2011,FM Costs,Resources Directorate,Home Office,5100058363,224.94
Home Office,NPIA - National Policing Improvement Agency,18/10/2011,FM Costs,Resources Directorate,Home Office,5100058363,4.5
Home Office,NPIA - National Policing Improvement Agency,18/10/2011,FM Costs,Resources Directorate,Home Office,5100058363,"2,091.00"
Home Office,NPIA - National Policing Improvement Agency,18/10/2011,FM Costs,Resources Directorate,Home Office,5100058363,41.82
Home Office,NPIA - National Policing Improvement Agency,18/10/2011,FM Costs,Resources Directorate,Home Office,5100058363,56
Home Office,NPIA - National Policing Improvement Agency,18/10/2011,FM Costs,Resources Directorate,Home Office,5100058363,1.19
Home Office,NPIA - National Policing Improvement Agency,18/10/2011,FM Costs,Resources Directorate,Home Office,5100058363,44
Home Office,NPIA - National Policing Improvement Agency,18/10/2011,FM Costs,Resources Directorate,Home Office,5100058363,0.88
Home Office,NPIA - National Policing Improvement Agency,12/10/2011,Land and Buildings maintenance,Resources Directorate,Home Office,5100058413,"-72,795.35"
Home Office,NPIA - National Policing Improvement Agency,12/10/2011,Land and Buildings maintenance,Resources Directorate,Home Office,5100058413,"-123,984.62"
Home Office,NPIA - National Policing Improvement Agency,12/10/2011,Land and Buildings maintenance,Resources Directorate,Home Office,5100058413,"-24,796.92"
Home Office,NPIA - National Policing Improvement Agency,12/10/2011,Land and Buildings maintenance,Resources Directorate,Home Office,5100058413,"-36,876.96"
Home Office,NPIA - National Policing Improvement Agency,12/10/2011,Land and Buildings maintenance,Resources Directorate,Home Office,5100058413,-683.12
Home Office,NPIA - National Policing Improvement Agency,12/10/2011,Land and Buildings maintenance,Resources Directorate,Home Office,5100058413,-620.33
Home Office,NPIA - National Policing Improvement Agency,12/10/2011,Land and Buildings maintenance,Resources Directorate,Home Office,5100058413,-12.23
Home Office,NPIA - National Policing Improvement Agency,12/10/2011,Land and Buildings maintenance,Resources Directorate,Home Office,5100058413,"-2,069.13"
Home Office,NPIA - National Policing Improvement Agency,12/10/2011,Land and Buildings maintenance,Resources Directorate,Home Office,5100058413,-40.55
Home Office,NPIA - National Policing Improvement Agency,12/10/2011,FM Costs,Resources Directorate,Home Office,5100058413,"-4,028.40"
Home Office,NPIA - National Policing Improvement Agency,12/10/2011,FM Costs,Resources Directorate,Home Office,5100058413,-80.57
Home Office,NPIA - National Policing Improvement Agency,12/10/2011,FM Costs,Resources Directorate,Home Office,5100058413,"-4,321.69"
Home Office,NPIA - National Policing Improvement Agency,12/10/2011,FM Costs,Resources Directorate,Home Office,5100058413,-86.43
Home Office,NPIA - National Policing Improvement Agency,12/10/2011,Land and Buildings maintenance,Resources Directorate,Home Office,5100058414,"123,984.62"
Home Office,NPIA - National Policing Improvement Agency,12/10/2011,Land and Buildings maintenance,Resources Directorate,Home Office,5100058414,"24,796.92"
Home Office,NPIA - National Policing Improvement Agency,12/10/2011,Land and Buildings maintenance,Resources Directorate,Home Office,5100058414,"36,876.96"
Home Office,NPIA - National Policing Improvement Agency,12/10/2011,Land and Buildings maintenance,Resources Directorate,Home Office,5100058414,683.12
Home Office,NPIA - National Policing Improvement Agency,12/10/2011,Land and Buildings maintenance,Resources Directorate,Home Office,5100058414,620.33
Home Office,NPIA - National Policing Improvement Agency,12/10/2011,Land and Buildings maintenance,Resources Directorate,Home Office,5100058414,12.23
Home Office,NPIA - National Policing Improvement Agency,12/10/2011,Land and Buildings maintenance,Resources Directorate,Home Office,5100058414,"2,069.13"
Home Office,NPIA - National Policing Improvement Agency,12/10/2011,Land and Buildings maintenance,Resources Directorate,Home Office,5100058414,40.55
Home Office,NPIA - National Policing Improvement Agency,12/10/2011,FM Costs,Resources Directorate,Home Office,5100058414,"4,028.40"
Home Office,NPIA - National Policing Improvement Agency,12/10/2011,FM Costs,Resources Directorate,Home Office,5100058414,80.57
Home Office,NPIA - National Policing Improvement Agency,12/10/2011,FM Costs,Resources Directorate,Home Office,5100058414,"4,321.69"
Home Office,NPIA - National Policing Improvement Agency,12/10/2011,FM Costs,Resources Directorate,Home Office,5100058414,86.43
Home Office,NPIA - National Policing Improvement Agency,12/10/2011,FM Costs,Resources Directorate,Home Office,5100058414,"60,662.80"
Home Office,NPIA - National Policing Improvement Agency,12/10/2011,FM Costs,Resources Directorate,Home Office,5100058414,"1,213.26"
Home Office,NPIA - National Policing Improvement Agency,17/10/2011,Electricity,Resources Directorate,EDF Energy Exeter,1900062898,"16,130.25"
Home Office,NPIA - National Policing Improvement Agency,17/10/2011,Electricity,Resources Directorate,EDF Energy Exeter,1900062898,"4,026.61"
Home Office,NPIA - National Policing Improvement Agency,17/10/2011,Electricity,Resources Directorate,EDF Energy Exeter,1900062898,"3,600.08"
Home Office,NPIA - National Policing Improvement Agency,17/10/2011,Electricity,Resources Directorate,EDF Energy Exeter,1900062898,284.14
Home Office,NPIA - National Policing Improvement Agency,17/10/2011,Electricity,Resources Directorate,EDF Energy Exeter,1900062898,"49,537.91"
Home Office,NPIA - National Policing Improvement Agency,18/10/2011,Electricity,Resources Directorate,EDF Energy,1900063177,"21,288.41"
Home Office,NPIA - National Policing Improvement Agency,21/10/2011,Land and Buildings maintenance,Resources Directorate,Scott Wilson Ltd,1900063335,"25,192.49"
Home Office,UKBA - UK Border Agency,21/10/2011,"Transport, Storage & Mail Serv.Visa stock",UKBA - UK Border Agency,3M SECURITY PRINTING & SYSTEMS LTD,1001170388,"80,874.43"
Home Office,UKBA - UK Border Agency,21/10/2011,"Transport, Storage & Mail Serv.Visa stock",UKBA - UK Border Agency,3M SECURITY PRINTING & SYSTEMS LTD,1001170388,"135,233.28"
Home Office,UKBA - UK Border Agency,21/10/2011,"Transport, Storage & Mail Serv.Visa stock",UKBA - UK Border Agency,3M SECURITY PRINTING & SYSTEMS LTD,1001170388,0.19
Home Office,UKBA - UK Border Agency,21/10/2011,"Transport, Storage & Mail Serv.Visa stock",UKBA - UK Border Agency,3M SECURITY PRINTING & SYSTEMS LTD,1001170388,"4,785.48"
Home Office,UKBA - UK Border Agency,21/10/2011,"Transport, Storage & Mail Serv.Visa stock",UKBA - UK Border Agency,3M SECURITY PRINTING & SYSTEMS LTD,1001170388,"35,665.92"
Home Office,UKBA - UK Border Agency,05/10/2011,IT & Telecoms Components.Computer Equip (FA),UKBA - UK Border Agency,ADVANTAGE TECHNICAL RESOURCING,1001163674,"29,640.00"
Home Office,UKBA - UK Border Agency,26/10/2011,Law Enforcement & safety Equip.Surveillance & Det Equip- PROG,UKBA - UK Border Agency,AIRWAVE SOLUTIONS LTD,1001172206,"1,272.73"
Home Office,UKBA - UK Border Agency,26/10/2011,Law Enforcement & safety Equip.Surveillance & Det Equip- PROG,UKBA - UK Border Agency,AIRWAVE SOLUTIONS LTD,1001172206,"5,093.23"
Home Office,UKBA - UK Border Agency,26/10/2011,Law Enforcement & safety Equip.Surveillance & Det Equip- PROG,UKBA - UK Border Agency,AIRWAVE SOLUTIONS LTD,1001172206,"1,909.97"
Home Office,UKBA - UK Border Agency,26/10/2011,Law Enforcement & safety Equip.Surveillance & Det Equip- PROG,UKBA - UK Border Agency,AIRWAVE SOLUTIONS LTD,1001172206,"659,776.21"
Home Office,UKBA - UK Border Agency,26/10/2011,Law Enforcement & safety Equip.Surveillance & Det Equip- PROG,UKBA - UK Border Agency,AIRWAVE SOLUTIONS LTD,1001172206,954.55
Home Office,UKBA - UK Border Agency,26/10/2011,Law Enforcement & safety Equip.Surveillance & Det Equip- PROG,UKBA - UK Border Agency,AIRWAVE SOLUTIONS LTD,1001172206,954.55
Home Office,UKBA - UK Border Agency,26/10/2011,Law Enforcement & safety Equip.Surveillance & Det Equip- PROG,UKBA - UK Border Agency,AIRWAVE SOLUTIONS LTD,1001172206,954.55
Home Office,UKBA - UK Border Agency,26/10/2011,Law Enforcement & safety Equip.Surveillance & Det Equip- PROG,UKBA - UK Border Agency,AIRWAVE SOLUTIONS LTD,1001172206,636.37
Home Office,UKBA - UK Border Agency,26/10/2011,Law Enforcement & safety Equip.Surveillance & Det Equip- PROG,UKBA - UK Border Agency,AIRWAVE SOLUTIONS LTD,1001172206,"2,546.62"
Home Office,UKBA - UK Border Agency,26/10/2011,Law Enforcement & safety Equip.Surveillance & Det Equip- PROG,UKBA - UK Border Agency,AIRWAVE SOLUTIONS LTD,1001172206,954.55
Home Office,UKBA - UK Border Agency,26/10/2011,Law Enforcement & safety Equip.Surveillance & Det Equip- PROG,UKBA - UK Border Agency,AIRWAVE SOLUTIONS LTD,1001172206,"1,590.91"
Home Office,UKBA - UK Border Agency,26/10/2011,Law Enforcement & safety Equip.Surveillance & Det Equip- PROG,UKBA - UK Border Agency,AIRWAVE SOLUTIONS LTD,1001172206,"2,228.29"
Home Office,UKBA - UK Border Agency,26/10/2011,Law Enforcement & safety Equip.Surveillance & Det Equip- PROG,UKBA - UK Border Agency,AIRWAVE SOLUTIONS LTD,1001172206,318.18
Home Office,UKBA - UK Border Agency,26/10/2011,Law Enforcement & safety Equip.Surveillance & Det Equip- PROG,UKBA - UK Border Agency,AIRWAVE SOLUTIONS LTD,1001172206,"1,591.63"
Home Office,UKBA - UK Border Agency,26/10/2011,Law Enforcement & safety Equip.Surveillance & Det Equip- PROG,UKBA - UK Border Agency,AIRWAVE SOLUTIONS LTD,1001172206,-2.4
Home Office,UKBA - UK Border Agency,26/10/2011,Law Enforcement & safety Equip.Surveillance & Det Equip- PROG,UKBA - UK Border Agency,AIRWAVE SOLUTIONS LTD,1001172206,636.66
Home Office,UKBA - UK Border Agency,26/10/2011,Law Enforcement & safety Equip.Surveillance & Det Equip- PROG,UKBA - UK Border Agency,AIRWAVE SOLUTIONS LTD,1001172206,318.18
Home Office,UKBA - UK Border Agency,26/10/2011,Law Enforcement & safety Equip.Surveillance & Det Equip- PROG,UKBA - UK Border Agency,AIRWAVE SOLUTIONS LTD,1001172206,"1,909.10"
Home Office,UKBA - UK Border Agency,05/10/2011,Management & Admin Serv.Temp IT N/w Specialists - PROG,UKBA - UK Border Agency,ALPINE RESOURCING LIMITED,1001163678,"26,400.00"
Home Office,UKBA - UK Border Agency,24/10/2011,Asylum Provision.Asylum accom Sec 95,UKBA - UK Border Agency,ANGEL GROUP,1001170926,"117,027.11"
Home Office,UKBA - UK Border Agency,24/10/2011,Asylum Provision.Asylum accom Sec 95,UKBA - UK Border Agency,ANGEL GROUP,1001170926,0.66
Home Office,UKBA - UK Border Agency,24/10/2011,Asylum Provision.Asylum accom Sec 95,UKBA - UK Border Agency,ANGEL GROUP,1001170926,"36,392.11"
Home Office,UKBA - UK Border Agency,20/10/2011,Law Enforcement & safety Equip.Surveillance & Det Equip- PROG,UKBA - UK Border Agency,ARQIVA LTD,1001169847,"50,225.58"
Home Office,UKBA - UK Border Agency,17/10/2011,"Law Enforcement & safety Equip.Haulage, Storage & Disp (HSD)",UKBA - UK Border Agency,ASSOCIATED BRITISH PORTS,1001167991,"222,526.00"
Home Office,UKBA - UK Border Agency,04/10/2011,"Science, Technical & Research.Computer services - PROG",UKBA - UK Border Agency,ATOS IT SERVICES UK LTD,1001162644,"167,897.00"
Home Office,UKBA - UK Border Agency,04/10/2011,"Science, Technical & Research.Computer services - PROG",UKBA - UK Border Agency,ATOS IT SERVICES UK LTD,1001162644,"52,103.00"
Home Office,UKBA - UK Border Agency,25/10/2011,"Science, Technical & Research.Computer services - PROG",UKBA - UK Border Agency,ATOS IT SERVICES UK LTD,1001171550,"39,170.00"
Home Office,UKBA - UK Border Agency,19/10/2011,"Science, Technical & Research.Computer services - PROG",UKBA - UK Border Agency,ATOS IT SERVICES UK LTD,1001169359,"37,661.00"
Home Office,UKBA - UK Border Agency,18/10/2011,"IT,TelecommsMan ServiceHosting.Support - ADMN",UKBA - UK Border Agency,ATOS IT SERVICES UK LTD,1001168544,"20,886.69"
Home Office,UKBA - UK Border Agency,18/10/2011,"IT,TelecommsMan ServiceHosting.Support - ADMN",UKBA - UK Border Agency,ATOS IT SERVICES UK LTD,1001168544,"92,584.00"
Home Office,UKBA - UK Border Agency,19/10/2011,"Science, Technical & Research.Computer services - PROG",UKBA - UK Border Agency,ATOS IT SERVICES UK LTD,1001169359,"70,501.81"
Home Office,UKBA - UK Border Agency,21/10/2011,"IT, TelecommsManaged Service.AMSSupport - PROG",UKBA - UK Border Agency,ATOS IT SERVICES UK LTD,1001170400,"133,464.00"
Home Office,UKBA - UK Border Agency,25/10/2011,"Science, Technical & Research.Computer services - PROG",UKBA - UK Border Agency,ATOS IT SERVICES UK LTD,1001171550,"798,769.55"
Home Office,UKBA - UK Border Agency,28/10/2011,"Science, Technical & Research.Computer services - PROG",UKBA - UK Border Agency,ATOS IT SERVICES UK LTD,1001173197,"377,896.94"
Home Office,UKBA - UK Border Agency,04/10/2011,"Messenger, Portering and Reception Services",UKBA - UK Border Agency,ATOS IT SOLUTIONS & SERVICES LTD,1001162645,"207,314.00"
Home Office,UKBA - UK Border Agency,26/10/2011,"Messenger, Portering and Reception Services",UKBA - UK Border Agency,ATOS IT SOLUTIONS & SERVICES LTD,1001172213,"221,774.60"
Home Office,UKBA - UK Border Agency,26/10/2011,"Messenger, Portering and Reception Services",UKBA - UK Border Agency,ATOS IT SOLUTIONS & SERVICES LTD,1001172213,"43,351.30"
Home Office,UKBA - UK Border Agency,18/10/2011,Grant,UKBA - UK Border Agency,BIRMINGHAM CITY COUNCIL,1001168554,"27,040.00"
Home Office,UKBA - UK Border Agency,26/10/2011,Grant,UKBA - UK Border Agency,BIRMINGHAM CITY COUNCIL (G),1001172127,"54,714.00"
Home Office,UKBA - UK Border Agency,07/10/2011,Grant,UKBA - UK Border Agency,BRADFORD COLLEGE (G),1001164971,"90,675.17"
Home Office,UKBA - UK Border Agency,14/10/2011,Grant,UKBA - UK Border Agency,BRADFORD COLLEGE (G),1001167399,"84,537.01"
Home Office,UKBA - UK Border Agency,26/10/2011,Grant,UKBA - UK Border Agency,BRADFORD COUNCIL(G),1001172129,"58,924.00"
Home Office,UKBA - UK Border Agency,12/10/2011,Grant,UKBA - UK Border Agency,BUCKINGHAMSHIRE COUNTY COUNCIL 1 (G),1001166501,"51,685.00"
Home Office,UKBA - UK Border Agency,26/10/2011,Grant,UKBA - UK Border Agency,BUCKINGHAMSHIRE COUNTY COUNCIL 1 (G),1001172130,"25,983.00"
Home Office,UKBA - UK Border Agency,12/10/2011,Grant,UKBA - UK Border Agency,BURY MBC (G),1001166502,"25,557.00"
Home Office,UKBA - UK Border Agency,12/10/2011,Grant,UKBA - UK Border Agency,CAMBRIDGESHIRE COUNTY COUNCIL (G),1001166504,"31,061.00"
Home Office,UKBA - UK Border Agency,26/10/2011,Grant,UKBA - UK Border Agency,CAMBRIDGESHIRE COUNTY COUNCIL (G),1001172131,"32,302.00"
Home Office,UKBA - UK Border Agency,10/10/2011,"Vehicles, Ships, Airplanes.Vessel Maintenance - PROG",UKBA - UK Border Agency,CAMMELL LAIRD SHIPREPAIRERS & SHIPBUILDERS LTD,1001165174,"16,838.85"
Home Office,UKBA - UK Border Agency,10/10/2011,"Vehicles, Ships, Airplanes.Vessel Maintenance - PROG",UKBA - UK Border Agency,CAMMELL LAIRD SHIPREPAIRERS & SHIPBUILDERS LTD,1001165174,"18,000.00"
Home Office,UKBA - UK Border Agency,04/10/2011,Politics & Civic Affairs.REFUGEE PROG. SECT 95,UKBA - UK Border Agency,CARDIFF COUNTY COUNCIL,1001162660,"258,794.75"
Home Office,UKBA - UK Border Agency,04/10/2011,Politics & Civic Affairs.REFUGEE PROG. SECT 95,UKBA - UK Border Agency,CARDIFF COUNTY COUNCIL,1001162660,"17,786.00"
Home Office,UKBA - UK Border Agency,25/10/2011,Asylum Provision.Asylum accom Sec 95,UKBA - UK Border Agency,CARDIFF COUNTY COUNCIL,1001171563,"257,878.25"
Home Office,UKBA - UK Border Agency,25/10/2011,Asylum Provision.Asylum accom Sec 95,UKBA - UK Border Agency,CARDIFF COUNTY COUNCIL,1001171563,"17,485.00"
Home Office,UKBA - UK Border Agency,12/10/2011,Grant,UKBA - UK Border Agency,CARDIFF COUNTY COUNCIL 1 (G),1001166505,"40,325.00"
Home Office,UKBA - UK Border Agency,26/10/2011,Asylum Services.Public Expense Removals,UKBA - UK Border Agency,CARLSON WAGONLIT TRAVEL,1001172222,"78,430.10"
Home Office,UKBA - UK Border Agency,07/10/2011,Asylum Services.Public Expense Removals,UKBA - UK Border Agency,CARLSON WAGONLIT TRAVEL,1001164580,"214,950.00"
Home Office,UKBA - UK Border Agency,07/10/2011,Asylum Services.Public Expense Removals,UKBA - UK Border Agency,CARLSON WAGONLIT TRAVEL,1001164580,"213,860.00"
Home Office,UKBA - UK Border Agency,24/10/2011,Asylum Services.Public Expense Removals,UKBA - UK Border Agency,CARLSON WAGONLIT TRAVEL,1001170941,"214,950.00"
Home Office,UKBA - UK Border Agency,04/10/2011,Asylum Services.Public Expense Removals,UKBA - UK Border Agency,CARLSON WAGONLIT TRAVEL,1001162661,"39,830.14"
Home Office,UKBA - UK Border Agency,04/10/2011,Asylum Services.Public Expense Removals,UKBA - UK Border Agency,CARLSON WAGONLIT TRAVEL,1001162661,"199,449.59"
Home Office,UKBA - UK Border Agency,04/10/2011,Asylum Services.Public Expense Removals,UKBA - UK Border Agency,CARLSON WAGONLIT TRAVEL,1001162661,"118,664.73"
Home Office,UKBA - UK Border Agency,04/10/2011,Asylum Services.Public Expense Removals,UKBA - UK Border Agency,CARLSON WAGONLIT TRAVEL,1001162661,"88,607.90"
Home Office,UKBA - UK Border Agency,07/10/2011,Asylum Services.Public Expense Removals,UKBA - UK Border Agency,CARLSON WAGONLIT TRAVEL,1001164581,"41,016.70"
Home Office,UKBA - UK Border Agency,07/10/2011,Asylum Services.Public Expense Removals,UKBA - UK Border Agency,CARLSON WAGONLIT TRAVEL,1001164581,"138,205.40"
Home Office,UKBA - UK Border Agency,07/10/2011,Asylum Services.Public Expense Removals,UKBA - UK Border Agency,CARLSON WAGONLIT TRAVEL,1001164581,"127,633.49"
Home Office,UKBA - UK Border Agency,11/10/2011,Asylum Services.Public Expense Removals,UKBA - UK Border Agency,CARLSON WAGONLIT TRAVEL,1001165779,"36,419.29"
Home Office,UKBA - UK Border Agency,12/10/2011,Asylum Services.Public Expense Removals,UKBA - UK Border Agency,CARLSON WAGONLIT TRAVEL,1001166427,"98,962.17"
Home Office,UKBA - UK Border Agency,14/10/2011,Asylum Services.Public Expense Removals,UKBA - UK Border Agency,CARLSON WAGONLIT TRAVEL,1001167431,"182,077.80"
Home Office,UKBA - UK Border Agency,14/10/2011,Asylum Services.Public Expense Removals,UKBA - UK Border Agency,CARLSON WAGONLIT TRAVEL,1001167431,"126,402.59"
Home Office,UKBA - UK Border Agency,14/10/2011,Asylum Services.Public Expense Removals,UKBA - UK Border Agency,CARLSON WAGONLIT TRAVEL,1001167431,"85,076.51"
Home Office,UKBA - UK Border Agency,18/10/2011,Asylum Services.Public Expense Removals,UKBA - UK Border Agency,CARLSON WAGONLIT TRAVEL,1001168581,"133,630.71"
Home Office,UKBA - UK Border Agency,18/10/2011,Asylum Services.Public Expense Removals,UKBA - UK Border Agency,CARLSON WAGONLIT TRAVEL,1001168581,"57,969.86"
Home Office,UKBA - UK Border Agency,21/10/2011,Asylum Services.Public Expense Removals,UKBA - UK Border Agency,CARLSON WAGONLIT TRAVEL,1001170407,"148,787.41"
Home Office,UKBA - UK Border Agency,21/10/2011,Asylum Services.Public Expense Removals,UKBA - UK Border Agency,CARLSON WAGONLIT TRAVEL,1001170407,"173,496.85"
Home Office,UKBA - UK Border Agency,27/10/2011,Grant,UKBA - UK Border Agency,CARLSON WAGONLIT TRAVEL,1001172691,"114,501.06"
Home Office,UKBA - UK Border Agency,26/10/2011,Grant,UKBA - UK Border Agency,CENTRAL BEDFORDSHIRE COUNCIL (G),1001172132,"62,548.00"
Home Office,UKBA - UK Border Agency,13/10/2011,Public Order.Voluntary Assisted Return,UKBA - UK Border Agency,CITIBANK INTERNATIONAL PLC,7000006277,"450,000.00"
Home Office,UKBA - UK Border Agency,05/10/2011,Asylum Provision.Asylum accom Sec 95,UKBA - UK Border Agency,CITY AND COUNTY OF SWANSEA,1001163693,"72,576.46"
Home Office,UKBA - UK Border Agency,26/10/2011,Grant,UKBA - UK Border Agency,CITY OF WAKEFIELD METROPOLITAN DISTRICT COUNCIL (G),1001172133,"68,339.00"
Home Office,UKBA - UK Border Agency,25/10/2011,Asylum Provision.Asylum accom Sec 95,UKBA - UK Border Agency,CLEARSPRINGS MANAGEMENT LTD,1001171567,"192,319.21"
Home Office,UKBA - UK Border Agency,25/10/2011,Asylum Provision.Asylum accom Sec 95,UKBA - UK Border Agency,CLEARSPRINGS MANAGEMENT LTD,1001171567,"52,324.37"
Home Office,UKBA - UK Border Agency,25/10/2011,Asylum Provision.Asylum accom Sec 95,UKBA - UK Border Agency,CLEARSPRINGS MANAGEMENT LTD,1001171567,"54,611.86"
Home Office,UKBA - UK Border Agency,25/10/2011,Asylum Provision.Asylum accom Sec 95,UKBA - UK Border Agency,CLEARSPRINGS MANAGEMENT LTD,1001171567,"120,840.33"
Home Office,UKBA - UK Border Agency,25/10/2011,Asylum Provision.Asylum accom Sec 95,UKBA - UK Border Agency,CLEARSPRINGS MANAGEMENT LTD,1001171567,"31,933.13"
Home Office,UKBA - UK Border Agency,25/10/2011,Asylum Provision.Asylum accom Sec 95,UKBA - UK Border Agency,CLEARSPRINGS MANAGEMENT LTD,1001171567,"650,465.20"
Home Office,UKBA - UK Border Agency,25/10/2011,Asylum Provision.Asylum accom Sec 95,UKBA - UK Border Agency,CLEARSPRINGS MANAGEMENT LTD,1001171567,"38,905.92"
Home Office,UKBA - UK Border Agency,25/10/2011,Asylum Provision.Asylum accom Sec 95,UKBA - UK Border Agency,CLEARSPRINGS MANAGEMENT LTD,1001171567,"216,524.68"
Home Office,UKBA - UK Border Agency,25/10/2011,Asylum Provision.Asylum accom Sec 95,UKBA - UK Border Agency,CLEARSPRINGS MANAGEMENT LTD,1001171567,"142,152.18"
Home Office,UKBA - UK Border Agency,25/10/2011,Asylum Provision.Asylum accom Sec 95,UKBA - UK Border Agency,CLEARSPRINGS MANAGEMENT LTD,1001171567,"30,076.49"
Home Office,UKBA - UK Border Agency,25/10/2011,Asylum Provision.Asylum accom Sec 95,UKBA - UK Border Agency,CLEARSPRINGS MANAGEMENT LTD,1001171567,"156,920.50"
Home Office,UKBA - UK Border Agency,25/10/2011,Asylum Provision.Asylum accom Sec 95,UKBA - UK Border Agency,CLEARSPRINGS MANAGEMENT LTD,1001171567,"47,403.35"
Home Office,UKBA - UK Border Agency,04/10/2011,Politics & Civic Affairs.Human aid & relief Sect 4,UKBA - UK Border Agency,CLEARSPRINGS MANAGEMENT LTD,1001162666,"34,689.15"
Home Office,UKBA - UK Border Agency,10/10/2011,Grant,UKBA - UK Border Agency,COSLA (G),1001165612,"35,000.00"
Home Office,UKBA - UK Border Agency,25/10/2011,Management & Admin Serv.Overseas Posting Costs-PROG,UKBA - UK Border Agency,CROWN RELOCATIONS,1001171571,"54,180.91"
Home Office,UKBA - UK Border Agency,27/10/2011,Professional & Admin Services. Visa Processing Services,UKBA - UK Border Agency,CSC COMPUTER SCIENCES CORPORATION,1001172694,"1,387,740.90"
Home Office,UKBA - UK Border Agency,27/10/2011,Professional & Admin Services. Visa Processing Services,UKBA - UK Border Agency,CSC COMPUTER SCIENCES CORPORATION,1001172694,"167,247.32"
Home Office,UKBA - UK Border Agency,04/10/2011,"Messenger, Portering and Reception Services",UKBA - UK Border Agency,DEPARTMENT FOR WORK & PENSIONS (DWP),3000043561,"35,843.87"
Home Office,UKBA - UK Border Agency,04/10/2011,Grant,UKBA - UK Border Agency,DEPARTMENT FOR WORK & PENSIONS (DWP),3000043562,"96,437.00"
Home Office,UKBA - UK Border Agency,04/10/2011,Grant,UKBA - UK Border Agency,DEPARTMENT FOR WORK & PENSIONS (DWP),3000043562,"77,994.00"
Home Office,UKBA - UK Border Agency,04/10/2011,Grant,UKBA - UK Border Agency,DEPARTMENT FOR WORK & PENSIONS (DWP),3000043562,"70,655.00"
Home Office,UKBA - UK Border Agency,12/10/2011,Grant,UKBA - UK Border Agency,DERBY CITY COUNCIL  (G),1001166512,"33,066.00"
Home Office,UKBA - UK Border Agency,24/10/2011,Grant,UKBA - UK Border Agency,DONCASTER ETHNIC MINORITY REGENERATION PARTNERSHIP (G),1001171025,"48,933.73"
Home Office,UKBA - UK Border Agency,13/10/2011,"IT, Broadcasting & Telecomms.IT Run Costs other -Prog",UKBA - UK Border Agency,DP WORLD,7000006271,"191,340.00"
Home Office,UKBA - UK Border Agency,13/10/2011,"IT, Broadcasting & Telecomms.IT Run Costs other -Prog",UKBA - UK Border Agency,DP WORLD,7000006271,"127,560.00"
Home Office,UKBA - UK Border Agency,13/10/2011,"IT, Broadcasting & Telecomms.IT Run Costs other -Prog",UKBA - UK Border Agency,DP WORLD,7000006271,"79,725.00"
Home Office,UKBA - UK Border Agency,20/10/2011,Professional & Admin Services.Business admin services.Consultancy -business administration,UKBA - UK Border Agency,DRIVER AND VEHICLE LICENSING AGENCY (DVLA),3000043636,"67,306.72"
Home Office,UKBA - UK Border Agency,20/10/2011,Professional & Admin Services.Business admin services.Consultancy -business administration,UKBA - UK Border Agency,DRIVER AND VEHICLE LICENSING AGENCY (DVLA),3000043636,"46,823.34"
Home Office,UKBA - UK Border Agency,20/10/2011,Professional & Admin Services.Business admin services.Consultancy -business administration,UKBA - UK Border Agency,DRIVER AND VEHICLE LICENSING AGENCY (DVLA),3000043636,"75,817.14"
Home Office,UKBA - UK Border Agency,18/10/2011,Grant,UKBA - UK Border Agency,EALING REGISTER OFFICE,1001168609,"26,560.00"
Home Office,UKBA - UK Border Agency,18/10/2011,"Messenger, Portering and Reception Services",UKBA - UK Border Agency,EAMUS CORK SOLUTIONS,7000006284,"198,362.15"
Home Office,UKBA - UK Border Agency,24/10/2011,Grant,UKBA - UK Border Agency,EAST LONDON ADVANCED TECHNOLOGY TRAINING (ELATT) (G),1001171027,"50,250.00"
Home Office,UKBA - UK Border Agency,24/10/2011,Grant,UKBA - UK Border Agency,EAST LONDON ADVANCED TECHNOLOGY TRAINING (ELATT) (G),1001171027,"52,500.00"
Home Office,UKBA - UK Border Agency,25/10/2011,Grant,UKBA - UK Border Agency,EAST LONDON ADVANCED TECHNOLOGY TRAINING (ELATT) (G),1001171542,"37,500.00"
Home Office,UKBA - UK Border Agency,04/10/2011,Grant,UKBA - UK Border Agency,EAST MIDLANDS REGIONAL LOCAL GOVERNMENT ASSOCIATION (G),1001163499,"30,372.00"
Home Office,UKBA - UK Border Agency,04/10/2011,Grant,UKBA - UK Border Agency,EAST OF ENGLAND REGIONAL ASSEMBLY (G),1001163500,"25,699.50"
Home Office,UKBA - UK Border Agency,26/10/2011,Grant,UKBA - UK Border Agency,EAST SUSSEX COUNTY COUNCIL 1 (G),1001172141,"40,251.00"
Home Office,UKBA - UK Border Agency,04/10/2011,"Science, Technical & Research.Computer services - ADMN",UKBA - UK Border Agency,ECCTIS LTD,1001162683,"29,160.00"
Home Office,UKBA - UK Border Agency,24/10/2011,Grant,UKBA - UK Border Agency,ENFIELD COUNCIL (G),1001171028,"28,634.00"
Home Office,UKBA - UK Border Agency,26/10/2011,Professional & Admin Services.Business admin services - PROG,UKBA - UK Border Agency,ERNST AND YOUNG LLP,1001172234,"82,962.00"
Home Office,UKBA - UK Border Agency,25/10/2011,Professional & Admin Services.Business admin services - PROG,UKBA - UK Border Agency,ERNST AND YOUNG LLP,1001171580,"84,712.95"
Home Office,UKBA - UK Border Agency,24/10/2011,Professional & Admin Services.Business admin services - PROG,UKBA - UK Border Agency,ERNST AND YOUNG LLP,1001170955,"36,254.89"
Home Office,UKBA - UK Border Agency,26/10/2011,Professional & Admin Services.Business admin services - PROG,UKBA - UK Border Agency,ERNST AND YOUNG LLP,1001172234,"67,878.00"
Home Office,UKBA - UK Border Agency,26/10/2011,Professional & Admin Services.Business admin services - PROG,UKBA - UK Border Agency,ERNST AND YOUNG LLP,1001172234,"82,450.35"
Home Office,UKBA - UK Border Agency,26/10/2011,Professional & Admin Services.Business admin services - PROG,UKBA - UK Border Agency,ERNST AND YOUNG LLP,1001172234,"34,524.00"
Home Office,UKBA - UK Border Agency,26/10/2011,Professional & Admin Services.Business admin services - PROG,UKBA - UK Border Agency,ERNST AND YOUNG LLP,1001172234,"83,932.20"
Home Office,UKBA - UK Border Agency,26/10/2011,Grant,UKBA - UK Border Agency,ESSEX COUNTY COUNCIL 1 (G),1001172142,"124,633.00"
Home Office,UKBA - UK Border Agency,20/10/2011,IT & Telecoms Components.Computer Equip (FA),UKBA - UK Border Agency,EVOLVE BUSINESS CONSULTANCY LTD,1001169874,"16,110.00"
Home Office,UKBA - UK Border Agency,20/10/2011,IT & Telecoms Components.Computer Equip (FA),UKBA - UK Border Agency,EVOLVE BUSINESS CONSULTANCY LTD,1001169874,"10,740.00"
Home Office,UKBA - UK Border Agency,20/10/2011,IT & Telecoms Components.Computer Equip (FA),UKBA - UK Border Agency,EVOLVE BUSINESS CONSULTANCY LTD,1001169874,475.2
Home Office,UKBA - UK Border Agency,21/10/2011,IT & Telecoms Components.Computer Equip (FA),UKBA - UK Border Agency,EVOLVE BUSINESS CONSULTANCY LTD,1001170421,"26,850.00"
Home Office,UKBA - UK Border Agency,21/10/2011,IT & Telecoms Components.Computer Equip (FA),UKBA - UK Border Agency,EVOLVE BUSINESS CONSULTANCY LTD,1001170421,396
Home Office,UKBA - UK Border Agency,26/10/2011,Management & Admin Serv.Overseas Posting Costs-PROG,UKBA - UK Border Agency,EXPOTEL HOTEL RESERVATIONS LTD,7000006298,"40,372.58"
Home Office,UKBA - UK Border Agency,07/10/2011,"IT, TelecommsHardware Desktop.Support and Maintenance - ADMN",UKBA - UK Border Agency,FCO SERVICES,3000043585,"5,107,166.00"
Home Office,UKBA - UK Border Agency,07/10/2011,"IT, TelecommsHardware Desktop.Support and Maintenance - ADMN",UKBA - UK Border Agency,FCO SERVICES,3000043585,"3,580,200.00"
Home Office,UKBA - UK Border Agency,19/10/2011,"Print, Photo, Audio & Visual.Presentation equipment - PROG",UKBA - UK Border Agency,FCO SERVICES,3000043629,"26,888.22"
Home Office,UKBA - UK Border Agency,13/10/2011,IT & Telecoms Components.Standard Software  (FA) .,UKBA - UK Border Agency,FUJITSU SERVICES (ALCEDO) LTD,1001166995,"49,878.52"
Home Office,UKBA - UK Border Agency,05/10/2011,"IT, TelecommsSoftware (COTS).System Software - ADMN",UKBA - UK Border Agency,FUJITSU SERVICES (ALCEDO) LTD,1001163713,"29,178.16"
Home Office,UKBA - UK Border Agency,05/10/2011,"IT, TelecommsSoftware (COTS).System Software - ADMN",UKBA - UK Border Agency,FUJITSU SERVICES (ALCEDO) LTD,1001163713,"189,466.76"
Home Office,UKBA - UK Border Agency,28/10/2011,Politics & Civic Affairs.Refugee repatriation.serv,UKBA - UK Border Agency,G4S CARE & JUSTICE SERVICES (UK) LTD,1001173220,"295,238.32"
Home Office,UKBA - UK Border Agency,14/10/2011,"Law Enforcement & safety Equip.Haulage, Storage & Disp (HSD)",UKBA - UK Border Agency,G4S CASH SERVICES (UK) LIMITED,1001167457,"24,212.67"
Home Office,UKBA - UK Border Agency,05/10/2011,"Transport, Storage & Mail Serv.Parking fees - PROG",UKBA - UK Border Agency,GATWICK AIRPORT LTD,1001163715,56.4
Home Office,UKBA - UK Border Agency,05/10/2011,"Transport, Storage & Mail Serv.Parking fees - PROG",UKBA - UK Border Agency,GATWICK AIRPORT LTD,1001163715,"27,128.40"
Home Office,UKBA - UK Border Agency,05/10/2011,"Transport, Storage & Mail Serv.Parking fees - PROG",UKBA - UK Border Agency,GATWICK AIRPORT LTD,1001163715,56.4
Home Office,UKBA - UK Border Agency,05/10/2011,"Transport, Storage & Mail Serv.Parking fees - PROG",UKBA - UK Border Agency,GATWICK AIRPORT LTD,1001163715,620.4
Home Office,UKBA - UK Border Agency,05/10/2011,"Transport, Storage & Mail Serv.Parking fees - PROG",UKBA - UK Border Agency,GATWICK AIRPORT LTD,1001163715,"1,015.20"
Home Office,UKBA - UK Border Agency,05/10/2011,"Transport, Storage & Mail Serv.Parking fees - PROG",UKBA - UK Border Agency,GATWICK AIRPORT LTD,1001163715,902.4
Home Office,UKBA - UK Border Agency,12/10/2011,Grant,UKBA - UK Border Agency,GLOUCESTERSHIRE COUNTY COUNCIL 1 (G),1001166515,"66,663.00"
Home Office,UKBA - UK Border Agency,05/10/2011,Grant,UKBA - UK Border Agency,GOODWIN DEVELOPMENT TRUST (G),1001164050,"52,750.00"
Home Office,UKBA - UK Border Agency,18/10/2011,"Transport, Storage & Mail Serv.Mailing Mail Del Serv - ADMN",UKBA - UK Border Agency,GOVERNMENT CAR AND DESPATCH AGENCY (GCDA),3000043623,"21,095.19"
Home Office,UKBA - UK Border Agency,27/10/2011,"Transport, Storage & Mail Serv.Mailing Mail Del Serv - PROG",UKBA - UK Border Agency,GOVERNMENT CAR AND DESPATCH AGENCY (GCDA),3000043672,"10,805.93"
Home Office,UKBA - UK Border Agency,27/10/2011,"Transport, Storage & Mail Serv.Mailing Mail Del Serv - PROG",UKBA - UK Border Agency,GOVERNMENT CAR AND DESPATCH AGENCY (GCDA),3000043672,282.96
Home Office,UKBA - UK Border Agency,27/10/2011,"Transport, Storage & Mail Serv.Mailing Mail Del Serv - PROG",UKBA - UK Border Agency,GOVERNMENT CAR AND DESPATCH AGENCY (GCDA),3000043672,"15,639.30"
Home Office,UKBA - UK Border Agency,27/10/2011,"Transport, Storage & Mail Serv.Mailing Mail Del Serv - PROG",UKBA - UK Border Agency,GOVERNMENT CAR AND DESPATCH AGENCY (GCDA),3000043672,"1,012.00"
Home Office,UKBA - UK Border Agency,03/10/2011,Grant,UKBA - UK Border Agency,GROUNDWORK LONDON (G),1001162595,"129,051.37"
Home Office,UKBA - UK Border Agency,12/10/2011,Grant,UKBA - UK Border Agency,HAMMERSMITH & FULHAM COMMUNITY (G),1001166517,"55,350.00"
Home Office,UKBA - UK Border Agency,20/10/2011,Grant,UKBA - UK Border Agency,HAMMERSMITH & FULHAM COMMUNITY (G),1001170222,"93,585.00"
Home Office,UKBA - UK Border Agency,26/10/2011,Grant,UKBA - UK Border Agency,HAMPSHIRE COUNTY COUNCIL 1 (G),1001172145,"66,487.00"
Home Office,UKBA - UK Border Agency,24/10/2011,Asylum Provision.Asylum accom Sec 95,UKBA - UK Border Agency,HAPPY HOMES UK LTD,1001170964,"280,807.30"
Home Office,UKBA - UK Border Agency,24/10/2011,Asylum Provision.Asylum accom Sec 95,UKBA - UK Border Agency,HAPPY HOMES UK LTD,1001170964,"114,969.57"
Home Office,UKBA - UK Border Agency,24/10/2011,Asylum Provision.Asylum accom Sec 95,UKBA - UK Border Agency,HAPPY HOMES UK LTD,1001170964,"30,999.70"
Home Office,UKBA - UK Border Agency,10/10/2011,Healthcare Services.Occupational Therapy Serv-ADMN,UKBA - UK Border Agency,HEALTH MANAGEMENT LTD,1001165196,"72,449.49"
Home Office,UKBA - UK Border Agency,12/10/2011,Grant,UKBA - UK Border Agency,HERTFORDSHIRE COUNTY COUNCIL 1 (G),1001166518,"194,635.00"
Home Office,UKBA - UK Border Agency,26/10/2011,Grant,UKBA - UK Border Agency,HERTFORDSHIRE COUNTY COUNCIL 1 (G),1001172146,"159,811.00"
Home Office,UKBA - UK Border Agency,27/10/2011,Management & Admin Serv.Marketing services - PROG,UKBA - UK Border Agency,HM REVENUE & CUSTOMS,3000043673,"116,989.20"
Home Office,UKBA - UK Border Agency,25/10/2011,Grant,UKBA - UK Border Agency,HORTON HOUSING ASSOCIATION (G),1001171543,"127,464.00"
Home Office,UKBA - UK Border Agency,13/10/2011,"IT, TelecommsManaged Service.Support (General) - PROG",UKBA - UK Border Agency,IBM DIRECT UNITED KINGDOM LTD,1001166999,"177,333.00"
Home Office,UKBA - UK Border Agency,24/10/2011,IT & Telecoms Components.Computer Equip (FA),UKBA - UK Border Agency,IBM DIRECT UNITED KINGDOM LTD,1001170965,"151,291.81"
Home Office,UKBA - UK Border Agency,13/10/2011,"IT, TelecommsManaged Service.Support (General) - PROG",UKBA - UK Border Agency,IBM DIRECT UNITED KINGDOM LTD,1001166999,"7,110.00"
Home Office,UKBA - UK Border Agency,13/10/2011,"IT, TelecommsManaged Service.Support (General) - PROG",UKBA - UK Border Agency,IBM DIRECT UNITED KINGDOM LTD,1001166999,"111,120.00"
Home Office,UKBA - UK Border Agency,13/10/2011,"IT, TelecommsManaged Service.Support (General) - PROG",UKBA - UK Border Agency,IBM DIRECT UNITED KINGDOM LTD,1001166999,305
Home Office,UKBA - UK Border Agency,13/10/2011,"IT, TelecommsManaged Service.Support (General) - PROG",UKBA - UK Border Agency,IBM DIRECT UNITED KINGDOM LTD,1001166999,"21,668.00"
Home Office,UKBA - UK Border Agency,13/10/2011,"IT, TelecommsManaged Service.Support (General) - PROG",UKBA - UK Border Agency,IBM DIRECT UNITED KINGDOM LTD,1001166999,226
Home Office,UKBA - UK Border Agency,13/10/2011,"IT, TelecommsManaged Service.Support (General) - PROG",UKBA - UK Border Agency,IBM DIRECT UNITED KINGDOM LTD,1001166999,851
Home Office,UKBA - UK Border Agency,13/10/2011,"IT, TelecommsManaged Service.Support (General) - PROG",UKBA - UK Border Agency,IBM DIRECT UNITED KINGDOM LTD,1001166999,"5,198.00"
Home Office,UKBA - UK Border Agency,13/10/2011,"IT, TelecommsManaged Service.Support (General) - PROG",UKBA - UK Border Agency,IBM DIRECT UNITED KINGDOM LTD,1001166999,"5,978.00"
Home Office,UKBA - UK Border Agency,13/10/2011,"IT, TelecommsManaged Service.Support (General) - PROG",UKBA - UK Border Agency,IBM DIRECT UNITED KINGDOM LTD,1001166999,"16,983.00"
Home Office,UKBA - UK Border Agency,13/10/2011,"IT, TelecommsManaged Service.Support (General) - PROG",UKBA - UK Border Agency,IBM DIRECT UNITED KINGDOM LTD,1001166999,"1,426.00"
Home Office,UKBA - UK Border Agency,13/10/2011,"IT, TelecommsManaged Service.Support (General) - PROG",UKBA - UK Border Agency,IBM DIRECT UNITED KINGDOM LTD,1001166999,276
Home Office,UKBA - UK Border Agency,13/10/2011,"IT, TelecommsManaged Service.Support (General) - PROG",UKBA - UK Border Agency,IBM DIRECT UNITED KINGDOM LTD,1001166999,"142,344.00"
Home Office,UKBA - UK Border Agency,21/10/2011,"IT, Broadcasting & Telecomms.Computer Equip & Access - PROG",UKBA - UK Border Agency,IBM DIRECT UNITED KINGDOM LTD,1001170434,"590,839.00"
Home Office,UKBA - UK Border Agency,07/10/2011,"Transport, Storage & Mail Serv.Fuel & Vehicle Supp Serv- PROG",UKBA - UK Border Agency,INCHCAPE FLEET SOLUTIONS LTD,1001164603,"128,944.46"
Home Office,UKBA - UK Border Agency,07/10/2011,"Transport, Storage & Mail Serv.Fuel & Vehicle Supp Serv- PROG",UKBA - UK Border Agency,INCHCAPE FLEET SOLUTIONS LTD,1001164603,-71.23
Home Office,UKBA - UK Border Agency,11/10/2011,"Transport, Storage & Mail Serv.Fuel & Vehicle Supp Serv- PROG",UKBA - UK Border Agency,INCHCAPE FLEET SOLUTIONS LTD,1001165806,"97,834.34"
Home Office,UKBA - UK Border Agency,26/10/2011,IT & Telecoms Components.Computer Equip (FA),UKBA - UK Border Agency,INSIGHT DIRECT (UK) LTD,1001172244,"2,317,840.80"
Home Office,UKBA - UK Border Agency,12/10/2011,"IT, Broadcasting & Telecomms. IT Run Cost Info Support-PROG",UKBA - UK Border Agency,INSIGHT DIRECT (UK) LTD,1001166451,"417,211.32"
Home Office,UKBA - UK Border Agency,17/10/2011,"Transport, Storage & Mail Serv.Document Storage Serv - ADMN",UKBA - UK Border Agency,IRON MOUNTAIN (UK) LTD,1001168031,"97,194.99"
Home Office,UKBA - UK Border Agency,21/10/2011,"Transport, Storage & Mail Serv.File (Archive) Storage - ADMN",UKBA - UK Border Agency,IRON MOUNTAIN (UK) LTD,1001170436,"355,840.65"
Home Office,UKBA - UK Border Agency,24/10/2011,Asylum Provision.Asylum accom Sec 95,UKBA - UK Border Agency,JOMAST PROPERTY AND FINANCE CO LTD,1001170971,"621,838.35"
Home Office,UKBA - UK Border Agency,24/10/2011,Asylum Provision.Asylum accom Sec 95,UKBA - UK Border Agency,JOMAST PROPERTY AND FINANCE CO LTD,1001170971,"120,404.21"
Home Office,UKBA - UK Border Agency,12/10/2011,Grant,UKBA - UK Border Agency,KENT COUNTY COUNCIL 1 (G),1001166520,"486,255.00"
Home Office,UKBA - UK Border Agency,26/10/2011,Grant,UKBA - UK Border Agency,KENT COUNTY COUNCIL 1 (G),1001172147,"497,179.00"
Home Office,UKBA - UK Border Agency,26/10/2011,Grant,UKBA - UK Border Agency,KINGSTON UPON HULL CITY COUNCIL 2 (G),1001172148,"61,847.00"
Home Office,UKBA - UK Border Agency,26/10/2011,Grant,UKBA - UK Border Agency,KIRKLEES METROPOLITAN COUNCIL 2 (G),1001172149,"30,814.00"
Home Office,UKBA - UK Border Agency,20/10/2011,Grant,UKBA - UK Border Agency,LB OF BRENT CHILDRENS DIRECTORATE (G),1001170223,"142,557.00"
Home Office,UKBA - UK Border Agency,06/10/2011,Asylum Provision.Asylum accom Sec 95,UKBA - UK Border Agency,LEEDS CITY COUNCIL,1001164153,"533,738.91"
Home Office,UKBA - UK Border Agency,06/10/2011,Asylum Provision.Asylum accom Sec 95,UKBA - UK Border Agency,LEEDS CITY COUNCIL,1001164153,"178,846.12"
Home Office,UKBA - UK Border Agency,06/10/2011,Asylum Provision.Asylum accom Sec 95,UKBA - UK Border Agency,LEEDS CITY COUNCIL,1001164153,"135,810.50"
Home Office,UKBA - UK Border Agency,27/10/2011,Asylum Provision.Asylum accom Sec 95,UKBA - UK Border Agency,LEEDS CITY COUNCIL,1001172718,"525,134.10"
Home Office,UKBA - UK Border Agency,27/10/2011,Asylum Provision.Asylum accom Sec 95,UKBA - UK Border Agency,LEEDS CITY COUNCIL,1001172718,"164,911.62"
Home Office,UKBA - UK Border Agency,27/10/2011,Asylum Provision.Asylum accom Sec 95,UKBA - UK Border Agency,LEEDS CITY COUNCIL,1001172718,"129,281.94"
Home Office,UKBA - UK Border Agency,26/10/2011,Grant,UKBA - UK Border Agency,LEICESTERSHIRE COUNTY COUNCIL 1 (G),1001172151,"40,341.00"
Home Office,UKBA - UK Border Agency,26/10/2011,Grant,UKBA - UK Border Agency,LINCOLNSHIRE COUNTY COUNCIL 1 (G),1001172152,"54,658.00"
Home Office,UKBA - UK Border Agency,26/10/2011,Grant,UKBA - UK Border Agency,LIVERPOOL CITY COUNCIL 1 (G),1001172153,"86,096.00"
Home Office,UKBA - UK Border Agency,26/10/2011,Grant,UKBA - UK Border Agency,LONDON BOROUGH  WALTHAM FOREST (G),1001172154,"26,047.00"
Home Office,UKBA - UK Border Agency,20/10/2011,Grant,UKBA - UK Border Agency,LONDON BOROUGH OF BARKING & DAGENHAM (G),1001170225,"28,573.00"
Home Office,UKBA - UK Border Agency,20/10/2011,Grant,UKBA - UK Border Agency,LONDON BOROUGH OF BARNET 1 (G),1001170226,"67,197.00"
Home Office,UKBA - UK Border Agency,20/10/2011,Grant,UKBA - UK Border Agency,LONDON BOROUGH OF CAMDEN 1 (G),1001170229,"81,892.00"
Home Office,UKBA - UK Border Agency,20/10/2011,Grant,UKBA - UK Border Agency,LONDON BOROUGH OF CROYDON 1 (G),1001170230,"2,032,879.00"
Home Office,UKBA - UK Border Agency,20/10/2011,Grant,UKBA - UK Border Agency,LONDON BOROUGH OF GREENWICH 1 (G),1001170233,"42,103.00"
Home Office,UKBA - UK Border Agency,10/10/2011,Grant,UKBA - UK Border Agency,LONDON BOROUGH OF HARINGEY 1 (G),1001165614,"120,367.99"
Home Office,UKBA - UK Border Agency,12/10/2011,Grant,UKBA - UK Border Agency,LONDON BOROUGH OF HARINGEY 1 (G),1001166526,"56,250.00"
Home Office,UKBA - UK Border Agency,20/10/2011,Grant,UKBA - UK Border Agency,LONDON BOROUGH OF HARINGEY 1 (G),1001170235,"81,689.00"
Home Office,UKBA - UK Border Agency,20/10/2011,Grant,UKBA - UK Border Agency,LONDON BOROUGH OF HARROW 1 (G),1001170236,"62,610.00"
Home Office,UKBA - UK Border Agency,20/10/2011,Grant,UKBA - UK Border Agency,LONDON BOROUGH OF HILLINGDON 1 (G),1001170237,"239,915.00"
Home Office,UKBA - UK Border Agency,26/10/2011,Grant,UKBA - UK Border Agency,LONDON BOROUGH OF HILLINGDON 1 (G),1001172155,"286,781.00"
Home Office,UKBA - UK Border Agency,12/10/2011,Grant,UKBA - UK Border Agency,LONDON BOROUGH OF HOUNSLOW 1 (G),1001166527,"33,000.00"
Home Office,UKBA - UK Border Agency,20/10/2011,Grant,UKBA - UK Border Agency,LONDON BOROUGH OF HOUNSLOW 1 (G),1001170238,"50,759.00"
Home Office,UKBA - UK Border Agency,12/10/2011,Grant,UKBA - UK Border Agency,LONDON BOROUGH OF ISLINGTON (G),1001166528,"168,300.00"
Home Office,UKBA - UK Border Agency,20/10/2011,Grant,UKBA - UK Border Agency,LONDON BOROUGH OF ISLINGTON (G),1001170239,"185,086.00"
Home Office,UKBA - UK Border Agency,20/10/2011,Grant,UKBA - UK Border Agency,LONDON BOROUGH OF KENSINGTON & CHELSEA (G),1001170240,"84,857.00"
Home Office,UKBA - UK Border Agency,12/10/2011,Grant,UKBA - UK Border Agency,LONDON BOROUGH OF LAMBETH 1 (G),1001166529,"149,250.00"
Home Office,UKBA - UK Border Agency,20/10/2011,Grant,UKBA - UK Border Agency,LONDON BOROUGH OF LAMBETH 1 (G),1001170241,"73,749.00"
Home Office,UKBA - UK Border Agency,12/10/2011,Grant,UKBA - UK Border Agency,LONDON BOROUGH OF NEWHAM (G),1001166530,"31,050.00"
Home Office,UKBA - UK Border Agency,20/10/2011,Grant,UKBA - UK Border Agency,LONDON BOROUGH OF NEWHAM (G),1001170244,"59,292.00"
Home Office,UKBA - UK Border Agency,26/10/2011,Grant,UKBA - UK Border Agency,LONDON BOROUGH OF REDBRIDGE 1 (G),1001172157,"54,741.00"
Home Office,UKBA - UK Border Agency,12/10/2011,Grant,UKBA - UK Border Agency,LONDON BOROUGH OF RICHMOND UPON THAMES (G),1001166531,"32,100.00"
Home Office,UKBA - UK Border Agency,12/10/2011,Grant,UKBA - UK Border Agency,LONDON BOROUGH OF SOUTHWARK 1 (G),1001166532,"66,300.00"
Home Office,UKBA - UK Border Agency,26/10/2011,Grant,UKBA - UK Border Agency,LONDON BOROUGH OF SOUTHWARK 1 (G),1001172159,"65,446.00"
Home Office,UKBA - UK Border Agency,12/10/2011,Professional & Admin Services.Seconded in Staff costs.ADMN,UKBA - UK Border Agency,MANCHESTER CITY COUNCIL,1001166458,"52,721.59"
Home Office,UKBA - UK Border Agency,25/10/2011,Asylum Provision.Asylum accom Sec 95,UKBA - UK Border Agency,MANCHESTER CITY COUNCIL,1001171604,"622,641.76"
Home Office,UKBA - UK Border Agency,25/10/2011,Asylum Provision.Asylum accom Sec 95,UKBA - UK Border Agency,MANCHESTER CITY COUNCIL,1001171604,"16,857.58"
Home Office,UKBA - UK Border Agency,12/10/2011,Grant,UKBA - UK Border Agency,MANCHESTER CITY COUNCIL (G),1001166533,"113,309.00"
Home Office,UKBA - UK Border Agency,27/10/2011,Grant,UKBA - UK Border Agency,MANCHESTER CITY COUNCIL (G),1001172956,"39,717.25"
Home Office,UKBA - UK Border Agency,05/10/2011,Public Order .Jail or prison services.Detention costs,UKBA - UK Border Agency,METROPOLITAN POLICE AUTHORITY,1001163729,"47,710.00"
Home Office,UKBA - UK Border Agency,19/10/2011,"Messenger, Portering and Reception Services",UKBA - UK Border Agency,METROPOLITAN POLICE AUTHORITY,1001169403,"37,500.00"
Home Office,UKBA - UK Border Agency,03/10/2011,Grant,UKBA - UK Border Agency,MIGRANT HELPLINE (G),1001162606,"112,732.00"
Home Office,UKBA - UK Border Agency,03/10/2011,Grant,UKBA - UK Border Agency,MIGRANT HELPLINE (G),1001162606,"32,924.00"
Home Office,UKBA - UK Border Agency,12/10/2011,Grant,UKBA - UK Border Agency,MILTON KEYNES COUNCIL 1 (G),1001166534,"67,121.00"
Home Office,UKBA - UK Border Agency,26/10/2011,Grant,UKBA - UK Border Agency,MILTON KEYNES COUNCIL 1 (G),1001172166,"130,568.00"
Home Office,UKBA - UK Border Agency,12/10/2011,Grant,UKBA - UK Border Agency,MONMOUTHSHIRE COUNTY COUNCIL 1 (G),1001166535,"38,229.00"
Home Office,UKBA - UK Border Agency,26/10/2011,Law Enforcement & safety Equip.Maint&Rep of Plant&Mach�PROG,UKBA - UK Border Agency,MORPHO UK LTD,1001172258,"27,899.46"
Home Office,UKBA - UK Border Agency,26/10/2011,Law Enforcement & safety Equip.Maint&Rep of Plant&Mach�PROG,UKBA - UK Border Agency,MORPHO UK LTD,1001172258,"27,900.00"
Home Office,UKBA - UK Border Agency,28/10/2011,Management & Admin Serv.Civil Liability Serv - ADMN,UKBA - UK Border Agency,MORRISON & FOERSTER (UK) LLP,1001173241,"19,452.69"
Home Office,UKBA - UK Border Agency,28/10/2011,Management & Admin Serv.Civil Liability Serv - ADMN,UKBA - UK Border Agency,MORRISON & FOERSTER (UK) LLP,1001173241,"2,242.61"
Home Office,UKBA - UK Border Agency,12/10/2011,"Professional & Admin Services.Patent, Copyright Law - PROG",UKBA - UK Border Agency,NATIONAL AUDIT OFFICE,3000043596,"35,923.20"
Home Office,UKBA - UK Border Agency,19/10/2011,Grant,UKBA - UK Border Agency,NATIONAL MUSEUMS LIVERPOOL (G),1001169716,"76,000.00"
Home Office,UKBA - UK Border Agency,14/10/2011,Grant,UKBA - UK Border Agency,NEWCASTLE CITY COUNCIL (G),1001167401,"35,044.75"
Home Office,UKBA - UK Border Agency,26/10/2011,Grant,UKBA - UK Border Agency,NEWCASTLE CITY COUNCIL (G),1001172168,"95,336.00"
Home Office,UKBA - UK Border Agency,26/10/2011,Grant,UKBA - UK Border Agency,NORFOLK COUNTY COUNCIL 1 (G),1001172169,"41,137.00"
Home Office,UKBA - UK Border Agency,12/10/2011,Grant,UKBA - UK Border Agency,NORTHAMPTONSHIRE COUNTY COUNCIL (G),1001166538,"164,762.00"
Home Office,UKBA - UK Border Agency,26/10/2011,Grant,UKBA - UK Border Agency,NORTHAMPTONSHIRE COUNTY COUNCIL (G),1001172172,"200,642.00"
Home Office,UKBA - UK Border Agency,04/10/2011,Politics & Civic Affairs.REFUGEE PROG. SECT 95,UKBA - UK Border Agency,NORTHERN IRELAND HOUSING EXEC,1001162746,"130,345.00"
Home Office,UKBA - UK Border Agency,04/10/2011,Politics & Civic Affairs.REFUGEE PROG. SECT 95,UKBA - UK Border Agency,NORTHERN IRELAND HOUSING EXEC,1001162746,"17,909.03"
Home Office,UKBA - UK Border Agency,27/10/2011,Asylum Provision.Asylum accom Sec 95,UKBA - UK Border Agency,NORTHERN IRELAND HOUSING EXEC,1001172732,"128,858.59"
Home Office,UKBA - UK Border Agency,27/10/2011,Asylum Provision.Asylum accom Sec 95,UKBA - UK Border Agency,NORTHERN IRELAND HOUSING EXEC,1001172732,"19,533.64"
Home Office,UKBA - UK Border Agency,11/10/2011,Grant,UKBA - UK Border Agency,NORTHERN IRELAND LOCAL GOVERNMENT ASSOCIATION (G),1001165878,"25,699.50"
Home Office,UKBA - UK Border Agency,26/10/2011,Grant,UKBA - UK Border Agency,NOTTINGHAM CITY COUNCIL (G),1001172174,"47,740.00"
Home Office,UKBA - UK Border Agency,26/10/2011,Grant,UKBA - UK Border Agency,NOTTINGHAMSHIRE COUNTY COUNCIL 2 (G),1001172175,"55,482.00"
Home Office,UKBA - UK Border Agency,07/10/2011,"IT, Broadcasting & Telecomms.IT Run Costs other -Prog",UKBA - UK Border Agency,NPIA (National Policing Improvement Agency),1001164626,"37,539.81"
Home Office,UKBA - UK Border Agency,12/10/2011,"Messenger, Portering and Reception Services",UKBA - UK Border Agency,NPIA (National Policing Improvement Agency),1001166466,"420,000.00"
Home Office,UKBA - UK Border Agency,12/10/2011,"Messenger, Portering and Reception Services",UKBA - UK Border Agency,NPIA (National Policing Improvement Agency),1001166466,"6,000.00"
Home Office,UKBA - UK Border Agency,31/10/2011,"Messenger, Portering and Reception Services",UKBA - UK Border Agency,NPIA (National Policing Improvement Agency),1001173699,"77,930.88"
Home Office,UKBA - UK Border Agency,14/10/2011,"Public Order, Security, Safety.Security Guard Services - PROG",UKBA - UK Border Agency,OCS GROUP UK LTD,1001167493,"127,095.67"
Home Office,UKBA - UK Border Agency,18/10/2011,Grant,UKBA - UK Border Agency,OISC (G),1001169220,"323,120.00"
Home Office,UKBA - UK Border Agency,12/10/2011,Grant,UKBA - UK Border Agency,OSAG - OFFICE OF THE ADVOCATE GENERAL,3000043599,"61,835.11"
Home Office,UKBA - UK Border Agency,26/10/2011,Grant,UKBA - UK Border Agency,OSAG - OFFICE OF THE ADVOCATE GENERAL,3000043667,"70,950.65"
Home Office,UKBA - UK Border Agency,12/10/2011,Grant,UKBA - UK Border Agency,OXFORDSHIRE COUNTY COUNCIL 1 (G),1001166540,"122,352.00"
Home Office,UKBA - UK Border Agency,26/10/2011,Grant,UKBA - UK Border Agency,OXFORDSHIRE COUNTY COUNCIL 1 (G),1001172176,"98,962.00"
Home Office,UKBA - UK Border Agency,26/10/2011,Management & Admin Serv.Overseas Posting Costs-PROG,UKBA - UK Border Agency,PARIS APARTMENT SERVICES,7000006297,"57,073.70"
Home Office,UKBA - UK Border Agency,12/10/2011,Grant,UKBA - UK Border Agency,PORTSMOUTH CITY COUNCIL 2 (G),1001166542,"27,187.00"
Home Office,UKBA - UK Border Agency,26/10/2011,Grant,UKBA - UK Border Agency,PORTSMOUTH CITY COUNCIL 2 (G),1001172179,"41,859.00"
Home Office,UKBA - UK Border Agency,21/10/2011,Asylum Provision.Asylum accom Sec 95,UKBA - UK Border Agency,PRIORITY PROPERTIES NORTH WEST,1001170468,"111,823.53"
Home Office,UKBA - UK Border Agency,21/10/2011,Asylum Provision.Asylum accom Sec 95,UKBA - UK Border Agency,PRIORITY PROPERTIES NORTH WEST,1001170468,"30,626.01"
Home Office,UKBA - UK Border Agency,21/10/2011,Asylum Provision.Asylum accom Sec 95,UKBA - UK Border Agency,PRIORITY PROPERTIES NORTH WEST,1001170468,"308,738.94"
Home Office,UKBA - UK Border Agency,21/10/2011,Asylum Provision.Asylum accom Sec 95,UKBA - UK Border Agency,PRIORITY PROPERTIES NORTH WEST,1001170468,"43,126.29"
Home Office,UKBA - UK Border Agency,21/10/2011,Asylum Provision.Asylum accom Sec 95,UKBA - UK Border Agency,PRIORITY PROPERTIES NORTH WEST,1001170468,"348,231.08"
Home Office,UKBA - UK Border Agency,21/10/2011,Asylum Provision.Asylum accom Sec 95,UKBA - UK Border Agency,PRIORITY PROPERTIES NORTH WEST,1001170468,"85,975.92"
Home Office,UKBA - UK Border Agency,21/10/2011,Asylum Provision.Asylum accom Sec 95,UKBA - UK Border Agency,PRIORITY PROPERTIES NORTH WEST,1001170468,"126,716.72"
Home Office,UKBA - UK Border Agency,21/10/2011,Asylum Provision.Asylum accom Sec 95,UKBA - UK Border Agency,PRIORITY PROPERTIES NORTH WEST,1001170468,"31,405.40"
Home Office,UKBA - UK Border Agency,26/10/2011,Grant,UKBA - UK Border Agency,RB OF WINDSOR & MAIDENHEAD (G),1001172180,"44,970.00"
Home Office,UKBA - UK Border Agency,03/10/2011,Grant,UKBA - UK Border Agency,REFUGEE ACTION (G),1001162614,"101,585.00"
Home Office,UKBA - UK Border Agency,03/10/2011,Grant,UKBA - UK Border Agency,REFUGEE ACTION (G),1001162614,"65,699.00"
Home Office,UKBA - UK Border Agency,03/10/2011,Grant,UKBA - UK Border Agency,REFUGEE ACTION (G),1001162614,"54,986.00"
Home Office,UKBA - UK Border Agency,03/10/2011,Grant,UKBA - UK Border Agency,REFUGEE ACTION (G),1001162614,"122,622.00"
Home Office,UKBA - UK Border Agency,03/10/2011,Grant,UKBA - UK Border Agency,REFUGEE COUNCIL 1 (G),1001162615,"70,466.00"
Home Office,UKBA - UK Border Agency,03/10/2011,Grant,UKBA - UK Border Agency,REFUGEE COUNCIL 1 (G),1001162615,"111,148.00"
Home Office,UKBA - UK Border Agency,03/10/2011,Grant,UKBA - UK Border Agency,REFUGEE COUNCIL 1 (G),1001162615,"41,786.00"
Home Office,UKBA - UK Border Agency,03/10/2011,Grant,UKBA - UK Border Agency,REFUGEE COUNCIL 1 (G),1001162615,"114,286.00"
Home Office,UKBA - UK Border Agency,03/10/2011,Grant,UKBA - UK Border Agency,REFUGEE COUNCIL 1 (G),1001162615,"141,285.00"
Home Office,UKBA - UK Border Agency,03/10/2011,Grant,UKBA - UK Border Agency,REFUGEE COUNCIL 1 (G),1001162615,"42,427.00"
Home Office,UKBA - UK Border Agency,03/10/2011,Grant,UKBA - UK Border Agency,REFUGEE COUNCIL 1 (G),1001162615,"112,816.00"
Home Office,UKBA - UK Border Agency,03/10/2011,Grant,UKBA - UK Border Agency,REFUGEE COUNCIL 1 (G),1001162615,"53,500.00"
Home Office,UKBA - UK Border Agency,20/10/2011,Grant,UKBA - UK Border Agency,ROYAL BOROUGH KINGSTON UPON THAMES (G),1001170247,"82,377.00"
Home Office,UKBA - UK Border Agency,19/10/2011,Professional & Admin Services.Consultancy - Advice - PROG,UKBA - UK Border Agency,RSM TENON LTD,1001169422,"80,355.60"
Home Office,UKBA - UK Border Agency,17/10/2011,Laboratory & Scientific Equip.Scientific Equip Running Costs,UKBA - UK Border Agency,SAIC SOLUTIONS LTD,1001168060,"30,582.00"
Home Office,UKBA - UK Border Agency,17/10/2011,Laboratory & Scientific Equip.Scientific Equip Running Costs,UKBA - UK Border Agency,SAIC SOLUTIONS LTD,1001168060,"30,582.00"
Home Office,UKBA - UK Border Agency,03/10/2011,Grant,UKBA - UK Border Agency,SCOTTISH REFUGEE COUNCIL (G),1001162616,"57,232.00"
Home Office,UKBA - UK Border Agency,03/10/2011,Grant,UKBA - UK Border Agency,SCOTTISH REFUGEE COUNCIL (G),1001162616,"99,851.00"
Home Office,UKBA - UK Border Agency,06/10/2011,Law Enforcement & safety Equip.Maint&Rep of Plant&Mach�PROG,UKBA - UK Border Agency,SECURITY SERVICES GROUP,3000043580,"28,001.86"
Home Office,UKBA - UK Border Agency,21/10/2011,Law Enforcement & safety Equip.Maint&Rep of Plant&Mach�PROG,UKBA - UK Border Agency,SECURITY SERVICES GROUP,3000043641,"33,134.21"
Home Office,UKBA - UK Border Agency,26/10/2011,Grant,UKBA - UK Border Agency,SHEFFIELD CITY COUNCIL 1 (G),1001172183,"67,251.00"
Home Office,UKBA - UK Border Agency,24/10/2011,Grant,UKBA - UK Border Agency,SHIPLEY COLLEGE (G),1001171033,"49,999.13"
Home Office,UKBA - UK Border Agency,26/10/2011,Grant,UKBA - UK Border Agency,SLOUGH BOROUGH COUNCIL (G),1001172184,"70,953.00"
Home Office,UKBA - UK Border Agency,04/10/2011,Asylum Provision.Asylum serv Cash Supp,UKBA - UK Border Agency,SODEXHO PASS LTD,1001162785,"927,978.81"
Home Office,UKBA - UK Border Agency,04/10/2011,Asylum Provision.Asylum serv Cash Supp,UKBA - UK Border Agency,SODEXHO PASS LTD,1001162785,"122,262.86"
Home Office,UKBA - UK Border Agency,10/10/2011,Asylum Provision.Asylum serv Cash Supp,UKBA - UK Border Agency,SODEXHO PASS LTD,1001165236,"230,754.95"
Home Office,UKBA - UK Border Agency,10/10/2011,Asylum Provision.Asylum serv Cash Supp,UKBA - UK Border Agency,SODEXHO PASS LTD,1001165236,"920,945.24"
Home Office,UKBA - UK Border Agency,10/10/2011,Asylum Provision.Asylum serv Cash Supp,UKBA - UK Border Agency,SODEXHO PASS LTD,1001165236,"121,735.70"
Home Office,UKBA - UK Border Agency,18/10/2011,Asylum Provision.Asylum serv Cash Supp,UKBA - UK Border Agency,SODEXHO PASS LTD,1001168735,"915,392.48"
Home Office,UKBA - UK Border Agency,18/10/2011,Asylum Provision.Asylum serv Cash Supp,UKBA - UK Border Agency,SODEXHO PASS LTD,1001168735,"120,387.37"
Home Office,UKBA - UK Border Agency,25/10/2011,Asylum Provision.Asylum serv Cash Supp,UKBA - UK Border Agency,SODEXHO PASS LTD,1001171627,"925,211.98"
Home Office,UKBA - UK Border Agency,25/10/2011,Asylum Provision.Asylum serv Cash Supp,UKBA - UK Border Agency,SODEXHO PASS LTD,1001171627,"122,206.07"
Home Office,UKBA - UK Border Agency,28/10/2011,Asylum Provision.Asylum serv Cash Supp,UKBA - UK Border Agency,SODEXHO PASS LTD,1001173257,"929,605.61"
Home Office,UKBA - UK Border Agency,28/10/2011,Asylum Provision.Asylum serv Cash Supp,UKBA - UK Border Agency,SODEXHO PASS LTD,1001173257,"120,617.02"
Home Office,UKBA - UK Border Agency,21/10/2011,"IT, Broadcasting & Telecomms. IT Run Cost Info Support-PROG",UKBA - UK Border Agency,SOFTWARE BOX LTD,1001170481,"65,415.19"
Home Office,UKBA - UK Border Agency,21/10/2011,"IT, Broadcasting & Telecomms. IT Run Cost Info Support-PROG",UKBA - UK Border Agency,SOFTWARE BOX LTD,1001170481,"148,273.87"
Home Office,UKBA - UK Border Agency,26/10/2011,Grant,UKBA - UK Border Agency,SOLIHULL MBC,1001172185,"282,118.00"
Home Office,UKBA - UK Border Agency,12/10/2011,Grant,UKBA - UK Border Agency,SOUTH GLOUCESTERSHIRE COUNCIL 1 (G),1001166551,"37,576.00"
Home Office,UKBA - UK Border Agency,26/10/2011,Grant,UKBA - UK Border Agency,SOUTHAMPTON CITY COUNCIL 1 (G),1001172186,"48,767.00"
Home Office,UKBA - UK Border Agency,04/10/2011,"Science, Technical & Research.Computer services - PROG",UKBA - UK Border Agency,SPECIALIST COMPUTER CENTRES PLC,1001162789,"49,015.20"
Home Office,UKBA - UK Border Agency,06/10/2011,IT & Telecoms Components.Standard Software  (FA) .,UKBA - UK Border Agency,SPECIALIST COMPUTER CENTRES PLC,1001164183,"27,057.80"
Home Office,UKBA - UK Border Agency,05/10/2011,IT & Telecoms Components.Computer Equip (FA),UKBA - UK Border Agency,SPECIALIST COMPUTER CENTRES PLC,1001163744,"89,184.06"
Home Office,UKBA - UK Border Agency,05/10/2011,IT & Telecoms Components.Computer Equip (FA),UKBA - UK Border Agency,SPECIALIST COMPUTER CENTRES PLC,1001163744,"140,155.54"
Home Office,UKBA - UK Border Agency,05/10/2011,IT & Telecoms Components.Computer Equip (FA),UKBA - UK Border Agency,SPECIALIST COMPUTER CENTRES PLC,1001163744,"31,436.89"
Home Office,UKBA - UK Border Agency,04/10/2011,"Science, Technical & Research.Computer services - PROG",UKBA - UK Border Agency,SPECIALIST COMPUTER CENTRES PLC,1001162789,"33,962.40"
Home Office,UKBA - UK Border Agency,10/10/2011,IT & Telecoms Components.Computer Equip (FA),UKBA - UK Border Agency,SPECIALIST COMPUTER CENTRES PLC,1001165239,"138,253.54"
Home Office,UKBA - UK Border Agency,10/10/2011,IT & Telecoms Components.Computer Equip (FA),UKBA - UK Border Agency,SPECIALIST COMPUTER CENTRES PLC,1001165239,"61,133.40"
Home Office,UKBA - UK Border Agency,28/10/2011,IT & Telecoms Components.Computer Equip (FA),UKBA - UK Border Agency,SPECIALIST COMPUTER CENTRES PLC,1001173259,"87,032.34"
Home Office,UKBA - UK Border Agency,26/10/2011,Grant,UKBA - UK Border Agency,STAFFORDSHIRE COUNTY COUNCIL 1 (G),1001172187,"99,478.00"
Home Office,UKBA - UK Border Agency,13/10/2011,Financial & Insurance Services.Banking & Monetary Services - PROG,UKBA - UK Border Agency,STREAMLINE,211598,"26,418.75"
Home Office,UKBA - UK Border Agency,12/10/2011,Grant,UKBA - UK Border Agency,SUFFOLK COUNTY COUNCIL (G),1001166554,"65,887.00"
Home Office,UKBA - UK Border Agency,26/10/2011,Grant,UKBA - UK Border Agency,SUFFOLK COUNTY COUNCIL (G),1001172188,"80,451.00"
Home Office,UKBA - UK Border Agency,26/10/2011,Grant,UKBA - UK Border Agency,SURREY COUNTY COUNCIL 1 (G),1001172189,"229,199.00"
Home Office,UKBA - UK Border Agency,19/10/2011,"Law Enforcement & safety Equip.Haulage, Storage & Disp (HSD)",UKBA - UK Border Agency,THAMESDOWN RECYCLING,1001169431,"50,157.99"
Home Office,UKBA - UK Border Agency,14/10/2011,"Law Enforcement & safety Equip.Haulage, Storage & Disp (HSD)",UKBA - UK Border Agency,THAMESDOWN RECYCLING,1001167522,"45,696.99"
Home Office,UKBA - UK Border Agency,10/10/2011,"Transport, Storage & Mail Serv.Overseas travel - PROG",UKBA - UK Border Agency,THE CHANNEL TUNNEL GROUP LTD,1001165242,"43,784.00"
Home Office,UKBA - UK Border Agency,26/10/2011,Grant,UKBA - UK Border Agency,THURROCK COUNCIL 1 (G),1001172192,"30,828.00"
Home Office,UKBA - UK Border Agency,14/10/2011,"Law Enforcement & safety Equip.Haulage, Storage & Disp (HSD)",UKBA - UK Border Agency,TNT UK LTD,1001167525,"217,368.58"
Home Office,UKBA - UK Border Agency,17/10/2011,Other Government Department,UKBA - UK Border Agency,TREASURY SOLICITORS OFFICE,3000043620,"813,235.80"
Home Office,UKBA - UK Border Agency,17/10/2011,Other Government Department,UKBA - UK Border Agency,TREASURY SOLICITORS OFFICE,3000043620,"160,524.32"
Home Office,UKBA - UK Border Agency,17/10/2011,Other Government Department,UKBA - UK Border Agency,TREASURY SOLICITORS OFFICE,3000043620,"51,518.00"
Home Office,UKBA - UK Border Agency,17/10/2011,Other Government Department,UKBA - UK Border Agency,TREASURY SOLICITORS OFFICE,3000043620,"24,936.06"
Home Office,UKBA - UK Border Agency,17/10/2011,Other Government Department,UKBA - UK Border Agency,TREASURY SOLICITORS OFFICE,3000043620,"30,127.00"
Home Office,UKBA - UK Border Agency,17/10/2011,Other Government Department,UKBA - UK Border Agency,TREASURY SOLICITORS OFFICE,3000043620,"8,424.21"
Home Office,UKBA - UK Border Agency,17/10/2011,Other Government Department,UKBA - UK Border Agency,TREASURY SOLICITORS OFFICE,3000043620,"17,094.50"
Home Office,UKBA - UK Border Agency,17/10/2011,Other Government Department,UKBA - UK Border Agency,TREASURY SOLICITORS OFFICE,3000043620,"6,773.00"
Home Office,UKBA - UK Border Agency,17/10/2011,Other Government Department,UKBA - UK Border Agency,TREASURY SOLICITORS OFFICE,3000043620,"210,169.50"
Home Office,UKBA - UK Border Agency,17/10/2011,Other Government Department,UKBA - UK Border Agency,TREASURY SOLICITORS OFFICE,3000043620,"72,324.66"
Home Office,UKBA - UK Border Agency,17/10/2011,Other Government Department,UKBA - UK Border Agency,TREASURY SOLICITORS OFFICE,3000043620,"82,184.50"
Home Office,UKBA - UK Border Agency,17/10/2011,Other Government Department,UKBA - UK Border Agency,TREASURY SOLICITORS OFFICE,3000043620,"16,363.19"
Home Office,UKBA - UK Border Agency,17/10/2011,Other Government Department,UKBA - UK Border Agency,TREASURY SOLICITORS OFFICE,3000043620,"36,555.00"
Home Office,UKBA - UK Border Agency,17/10/2011,Other Government Department,UKBA - UK Border Agency,TREASURY SOLICITORS OFFICE,3000043620,"12,213.49"
Home Office,UKBA - UK Border Agency,14/10/2011,Other Government Department,UKBA - UK Border Agency,TREASURY SOLICITORS OFFICE,3000043612,"54,390.00"
Home Office,UKBA - UK Border Agency,20/10/2011,Other Government Department,UKBA - UK Border Agency,TREASURY SOLICITORS OFFICE,3000043638,"81,552.47"
Home Office,UKBA - UK Border Agency,25/10/2011,Other Government Department,UKBA - UK Border Agency,TREASURY SOLICITORS OFFICE,3000043657,"306,467.44"
Home Office,UKBA - UK Border Agency,04/10/2011,Other Government Department,UKBA - UK Border Agency,TREASURY SOLICITORS OFFICE,3000043567,"188,999.90"
Home Office,UKBA - UK Border Agency,05/10/2011,Other Government Department,UKBA - UK Border Agency,TREASURY SOLICITORS OFFICE,3000043575,"84,685.78"
Home Office,UKBA - UK Border Agency,11/10/2011,Other Government Department,UKBA - UK Border Agency,TREASURY SOLICITORS OFFICE,3000043595,"182,884.57"
Home Office,UKBA - UK Border Agency,12/10/2011,Other Government Department,UKBA - UK Border Agency,TREASURY SOLICITORS OFFICE,3000043600,"384,018.84"
Home Office,UKBA - UK Border Agency,24/10/2011,Asylum Provision.Asylum accom Sec 95,UKBA - UK Border Agency,UNITED PROPERTY MANAGEMENT,1001171014,"260,713.76"
Home Office,UKBA - UK Border Agency,24/10/2011,Asylum Provision.Asylum accom Sec 95,UKBA - UK Border Agency,UNITED PROPERTY MANAGEMENT,1001171014,"48,474.00"
Home Office,UKBA - UK Border Agency,24/10/2011,Asylum Provision.Asylum accom Sec 95,UKBA - UK Border Agency,UNITED PROPERTY MANAGEMENT,1001171014,"87,653.42"
Home Office,UKBA - UK Border Agency,24/10/2011,Asylum Provision.Asylum accom Sec 95,UKBA - UK Border Agency,UNITED PROPERTY MANAGEMENT,1001171014,"410,028.38"
Home Office,UKBA - UK Border Agency,24/10/2011,Asylum Provision.Asylum accom Sec 95,UKBA - UK Border Agency,UNITED PROPERTY MANAGEMENT,1001171014,"49,531.05"
Home Office,UKBA - UK Border Agency,24/10/2011,Asylum Provision.Asylum accom Sec 95,UKBA - UK Border Agency,UNITED PROPERTY MANAGEMENT,1001171014,"126,111.28"
Home Office,UKBA - UK Border Agency,24/10/2011,Asylum Provision.Asylum accom Sec 95,UKBA - UK Border Agency,UNITED PROPERTY MANAGEMENT,1001171014,"23,069.30"
Home Office,UKBA - UK Border Agency,27/10/2011,Professional & Admin Services. Visa Processing Services,UKBA - UK Border Agency,VF WORLDWIDE HOLDINGS LTD,7000006302,"2,744,637.38"
Home Office,UKBA - UK Border Agency,11/10/2011,"Vehicles, Ships, Airplanes.Vessel Maintenance - PROG",UKBA - UK Border Agency,VISTAR NIGHT VISION LTD,1001165873,"47,007.00"
Home Office,UKBA - UK Border Agency,05/10/2011,Animal Material & Supplies. Detect Dogs-Kennel & Misc-PROG,UKBA - UK Border Agency,WAGTAIL UK LTD,1001163762,"92,295.12"
Home Office,UKBA - UK Border Agency,26/10/2011,Grant,UKBA - UK Border Agency,WARWICKSHIRE COUNTY COUNCIL 1 (G),1001172195,"210,992.00"
Home Office,UKBA - UK Border Agency,03/10/2011,Grant,UKBA - UK Border Agency,WELSH REFUGEE COUNCIL 1 (G),1001162625,"46,836.00"
Home Office,UKBA - UK Border Agency,03/10/2011,Grant,UKBA - UK Border Agency,WELSH REFUGEE COUNCIL 1 (G),1001162625,"81,976.00"
Home Office,UKBA - UK Border Agency,26/10/2011,Grant,UKBA - UK Border Agency,WEST BERKSHIRE DISTRICT COUNCIL (LA) (G),1001172196,"82,730.00"
Home Office,UKBA - UK Border Agency,04/10/2011,Grant,UKBA - UK Border Agency,WEST MIDLANDS LOCAL GOVERNMENT ASSOCIATION (WMLGA) (G),1001163503,"39,717.25"
Home Office,UKBA - UK Border Agency,03/10/2011,Grant,UKBA - UK Border Agency,WEST OF SCOTLAND REGIONAL EQUALITY COUNCIL LTD (G),1001162627,"50,875.00"
Home Office,UKBA - UK Border Agency,26/10/2011,Grant,UKBA - UK Border Agency,WEST SUSSEX COUNTY COUNCIL 1 (G),1001172197,"89,112.00"
Home Office,UKBA - UK Border Agency,26/10/2011,Grant,UKBA - UK Border Agency,WEST SUSSEX COUNTY COUNCIL 1 (G),1001172197,"65,624.00"
Home Office,UKBA - UK Border Agency,12/10/2011,Grant,UKBA - UK Border Agency,WILTSHIRE COUNTY COUNCIL 1 (G),1001166562,"40,472.00"
Home Office,UKBA - UK Border Agency,26/10/2011,Grant,UKBA - UK Border Agency,WORCESTERSHIRE COUNTY COUNCIL 1 (G),1001172201,"122,471.00"
Home Office,UKBA - UK Border Agency,26/10/2011,Asylum Provision.Asylum accom Sec 95,UKBA - UK Border Agency,YMCA GLASGOW,1001172294,"671,676.86"
